Body name,Service Area,Dept,Expenses Type,Capital/Revenue,Detailed Expenses Type,Expense Code,Date,Transaction number,Amount,Supplier Name,Supplier ID
WANDSWORTH COUNCIL,CS,,"REPAIRS, ALTERATIONS & MTCE",Revenue,"REPS, ALTS & MTCE-BUILDINGS",100410000,26/04/16,932407,528.64,DH CROFTS LTD,SP0000076
WANDSWORTH COUNCIL,CS,,SERVICES,Revenue,CONSULTANTS FEES,100434200,29/04/16,934172,"8,236.00",WILDSTONE MEDIA CONSULTING LTD,SP0010364
WANDSWORTH COUNCIL,CS,,SERVICES,Revenue,CONSULTANTS FEES,100434200,29/04/16,934173,"21,736.00",WILDSTONE MEDIA CONSULTING LTD,SP0010364
WANDSWORTH COUNCIL,CS,,SERVICES,Revenue,CONSULTANTS FEES,100434200,29/04/16,934174,"12,736.00",WILDSTONE MEDIA CONSULTING LTD,SP0010364
WANDSWORTH COUNCIL,CS,,"REPAIRS, ALTERATIONS & MTCE",Revenue,"REPS, ALTS & MTCE-BUILDINGS",100510000,14/04/16,918962,840.00,CAMELOT PROPERTY MANAGEMENT LTD,SP0001064
WANDSWORTH COUNCIL,CS,,"REPAIRS, ALTERATIONS & MTCE",Revenue,"REPS, ALTS & MTCE-BUILDINGS",100510000,14/04/16,918963,450.00,CAMELOT PROPERTY MANAGEMENT LTD,SP0001064
WANDSWORTH COUNCIL,CS,,"REPAIRS, ALTERATIONS & MTCE",Revenue,"REPS, ALTS & MTCE-BUILDINGS",10051000K0002P,07/04/16,913938,"1,650.00",ZEST DESIGN AND MARKETING LTD,SP0009328
WANDSWORTH COUNCIL,CS,,SERVICES,Revenue,CONSULTANTS FEES,100534200,11/04/16,916053,"5,773.75",G L HEARN LTD,SP0009602
WANDSWORTH COUNCIL,CS,,SERVICES,Revenue,CONSULTANTS FEES,100534200,26/04/16,929703,"24,848.40",GLENVILLA ESTATES LTD,SP0010397
WANDSWORTH COUNCIL,CS,,SERVICES,Revenue,CONSULTANTS FEES,100534200,26/04/16,929704,"2,730.00",GLENVILLA ESTATES LTD,SP0010397
WANDSWORTH COUNCIL,CS,,SERVICES,Revenue,CONSULTANTS FEES,100534200,25/04/16,931045,"37,905.00",MOTT MACDONALD LIMITED,SP0007437
WANDSWORTH COUNCIL,CS,,PRINTING STAT & GEN OFFICE EXP,Revenue,PRINTING REGISTRATION A FORM,103033440,13/04/16,917013,"1,476.00",BANNER MANAGED COMMUNICATION,SP0003555
WANDSWORTH COUNCIL,CS,,PRINTING STAT & GEN OFFICE EXP,Revenue,PRINTING REGISTRATION A FORM,103033440,21/04/16,925131,484.70,BANNER MANAGED COMMUNICATION,SP0003555
WANDSWORTH COUNCIL,CS,,PRINTING STAT & GEN OFFICE EXP,Revenue,PRINTING REGISTRATION A FORM,103033440,21/04/16,925132,662.29,BANNER MANAGED COMMUNICATION,SP0003555
WANDSWORTH COUNCIL,CS,,PRINTING STAT & GEN OFFICE EXP,Revenue,PRINTING REGISTRATION A FORM,103033440,28/04/16,925134,"1,571.57",BANNER MANAGED COMMUNICATION,SP0003555
WANDSWORTH COUNCIL,CS,,COMMUNICATIONS & COMP,Revenue,COMMUNICATIONS - POSTAGE,103036000,08/04/16,914563,"1,750.28",ROYAL MAIL,SP0001067
WANDSWORTH COUNCIL,CS,,COMMUNICATIONS & COMP,Revenue,COMMUNICATIONS - POSTAGE,103036000,28/04/16,931526,"1,479.54",ROYAL MAIL,SP0001067
WANDSWORTH COUNCIL,CS,,COMMUNICATIONS & COMP,Revenue,COMMUNICATIONS - POSTAGE,103036000,28/04/16,931527,"4,597.26",ROYAL MAIL,SP0001067
WANDSWORTH COUNCIL,CS,,COMMUNICATIONS & COMP,Revenue,I.T. EQUIPMENT & MAINTENANCE,103036210,08/04/16,914401,"4,434.00",PARALOGIC LTD,SP0001642
WANDSWORTH COUNCIL,CS,,"EQUIPMENT, FURNITURE & MATS",Revenue,FLOWERS,103130170,14/04/16,918985,646.00,PATRICIA WONG,SP0002085
WANDSWORTH COUNCIL,CS,,CUSTOMER & CLIENT RECPTS - EXT,Revenue,CITIZENSHIP CEREMONIES,103180620,28/04/16,929146,"2,687.50",BLINKY MEDIA LTD,SP0008667
WANDSWORTH COUNCIL,CS,,CUSTOMER & CLIENT RECPTS - EXT,Revenue,CITIZENSHIP CEREMONIES,103180620,28/04/16,929146,34.00,BLINKY MEDIA LTD,SP0008667
WANDSWORTH COUNCIL,CDC,,MISC,Revenue,MISCELLANEOUS EXPENSES,103338500,14/04/16,921724,"15,000.00",LONDON FIRE AND EMERGENCY PLANNING AUTHO,SP0003322
WANDSWORTH COUNCIL,PH,,HEALTH,Revenue,GP LES CONTRACTS,105041520,08/04/16,914832,501.00,CARE UK CLINICAL SERVICES LTD,SP0005790
WANDSWORTH COUNCIL,PH,,HEALTH,Revenue,GP LES CONTRACTS,105041520,06/04/16,912365,"6,603.00",GRAFTON MEDICAL PARTNERS Y02423,SP0008442
WANDSWORTH COUNCIL,PH,,HEALTH,Revenue,GP LES CONTRACTS,105041520,06/04/16,912564,"2,601.00",HEATHBRIDGE PRACTICE,SP0008179
WANDSWORTH COUNCIL,PH,,HEALTH,Revenue,GP LES CONTRACTS,105041520,06/04/16,912514,"2,993.00",PUTNEYMEAD GROUP MEDICAL PRACTICE H85012,SP0006951
WANDSWORTH COUNCIL,PH,,HEALTH,Revenue,GP LES CONTRACTS,105041520,06/04/16,912504,686.00,QUEENSTOWN ROAD MEDICAL PRACTICE H85003,SP0003591
WANDSWORTH COUNCIL,PH,,HEALTH,Revenue,GP CHLAMYDIA SCREENING LES,105141540,08/04/16,914832,890.00,CARE UK CLINICAL SERVICES LTD,SP0005790
WANDSWORTH COUNCIL,PH,,HEALTH,Revenue,GP CHLAMYDIA SCREENING LES,105141540,06/04/16,912365,330.00,GRAFTON MEDICAL PARTNERS Y02423,SP0008442
WANDSWORTH COUNCIL,PH,,HEALTH,Revenue,GP CHLAMYDIA SCREENING LES,105141540,06/04/16,912564,160.00,HEATHBRIDGE PRACTICE,SP0008179
WANDSWORTH COUNCIL,PH,,HEALTH,Revenue,GP CHLAMYDIA SCREENING LES,105141540,06/04/16,912514,"1,040.00",PUTNEYMEAD GROUP MEDICAL PRACTICE H85012,SP0006951
WANDSWORTH COUNCIL,PH,,HEALTH,Revenue,GP CHLAMYDIA SCREENING LES,105141540,06/04/16,912504,140.00,QUEENSTOWN ROAD MEDICAL PRACTICE H85003,SP0003591
WANDSWORTH COUNCIL,PH,,HEALTH,Revenue,HIV RAPID TESTING PILOT,105141710,08/04/16,914832,605.00,CARE UK CLINICAL SERVICES LTD,SP0005790
WANDSWORTH COUNCIL,PH,,HEALTH,Revenue,HIV RAPID TESTING PILOT,105141710,06/04/16,912365,605.00,GRAFTON MEDICAL PARTNERS Y02423,SP0008442
WANDSWORTH COUNCIL,PH,,HEALTH,Revenue,HIV RAPID TESTING PILOT,105141710,06/04/16,912479,610.00,PASSANTE HEALTHCARE LTD,SP0006465
WANDSWORTH COUNCIL,PH,,HEALTH,Revenue,HIV RAPID TESTING PILOT,105141710,13/04/16,917021,"6,100.00",PASSANTE HEALTHCARE LTD,SP0006465
WANDSWORTH COUNCIL,PH,,HEALTH,Revenue,HIV RAPID TESTING PILOT,105141710,06/04/16,912514,105.00,PUTNEYMEAD GROUP MEDICAL PRACTICE H85012,SP0006951
WANDSWORTH COUNCIL,PH,,HEALTH,Revenue,HIV RAPID TESTING PILOT,105141710,06/04/16,912504,125.00,QUEENSTOWN ROAD MEDICAL PRACTICE H85003,SP0003591
WANDSWORTH COUNCIL,PH,ADMINISTRATION,HEALTH,Revenue,CHLAMYDIA SCREENING,105141760,05/04/16,912672,"3,216.00",HOUNSLOW & RICHMOND COMMUNITY HEALTHCARE,RG0000001
WANDSWORTH COUNCIL,PH,,HEALTH,Revenue,THIRD PARTY PAYMENTS- TRAINING,105340530,08/04/16,915619,783.75,SMART HEALTH SOLUTIONS,SP0006629
WANDSWORTH COUNCIL,PH,,HEALTH,Revenue,COMMUNITY OUTREACH HEALTH CHCK,105341300,13/04/16,917152,"5,000.00",SOLUTIONS 4 HEALTH LTD,SP0008222
WANDSWORTH COUNCIL,PH,,HEALTH,Revenue,COMMUNITY OUTREACH HEALTH CHCK,105341300,13/04/16,917153,"5,000.00",SOLUTIONS 4 HEALTH LTD,SP0008222
WANDSWORTH COUNCIL,PH,,HEALTH,Revenue,LOCALLY ENHANCED SERVICES,105341380,08/04/16,914832,60.52,CARE UK CLINICAL SERVICES LTD,SP0005790
WANDSWORTH COUNCIL,PH,,HEALTH,Revenue,LOCALLY ENHANCED SERVICES,105341380,06/04/16,912365,"6,324.34",GRAFTON MEDICAL PARTNERS Y02423,SP0008442
WANDSWORTH COUNCIL,PH,,HEALTH,Revenue,LOCALLY ENHANCED SERVICES,105341380,06/04/16,912564,"3,964.06",HEATHBRIDGE PRACTICE,SP0008179
WANDSWORTH COUNCIL,PH,,HEALTH,Revenue,LOCALLY ENHANCED SERVICES,105341380,06/04/16,912514,"1,294.13",PUTNEYMEAD GROUP MEDICAL PRACTICE H85012,SP0006951
WANDSWORTH COUNCIL,PH,,HEALTH,Revenue,LOCALLY ENHANCED SERVICES,105341380,06/04/16,912514,"4,236.40",PUTNEYMEAD GROUP MEDICAL PRACTICE H85012,SP0006951
WANDSWORTH COUNCIL,PH,,HEALTH,Revenue,LOCALLY ENHANCED SERVICES,105341380,06/04/16,912504,726.24,QUEENSTOWN ROAD MEDICAL PRACTICE H85003,SP0003591
WANDSWORTH COUNCIL,PH,,HEALTH,Revenue,LOCALLY ENHANCED SERVICES,105341380,06/04/16,912505,356.65,THE ALTON PRACTICE H85065,SP0008381
WANDSWORTH COUNCIL,PH,,HEALTH,Revenue,LOCALLY ENHANCED SERVICES,105341380,06/04/16,912505,"1,270.92",THE ALTON PRACTICE H85065,SP0008381
WANDSWORTH COUNCIL,PH,,HEALTH,Revenue,SOFTWARE FOR MANAGING DATA,105341510,06/04/16,912482,"8,200.00",WEBSTAR HEALTH LTD,SP0006752
WANDSWORTH COUNCIL,PH,,HEALTH,Revenue,SUB/ACHL MISUSE CARERS SERVICE,106141460,08/04/16,914830,"12,450.00",ALCOHOL HEALTH NETWORK CIC,SP0010743
WANDSWORTH COUNCIL,PH,,HEALTH,Revenue,PRESCRIBING SERVICES,106340550,20/04/16,925148,38.00,AMICHEM LIMITED FNQ61 T/A KRYSTAL PHARMA,SP0008457
WANDSWORTH COUNCIL,PH,,HEALTH,Revenue,PRESCRIBING SERVICES,106340550,20/04/16,925148,462.63,AMICHEM LIMITED FNQ61 T/A KRYSTAL PHARMA,SP0008457
WANDSWORTH COUNCIL,PH,,HEALTH,Revenue,PRESCRIBING SERVICES,106340550,18/04/16,923747,855.73,BARKERS CHEMIST LTD,SP0005021
WANDSWORTH COUNCIL,PH,,HEALTH,Revenue,PRESCRIBING SERVICES,106340550,18/04/16,923747,64.00,BARKERS CHEMIST LTD,SP0005021
WANDSWORTH COUNCIL,PH,,HEALTH,Revenue,PRESCRIBING SERVICES,106340550,18/04/16,923752,578.02,DAY LEWIS PLC,SP0007580
WANDSWORTH COUNCIL,PH,,HEALTH,Revenue,PRESCRIBING SERVICES,106340550,18/04/16,923752,40.00,DAY LEWIS PLC,SP0007580
WANDSWORTH COUNCIL,PH,,HEALTH,Revenue,PRESCRIBING SERVICES,106340550,20/04/16,924806,535.77,JAYACHOICE LTD,SP0007824
WANDSWORTH COUNCIL,PH,,HEALTH,Revenue,PRESCRIBING SERVICES,106340550,20/04/16,924806,44.00,JAYACHOICE LTD,SP0007824
WANDSWORTH COUNCIL,PH,,HEALTH,Revenue,PRESCRIBING SERVICES,106340550,20/04/16,925022,"1,508.80",PEARL CHEMIST LTD FDV93 T/A LORDS PHARMA,SP0008419
WANDSWORTH COUNCIL,PH,,HEALTH,Revenue,PRESCRIBING SERVICES,106340550,20/04/16,925022,102.00,PEARL CHEMIST LTD FDV93 T/A LORDS PHARMA,SP0008419
WANDSWORTH COUNCIL,PH,,HEALTH,Revenue,GP LES CONTRACTS,106341520,08/04/16,914832,140.00,CARE UK CLINICAL SERVICES LTD,SP0005790
WANDSWORTH COUNCIL,PH,,HEALTH,Revenue,GP LES CONTRACTS,106341520,06/04/16,912365,70.00,GRAFTON MEDICAL PARTNERS Y02423,SP0008442
WANDSWORTH COUNCIL,PH,,HEALTH,Revenue,GP LES CONTRACTS,106341520,06/04/16,912564,350.00,HEATHBRIDGE PRACTICE,SP0008179
WANDSWORTH COUNCIL,PH,,HEALTH,Revenue,GP LES CONTRACTS,106341520,06/04/16,912514,560.00,PUTNEYMEAD GROUP MEDICAL PRACTICE H85012,SP0006951
WANDSWORTH COUNCIL,PH,,HEALTH,Revenue,GP LES CONTRACTS,106341520,06/04/16,912504,70.00,QUEENSTOWN ROAD MEDICAL PRACTICE H85003,SP0003591
WANDSWORTH COUNCIL,PH,,SERVICES,Revenue,PROJECT WORK,107034800,08/04/16,914828,"1,498.27",ALTHORPE SOCIAL FUND,SP0003183
WANDSWORTH COUNCIL,PH,,COMMUNICATIONS & COMP,Revenue,I.T. EQUIPMENT & MAINTENANCE,107836210,21/04/16,925972,153.75,DANWOOD GROUP LTD,SP0002739
WANDSWORTH COUNCIL,PH,,COMMUNICATIONS & COMP,Revenue,I.T. EQUIPMENT & MAINTENANCE,107836210,21/04/16,925972,153.75,DANWOOD GROUP LTD,SP0002739
WANDSWORTH COUNCIL,PH,,COMMUNICATIONS & COMP,Revenue,I.T. EQUIPMENT & MAINTENANCE,107836210,21/04/16,925972,153.75,DANWOOD GROUP LTD,SP0002739
WANDSWORTH COUNCIL,PH,,COMMUNICATIONS & COMP,Revenue,I.T. EQUIPMENT & MAINTENANCE,107836210,21/04/16,925972,72.45,DANWOOD GROUP LTD,SP0002739
WANDSWORTH COUNCIL,PH,,SERVICES,Revenue,PROJECT WORK,108034800,14/04/16,921699,898.05,AGE UK WANDSWORTH,SP0005795
WANDSWORTH COUNCIL,PH,,SERVICES,Revenue,PROJECT WORK,108134800,18/04/16,923755,"12,000.00",AIR SPORTS NETWORK,SP0006715
WANDSWORTH COUNCIL,NGF HS,,SERVICES,Revenue,HIPS,110034460,06/04/16,913432,"1,260.00",GORDON BROWN,SP0002176
WANDSWORTH COUNCIL,NGF HS,ADMINISTRATION,SERVICES,Revenue,SOLICITORS FEES,110034880,14/04/16,921912,"3,525.00",Kinleigh Folkard & Hayward,RG0000001
WANDSWORTH COUNCIL,NGF CS,FINANCE,ENERGY,Revenue,ENERGY COSTS - ELECTRICITY,111010700,26/04/16,932083,633.91,EDF ENERGY CUSTOMER FIELD SERVICES,SP0001428
WANDSWORTH COUNCIL,NGF CS,,PRIVATE,Revenue,REFUSE COLLECTN & PEST CONTROL,111045500,19/04/16,924024,"1,202.69",SITA UK LTD,SP0000507
WANDSWORTH COUNCIL,NGF CS,,PRIVATE,Revenue,REFUSE COLLECTN & PEST CONTROL,111045500,19/04/16,924025,534.79,SITA UK LTD,SP0000507
WANDSWORTH COUNCIL,NGF CS,,PRIVATE,Revenue,REFUSE COLLECTN & PEST CONTROL,111545500,06/04/16,914093,683.43,SITA UK LTD,SP0000507
WANDSWORTH COUNCIL,NGF CS,,PRIVATE,Revenue,REFUSE COLLECTN & PEST CONTROL,112245500,06/04/16,914086,690.83,SITA UK LTD,SP0000507
WANDSWORTH COUNCIL,NGF CS,,PRIVATE,Revenue,REFUSE COLLECTN & PEST CONTROL,112245500,06/04/16,914095,10.83,SITA UK LTD,SP0000507
WANDSWORTH COUNCIL,NGF CS,,PRIVATE,Revenue,REFUSE COLLECTN & PEST CONTROL,112345500,06/04/16,914095,680.00,SITA UK LTD,SP0000507
WANDSWORTH COUNCIL,NGF CS,,PRIVATE,Revenue,REFUSE COLLECTN & PEST CONTROL,112945500,06/04/16,914088,690.83,SITA UK LTD,SP0000507
WANDSWORTH COUNCIL,NGF CS,,PRIVATE,Revenue,REFUSE COLLECTN & PEST CONTROL,112945500,06/04/16,914406,690.83,SITA UK LTD,SP0000507
WANDSWORTH COUNCIL,NGF CS,,PRIVATE,Revenue,REFUSE COLLECTN & PEST CONTROL,112945500,14/04/16,917056,690.83,SITA UK LTD,SP0000507
WANDSWORTH COUNCIL,NGF CS,,CLEANING & DOMESTIC SUPPLIES,Revenue,CLEANING & DOMESTIC SUPPLIES,113813010,06/04/16,912452,"2,105.35",WESSEX PRODUCTS (LEASING) LTD,SP0002972
WANDSWORTH COUNCIL,NGF CS,,CLEANING & DOMESTIC SUPPLIES,Revenue,CLEANING & DOMESTIC SUPPLIES,113813010,27/04/16,928735,"2,105.35",WESSEX PRODUCTS (LEASING) LTD,SP0002972
WANDSWORTH COUNCIL,NGF CS,,CLEANING & DOMESTIC SUPPLIES,Revenue,CLEANING CONTRACT,113813020,19/04/16,924019,"55,061.68",OCEAN INTEGRATED SERVICES LTD,SP0001062
WANDSWORTH COUNCIL,NGF CS,,CLEANING & DOMESTIC SUPPLIES,Revenue,CLEANING CONTRACT,113813020,14/04/16,921714,"1,595.75",PHS GROUP PLC,SP0001063
WANDSWORTH COUNCIL,NGF CS,,INDIRECT,Revenue,TRAINING - APPROVED QUALS,114100760,29/04/16,935534,750.00,CIPFA BUSINESS LTD,SP0002601
WANDSWORTH COUNCIL,NGF CS,,"EQUIPMENT, FURNITURE & MATS",Revenue,"EQUIPMENT, FURNITURE & MATS",114130000,05/04/16,912560,610.00,EDMUNDSON ELECTRICAL LTD,SP0000311
WANDSWORTH COUNCIL,NGF CS,,"EQUIPMENT, FURNITURE & MATS",Revenue,"EQUIPMENT, FURNITURE & MATS",114130000,05/04/16,912560,375.00,EDMUNDSON ELECTRICAL LTD,SP0000311
WANDSWORTH COUNCIL,NGF CS,,"EQUIPMENT, FURNITURE & MATS",Revenue,"EQUIPMENT, FURNITURE & MATS",114130000,05/04/16,912560,112.36,EDMUNDSON ELECTRICAL LTD,SP0000311
WANDSWORTH COUNCIL,NGF CDC,,"REPAIRS, ALTERATIONS & MTCE",Revenue,REMOVALS & REORGANISATIONS,114210140,11/04/16,917077,642.00,JT ENTERPRISES,SP0000349
WANDSWORTH COUNCIL,NGF CDC,,PRIVATE,Revenue,GENERAL CONTRACT WORK,11424537K07361,26/04/16,932394,"2,678.15",DH CROFTS LTD,SP0000076
WANDSWORTH COUNCIL,NGF CS,,CLEANING & DOMESTIC SUPPLIES,Revenue,CLEANING CONTRACT,115213020,14/04/16,921713,433.68,OCS GROUP UK LTD,SP0000940
WANDSWORTH COUNCIL,NGF CS,,CLEANING & DOMESTIC SUPPLIES,Revenue,CLEANING CONTRACT,115213020,14/04/16,921713,399.36,OCS GROUP UK LTD,SP0000940
WANDSWORTH COUNCIL,NGF CS,,COMMUNICATIONS & COMP,Revenue,I.T. EQUIPMENT & MAINTENANCE,120136210,21/04/16,926636,853.42,FATHOM,SP0004973
WANDSWORTH COUNCIL,NGF CS,,GRANTS & SUBSCRIPTIONS,Revenue,SUBSCRIPTIONS,120137640,13/04/16,917588,703.33,E S SINGLETON,SP0006206
WANDSWORTH COUNCIL,NGF CS,,GRANTS & SUBSCRIPTIONS,Revenue,SUBSCRIPTIONS,120137640,29/04/16,936338,500.00,LAWYERS IN LOCAL GOVERNMENT,SP0007681
WANDSWORTH COUNCIL,NGF CS,,SERVICES,Revenue,CONSULTANTS FEES,120534200,18/04/16,921727,"2,244.00",CAMELOT PROPERTY MANAGEMENT LTD,SP0001064
WANDSWORTH COUNCIL,NGF CS,,OTHER AGENCIES,Revenue,DISBURSEMENTS,120643250,08/04/16,913996,500.00,1 GARDEN COURT CHAMBERS,SP0009291
WANDSWORTH COUNCIL,NGF CS,,OTHER AGENCIES,Revenue,DISBURSEMENTS,120643250,14/04/16,918974,666.66,1 GARDEN COURT CHAMBERS,SP0009291
WANDSWORTH COUNCIL,NGF CS,,OTHER AGENCIES,Revenue,DISBURSEMENTS,120643250,18/04/16,923756,800.00,1 GARDEN COURT CHAMBERS,SP0009291
WANDSWORTH COUNCIL,NGF CS,,OTHER AGENCIES,Revenue,DISBURSEMENTS,120643250,28/04/16,931047,425.00,1 GARDEN COURT CHAMBERS,SP0009291
WANDSWORTH COUNCIL,NGF CS,,OTHER AGENCIES,Revenue,DISBURSEMENTS,120643250,28/04/16,933377,"1,450.00",1 GARDEN COURT CHAMBERS,SP0009291
WANDSWORTH COUNCIL,NGF CS,,OTHER AGENCIES,Revenue,DISBURSEMENTS,120643250,06/04/16,912358,"1,627.50",4 BRICK COURT MANAGEMENT LIMITED,SP0007380
WANDSWORTH COUNCIL,NGF CS,,OTHER AGENCIES,Revenue,DISBURSEMENTS,120643250,28/04/16,933082,"4,033.33",4 BRICK COURT MANAGEMENT LIMITED,SP0007380
WANDSWORTH COUNCIL,NGF CS,,OTHER AGENCIES,Revenue,DISBURSEMENTS,120643250,18/04/16,924001,"3,350.00",42 BEDFORD ROW CHAMBERS,SP0009440
WANDSWORTH COUNCIL,NGF CS,,OTHER AGENCIES,Revenue,DISBURSEMENTS,120643250,21/04/16,925122,500.00,42 BEDFORD ROW CHAMBERS,SP0009440
WANDSWORTH COUNCIL,NGF CS,,OTHER AGENCIES,Revenue,DISBURSEMENTS,120643250,28/04/16,932069,"1,000.00",42 BEDFORD ROW CHAMBERS,SP0009440
WANDSWORTH COUNCIL,NGF CS,,OTHER AGENCIES,Revenue,DISBURSEMENTS,120643250,08/04/16,914825,600.00,ARDEN CHAMBERS LTD,SP0010473
WANDSWORTH COUNCIL,NGF CS,,OTHER AGENCIES,Revenue,DISBURSEMENTS,120643250,06/04/16,911073,846.50,BINDMANS LLP,SP0005334
WANDSWORTH COUNCIL,NGF CS,,OTHER AGENCIES,Revenue,DISBURSEMENTS,120643250,06/04/16,911073,749.00,BINDMANS LLP,SP0005334
WANDSWORTH COUNCIL,NGF CS,,OTHER AGENCIES,Revenue,DISBURSEMENTS,120643250,11/04/16,916047,"2,750.00",CORNERSTONE BACS,SP0004477
WANDSWORTH COUNCIL,NGF CS,,OTHER AGENCIES,Revenue,DISBURSEMENTS,120643250,18/04/16,923757,"3,000.00",CORNERSTONE BACS,SP0004477
WANDSWORTH COUNCIL,NGF CS,,OTHER AGENCIES,Revenue,DISBURSEMENTS,120643250,20/04/16,926043,"1,200.00",CORNERSTONE BACS,SP0004477
WANDSWORTH COUNCIL,NGF CS,,OTHER AGENCIES,Revenue,DISBURSEMENTS,120643250,13/04/16,916054,"11,200.00",CROWN OFFICE CHAMBERS,SP0009718
WANDSWORTH COUNCIL,NGF CS,,OTHER AGENCIES,Revenue,DISBURSEMENTS,120643250,28/04/16,931537,524.05,DR MARTIN LOCK,SP0009184
WANDSWORTH COUNCIL,NGF CS,,OTHER AGENCIES,Revenue,DISBURSEMENTS,120643250,08/04/16,914843,"1,008.00",DR RODGER KENNEDY,SP0009927
WANDSWORTH COUNCIL,NGF CS,,OTHER AGENCIES,Revenue,DISBURSEMENTS,120643250,18/04/16,923763,675.00,DR RODGER KENNEDY,SP0009927
WANDSWORTH COUNCIL,NGF CS,,OTHER AGENCIES,Revenue,DISBURSEMENTS,120643250,06/04/16,912488,"3,620.00",FOURTEEN,SP0009555
WANDSWORTH COUNCIL,NGF CS,,OTHER AGENCIES,Revenue,DISBURSEMENTS,120643250,06/04/16,912489,720.00,FOURTEEN,SP0009555
WANDSWORTH COUNCIL,NGF CS,,OTHER AGENCIES,Revenue,DISBURSEMENTS,120643250,06/04/16,912490,"1,700.00",FOURTEEN,SP0009555
WANDSWORTH COUNCIL,NGF CS,,OTHER AGENCIES,Revenue,DISBURSEMENTS,120643250,06/04/16,912520,825.00,FOURTEEN,SP0009555
WANDSWORTH COUNCIL,NGF CS,,OTHER AGENCIES,Revenue,DISBURSEMENTS,120643250,06/04/16,912522,575.00,FOURTEEN,SP0009555
WANDSWORTH COUNCIL,NGF CS,,OTHER AGENCIES,Revenue,DISBURSEMENTS,120643250,08/04/16,913991,675.00,FOURTEEN,SP0009555
WANDSWORTH COUNCIL,NGF CS,,OTHER AGENCIES,Revenue,DISBURSEMENTS,120643250,08/04/16,913994,720.00,FOURTEEN,SP0009555
WANDSWORTH COUNCIL,NGF CS,,OTHER AGENCIES,Revenue,DISBURSEMENTS,120643250,18/04/16,923760,625.00,FOURTEEN,SP0009555
WANDSWORTH COUNCIL,NGF CS,,OTHER AGENCIES,Revenue,DISBURSEMENTS,120643250,18/04/16,923762,625.00,FOURTEEN,SP0009555
WANDSWORTH COUNCIL,NGF CS,,OTHER AGENCIES,Revenue,DISBURSEMENTS,120643250,20/04/16,926042,"3,449.25",HELENA WARE,SP0010293
WANDSWORTH COUNCIL,NGF CS,,OTHER AGENCIES,Revenue,DISBURSEMENTS,120643250,29/04/16,933773,480.35,HOWARD AGENCY,SP0003368
WANDSWORTH COUNCIL,NGF CS,ADMINISTRATION,OTHER AGENCIES,Revenue,DISBURSEMENTS,120643250,22/04/16,929150,"2,655.15",Letechia Consulting Limited,RG0000001
WANDSWORTH COUNCIL,NGF CS,,OTHER AGENCIES,Revenue,DISBURSEMENTS,120643250,08/04/16,914422,452.40,PARENTING PROFILES LTD,SP0010442
WANDSWORTH COUNCIL,NGF CS,ADMINISTRATION,OTHER AGENCIES,Revenue,DISBURSEMENTS,120643250,05/04/16,912701,750.00,Re-Cognition,RG0000001
WANDSWORTH COUNCIL,NGF CS,ADMINISTRATION,OTHER AGENCIES,Revenue,DISBURSEMENTS,120643250,05/04/16,912703,880.00,Re-Cognition,RG0000001
WANDSWORTH COUNCIL,NGF CS,,OTHER AGENCIES,Revenue,DISBURSEMENTS,120643250,06/04/16,912536,969.00,SHARPE PRITCHARD LLP,SP0003677
WANDSWORTH COUNCIL,NGF CS,,OTHER AGENCIES,Revenue,DISBURSEMENTS,120643250,06/04/16,912536,"3,301.70",SHARPE PRITCHARD LLP,SP0003677
WANDSWORTH COUNCIL,NGF CS,,OTHER AGENCIES,Revenue,DISBURSEMENTS,120643250,06/04/16,912539,"18,274.26",SHARPE PRITCHARD LLP,SP0003677
WANDSWORTH COUNCIL,NGF CS,,OTHER AGENCIES,Revenue,DISBURSEMENTS,120643250,06/04/16,912539,837.00,SHARPE PRITCHARD LLP,SP0003677
WANDSWORTH COUNCIL,NGF CS,ADMINISTRATION,OTHER AGENCIES,Revenue,DISBURSEMENTS,120643250,28/04/16,935112,"3,750.00",Wragge Lawrence Graham & Co LLP,RG0000001
WANDSWORTH COUNCIL,NGF CS,,OTHER AGENCIES,Revenue,DISBURSEMENTS,120643250,06/04/16,912487,"2,500.00",ZANEIL LIMITED T/A DR INYANG TAKON,SP0010443
WANDSWORTH COUNCIL,NGF CS,,PRIVATE,Revenue,"CONTRACT 6- HWYS, PLAN ETC",120646170,06/04/16,912485,"3,613.38",SHARPE PRITCHARD LLP,SP0003677
WANDSWORTH COUNCIL,NGF CS,,PRIVATE,Revenue,"CONTRACT 6- HWYS, PLAN ETC",120646170,06/04/16,912537,"30,120.78",SHARPE PRITCHARD LLP,SP0003677
WANDSWORTH COUNCIL,NGF CS,,PRIVATE,Revenue,"CONTRACT 6- HWYS, PLAN ETC",120646170,06/04/16,912538,"30,894.30",SHARPE PRITCHARD LLP,SP0003677
WANDSWORTH COUNCIL,NGF CS,,PRIVATE,Revenue,"CONTRACT 6- HWYS, PLAN ETC",120646170,14/04/16,918981,"54,692.34",SHARPE PRITCHARD LLP,SP0003677
WANDSWORTH COUNCIL,NGF CS,,PRIVATE,Revenue,"CONTRACT 6- HWYS, PLAN ETC",120646170,28/04/16,932077,"30,507.54",SHARPE PRITCHARD LLP,SP0003677
WANDSWORTH COUNCIL,NGF CS,,PRIVATE,Revenue,"CONTRACT 6- HWYS, PLAN ETC",120646170,28/04/16,932078,"1,931.74",SHARPE PRITCHARD LLP,SP0003677
WANDSWORTH COUNCIL,NGF CS,,PRIVATE,Revenue,LOT 1 - LLORD SERVS PROP MGMT,120746180,14/04/16,918939,"16,546.61",LAMBERT SMITH HAMPTON,SP0002515
WANDSWORTH COUNCIL,NGF CS,,PRIVATE,Revenue,LOT 1 - LLORD SERVS PROP MGMT,120746180,14/04/16,918940,"5,679.62",LAMBERT SMITH HAMPTON,SP0002515
WANDSWORTH COUNCIL,NGF CS,,PRINTING STAT & GEN OFFICE EXP,Revenue,PHOTOCOPYING,120833380,29/04/16,934612,"5,030.00",DANWOOD GROUP LTD,SP0002739
WANDSWORTH COUNCIL,NGF CS,,PRINTING STAT & GEN OFFICE EXP,Revenue,PHOTOCOPYING,120833380,29/04/16,934612,89.00,DANWOOD GROUP LTD,SP0002739
WANDSWORTH COUNCIL,NGF CS,,PRINTING STAT & GEN OFFICE EXP,Revenue,PHOTOCOPYING,120833380,29/04/16,934612,627.75,DANWOOD GROUP LTD,SP0002739
WANDSWORTH COUNCIL,NGF CS,,PRINTING STAT & GEN OFFICE EXP,Revenue,OUTWORK - WEB OFFSET,121333580,29/04/16,935824,"1,079.40",ST IVES MANAGEMENT SERVICES LTD,SP0010254
WANDSWORTH COUNCIL,NGF CS,,PRINTING STAT & GEN OFFICE EXP,Revenue,OUTWORK - WEB OFFSET,121333580,29/04/16,935825,"1,200.48",ST IVES MANAGEMENT SERVICES LTD,SP0010254
WANDSWORTH COUNCIL,NGF CS,,PRINTING STAT & GEN OFFICE EXP,Revenue,OUTWORK - WEB OFFSET,121333580,29/04/16,935826,738.00,ST IVES MANAGEMENT SERVICES LTD,SP0010254
WANDSWORTH COUNCIL,NGF CS,,PRINTING STAT & GEN OFFICE EXP,Revenue,OUTWORK - LITHO,121333590,29/04/16,935812,663.00,IMPRESS PRINT SERVICES LTD,SP0003209
WANDSWORTH COUNCIL,NGF CS,,PRINTING STAT & GEN OFFICE EXP,Revenue,OUTWORK - LITHO,121333590,29/04/16,935814,961.00,IMPRESS PRINT SERVICES LTD,SP0003209
WANDSWORTH COUNCIL,NGF CS,,PRINTING STAT & GEN OFFICE EXP,Revenue,OUTWORK - LITHO,121333590,29/04/16,935815,965.00,IMPRESS PRINT SERVICES LTD,SP0003209
WANDSWORTH COUNCIL,NGF CS,,PRINTING STAT & GEN OFFICE EXP,Revenue,OUTWORK - LITHO,121333590,29/04/16,935821,655.00,LIBERTY SERVICES LIMITED,SP0002024
WANDSWORTH COUNCIL,NGF CS,,MISC,Revenue,MISCELLANEOUS EXPENSES,121338500,29/04/16,935822,"1,232.35",LONDON LETTERBOX MARKETING,SP0000546
WANDSWORTH COUNCIL,NGF CDC,,PRINTING STAT & GEN OFFICE EXP,Revenue,PUBLICITY,122033470,08/04/16,914835,649.00,DOTMAILER LTD,SP0006264
WANDSWORTH COUNCIL,NGF CS,,INDIRECT,Revenue,IN-SERVICE TRAINING-SLA,123000740,08/04/16,913979,"1,095.00",ELITE TRAINING & CONSULTANCY LTD,SP0010349
WANDSWORTH COUNCIL,NGF CS,,INDIRECT,Revenue,IN-SERVICE TRAINING-SLA,123000740,08/04/16,914596,"1,355.00",IT GOVERNANCE LIMITED,SP0002070
WANDSWORTH COUNCIL,NGF CS,,INDIRECT,Revenue,IN-SERVICE TRAINING-SLA,123000740,13/04/16,916529,"7,335.00",TRAINING SYNERGY LTD,SP0000312
WANDSWORTH COUNCIL,NGF CS,,"EQUIPMENT, FURNITURE & MATS",Revenue,"EQUIPMENT, FURNITURE & MATS",123030000,06/04/16,912473,"1,409.00",INSIGHT DIRECT (UK) LTD,SP0002399
WANDSWORTH COUNCIL,NGF CS,,INDIRECT,Revenue,HEALTH CARE PROMOTIONAL,123200630,13/04/16,917560,"9,322.50",WORKPLACE OPTIONS,SP0005551
WANDSWORTH COUNCIL,NGF CS,,INDIRECT,Revenue,CHILDCARE VOUCHERS,123200650,14/04/16,919005,707.63,COMPUTERSHARE VOUCHER SERVICES,SP0003037
WANDSWORTH COUNCIL,NGF CS,,INDIRECT,Revenue,CHILDCARE VOUCHERS,123200650,21/04/16,926894,112.04,COMPUTERSHARE VOUCHER SERVICES,SP0003037
WANDSWORTH COUNCIL,NGF CS,,SERVICES,Revenue,OHS SESSIONAL DOCTOR,123234690,13/04/16,917552,"4,930.20",HJM ASSOCIATES,SP0003667
WANDSWORTH COUNCIL,NGF CS,,SERVICES,Revenue,SERVICES - GENERAL,123234870,13/04/16,917554,431.12,QUEST INFORMATION SYSTEMS LTD - DICTATEN,SP0002265
WANDSWORTH COUNCIL,NGF CS,,MISC,Revenue,MISCELLANEOUS EXPENSES,123238500,28/04/16,929723,"15,669.00",DORSET SOFTWARE SERVICES LIMITED,SP0001072
WANDSWORTH COUNCIL,NGF CS,,PRIVATE,Revenue,GENERAL CONTRACT WORK,123245370,28/04/16,933075,"4,375.00",GATENBY SANDERSON LTD,SP0009545
WANDSWORTH COUNCIL,NGF CS,,PRIVATE,Revenue,GENERAL CONTRACT WORK,123245370,28/04/16,933076,"8,215.00",GATENBY SANDERSON LTD,SP0009545
WANDSWORTH COUNCIL,NGF CS,,INTERNAL RECHARGES,Revenue,RECHARGE - OCCUPATIONAL HEALTH,123291390,11/04/16,913956,512.28,MEDISAVE (UK) LTD,SP0004467
WANDSWORTH COUNCIL,NGF CDC,,PRINTING STAT & GEN OFFICE EXP,Revenue,PRINTING AND STATIONERY,124033420,14/04/16,918973,752.30,SHAW & SONS LTD,SP0002659
WANDSWORTH COUNCIL,NGF CDC,,PRINTING STAT & GEN OFFICE EXP,Revenue,PRINTING AND STATIONERY,124033420,14/04/16,918973,60.00,SHAW & SONS LTD,SP0002659
WANDSWORTH COUNCIL,NGF CDC,,COMMUNICATIONS & COMP,Revenue,WEBSITE,124236550,08/04/16,913978,"7,010.00",MODERN MINDSET LTD,SP0007534
WANDSWORTH COUNCIL,NGF CS,,COMMUNICATIONS & COMP,Revenue,COMMUNICATIONS - POSTAGE,124736000,08/04/16,915953,826.10,ROYAL MAIL,SP0001067
WANDSWORTH COUNCIL,PH,,SERVICES,Revenue,PROJECT WORK,125134800,06/04/16,911582,"7,000.00",4 CHILDREN (TRADING) LTD,SP0002728
WANDSWORTH COUNCIL,PH,,SERVICES,Revenue,PROJECT WORK,125134800,08/04/16,914845,"4,900.25",REFER-ALL LTD,SP0006505
WANDSWORTH COUNCIL,NGF CS,,COMMUNICATIONS & COMP,Revenue,I.T. EQUIPMENT & MAINTENANCE,126036210,05/04/16,912402,162.78,DANWOOD GROUP LTD,SP0002739
WANDSWORTH COUNCIL,NGF CS,,COMMUNICATIONS & COMP,Revenue,I.T. EQUIPMENT & MAINTENANCE,126036210,05/04/16,912402,145.83,DANWOOD GROUP LTD,SP0002739
WANDSWORTH COUNCIL,NGF CS,,COMMUNICATIONS & COMP,Revenue,I.T. EQUIPMENT & MAINTENANCE,126036210,05/04/16,912402,162.78,DANWOOD GROUP LTD,SP0002739
WANDSWORTH COUNCIL,NGF CS,,COMMUNICATIONS & COMP,Revenue,I.T. EQUIPMENT & MAINTENANCE,126036210,05/04/16,912402,162.78,DANWOOD GROUP LTD,SP0002739
WANDSWORTH COUNCIL,NGF CS,,"EQUIPMENT, FURNITURE & MATS",Revenue,ADAPTATIONS - COUNCIL,126130020,14/04/16,918978,"16,500.00",SUNA COMMUNICATION LTD,SP0000491
WANDSWORTH COUNCIL,NGF CS,,"EQUIPMENT, FURNITURE & MATS",Revenue,ADAPTATIONS - COUNCIL,126130020,18/04/16,923783,"2,088.86",SUNA COMMUNICATION LTD,SP0000491
WANDSWORTH COUNCIL,NGF CS,,"EQUIPMENT, FURNITURE & MATS",Revenue,ADAPTATIONS - COUNCIL,126130020,22/04/16,928834,"3,009.36",SUNA COMMUNICATION LTD,SP0000491
WANDSWORTH COUNCIL,NGF CS,,"EQUIPMENT, FURNITURE & MATS",Revenue,CCTV CONTROL ROOM DEVELOPMENT,126130030,18/04/16,923793,"9,507.23",VIRGIN MEDIA BUSINESS,SP0003737
WANDSWORTH COUNCIL,NGF CS,,"EQUIPMENT, FURNITURE & MATS",Revenue,CCTV CONTROL ROOM DEVELOPMENT,126130030,18/04/16,923794,"3,486.12",VIRGIN MEDIA BUSINESS,SP0003737
WANDSWORTH COUNCIL,NGF CS,,"EQUIPMENT, FURNITURE & MATS",Revenue,CCTV CONTROL ROOM DEVELOPMENT,126130030,26/04/16,931048,"52,571.97",VIRGIN MEDIA BUSINESS,SP0003737
WANDSWORTH COUNCIL,NGF CS,,"EQUIPMENT, FURNITURE & MATS",Revenue,CCTV FIBRE RENTALS,126130040,18/04/16,923790,"7,713.33",VODAFONE CORPORATE,SP0001107
WANDSWORTH COUNCIL,NGF CS,,"EQUIPMENT, FURNITURE & MATS",Revenue,CONSUMABLES,126130080,08/04/16,915607,500.00,BT PAYMENT SERVICES LTD,SP0001093
WANDSWORTH COUNCIL,NGF CS,,"EQUIPMENT, FURNITURE & MATS",Revenue,CONSUMABLES,126130080,18/04/16,923785,"181,257.12",BT PAYMENT SERVICES LTD,SP0001093
WANDSWORTH COUNCIL,NGF CS,,"EQUIPMENT, FURNITURE & MATS",Revenue,CONSUMABLES,126130080,19/04/16,925945,844.52,BT PAYMENT SERVICES LTD,SP0001093
WANDSWORTH COUNCIL,NGF CS,,"EQUIPMENT, FURNITURE & MATS",Revenue,CONSUMABLES,126130080,26/04/16,931529,"18,679.00",BT PAYMENT SERVICES LTD,SP0001093
WANDSWORTH COUNCIL,NGF CS,,"EQUIPMENT, FURNITURE & MATS",Revenue,CONSUMABLES,126130080,26/04/16,931530,392.80,BT PAYMENT SERVICES LTD,SP0001093
WANDSWORTH COUNCIL,NGF CS,,"EQUIPMENT, FURNITURE & MATS",Revenue,CONSUMABLES,126130080,26/04/16,931530,30.00,BT PAYMENT SERVICES LTD,SP0001093
WANDSWORTH COUNCIL,NGF CS,,"EQUIPMENT, FURNITURE & MATS",Revenue,CONSUMABLES,126130080,26/04/16,931531,"4,770.27",BT PAYMENT SERVICES LTD,SP0001093
WANDSWORTH COUNCIL,NGF CS,,"EQUIPMENT, FURNITURE & MATS",Revenue,CONSUMABLES,126130080,29/04/16,934609,"9,927.25",BT PAYMENT SERVICES LTD,SP0001093
WANDSWORTH COUNCIL,NGF CS,,"EQUIPMENT, FURNITURE & MATS",Revenue,CONSUMABLES,126130080,29/04/16,934609,90.00,BT PAYMENT SERVICES LTD,SP0001093
WANDSWORTH COUNCIL,NGF CS,,"EQUIPMENT, FURNITURE & MATS",Revenue,"EQUIPMENT, FURNITURE & MATS",126330000,22/04/16,921757,"2,426.11",CTI DATA SOLUTIONS LTD,SP0000824
WANDSWORTH COUNCIL,NGF CS,,"EQUIPMENT, FURNITURE & MATS",Revenue,"EQUIPMENT, FURNITURE & MATS",126330000,13/04/16,917606,"2,360.00",INCOM TELECOMMUNICATIONS,SP0000568
WANDSWORTH COUNCIL,NGF CS,,"EQUIPMENT, FURNITURE & MATS",Revenue,"EQUIPMENT, FURNITURE & MATS",126330000,13/04/16,917606,280.00,INCOM TELECOMMUNICATIONS,SP0000568
WANDSWORTH COUNCIL,NGF CS,,"EQUIPMENT, FURNITURE & MATS",Revenue,"EQUIPMENT, FURNITURE & MATS",126330000,13/04/16,917606,8.75,INCOM TELECOMMUNICATIONS,SP0000568
WANDSWORTH COUNCIL,NGF CS,,"EQUIPMENT, FURNITURE & MATS",Revenue,"EQUIPMENT, FURNITURE & MATS",126530000,27/04/16,871123,"1,858.26",ESSENTIAL NET LTD,SP0008208
WANDSWORTH COUNCIL,NGF CS,,"EQUIPMENT, FURNITURE & MATS",Revenue,"EQUIPMENT, FURNITURE & MATS",126530000,27/04/16,871123,"1,645.86",ESSENTIAL NET LTD,SP0008208
WANDSWORTH COUNCIL,NGF CS,,"EQUIPMENT, FURNITURE & MATS",Revenue,"EQUIPMENT, FURNITURE & MATS",126530000,05/04/16,874523,"3,800.00",IDOX SOFTWARE LTD,SP0003110
WANDSWORTH COUNCIL,NGF CS,,"EQUIPMENT, FURNITURE & MATS",Revenue,"EQUIPMENT, FURNITURE & MATS",126530000,22/04/16,929172,"3,199.00",INCOM TELECOMMUNICATIONS,SP0000568
WANDSWORTH COUNCIL,NGF CS,,"EQUIPMENT, FURNITURE & MATS",Revenue,"EQUIPMENT, FURNITURE & MATS",126530000,22/04/16,929172,8.75,INCOM TELECOMMUNICATIONS,SP0000568
WANDSWORTH COUNCIL,NGF CS,,"EQUIPMENT, FURNITURE & MATS",Revenue,"EQUIPMENT, FURNITURE & MATS",126530000,19/04/16,924027,550.00,JONTEK LTD,SP0000310
WANDSWORTH COUNCIL,NGF CS,,"EQUIPMENT, FURNITURE & MATS",Revenue,"EQUIPMENT, FURNITURE & MATS",126530000,28/04/16,935072,"5,070.00",K3 BUSINESS TECHNOLOGY GROUP T/A K3 IBS,SP0010683
WANDSWORTH COUNCIL,NGF CS,,COMMUNICATIONS & COMP,Revenue,I.T. SOFTWARE,126536240,14/04/16,917018,"1,250.00",LANDESK INTERNATIONAL LTD,SP0008498
WANDSWORTH COUNCIL,NGF CS,,COMMUNICATIONS & COMP,Revenue,ICT SUPPORT,126536250,08/04/16,915326,"50,000.00",AGILISYS LIMITED,SP0010689
WANDSWORTH COUNCIL,NGF CS,,"EQUIPMENT, FURNITURE & MATS",Revenue,"EQUIPMENT, FURNITURE & MATS",126630000,20/04/16,926872,"9,450.00",JADU LIMITED LCB,SP0003050
WANDSWORTH COUNCIL,NGF CS,,"EQUIPMENT, FURNITURE & MATS",Revenue,"EQUIPMENT, FURNITURE & MATS",126630000,07/04/16,913987,649.00,KENTICO SOFTWARE LTD,SP0004603
WANDSWORTH COUNCIL,NGF CS,,"EQUIPMENT, FURNITURE & MATS",Revenue,"EQUIPMENT, FURNITURE & MATS",126630000,13/04/16,917890,885.00,NCC SERVICES LTD,SP0000702
WANDSWORTH COUNCIL,NGF CS,,COMMUNICATIONS & COMP,Revenue,I.T. SLA RECHARGE,126836230,14/04/16,918969,"8,144.87",CONTENDER SYSTEMS LTD,SP0005889
WANDSWORTH COUNCIL,NGF CS,,COMMUNICATIONS & COMP,Revenue,I.T. SLA RECHARGE,126836230,11/04/16,915978,"2,690.00",FOUR Js DEVELOPMENT TOOLS EUROPE LTD,SP0000574
WANDSWORTH COUNCIL,NGF CS,,COMMUNICATIONS & COMP,Revenue,I.T. - SAFFRON,126836260,12/04/16,917016,331.12,BANNER MANAGED COMMUNICATION,SP0003555
WANDSWORTH COUNCIL,NGF CS,,COMMUNICATIONS & COMP,Revenue,I.T. - SAFFRON,126836260,11/04/16,915592,"49,887.10",CIVICA UK LTD,SP0000394
WANDSWORTH COUNCIL,NGF CS,,COMMUNICATIONS & COMP,Revenue,I.T. - SAFFRON,126836260,22/04/16,928760,"1,300.00",CIVICA UK LTD,SP0000394
WANDSWORTH COUNCIL,CS,,DIRECT2,Revenue,AGENCY STAFF,128000510,06/04/16,912374,"17,643.29",MATRIX SCM LIMITED,SP0004572
WANDSWORTH COUNCIL,CS,,DIRECT2,Revenue,AGENCY STAFF,128000510,13/04/16,917036,"18,900.90",MATRIX SCM LIMITED,SP0004572
WANDSWORTH COUNCIL,CS,,DIRECT2,Revenue,AGENCY STAFF,128000510,18/04/16,923889,"14,189.55",MATRIX SCM LIMITED,SP0004572
WANDSWORTH COUNCIL,CS,,DIRECT2,Revenue,AGENCY STAFF,128000510,22/04/16,929101,"19,496.17",MATRIX SCM LIMITED,SP0004572
WANDSWORTH COUNCIL,CS,,DIRECT2,Revenue,AGENCY STAFF,128000510,29/04/16,935074,"20,229.37",MATRIX SCM LIMITED,SP0004572
WANDSWORTH COUNCIL,CS,,INDIRECT,Revenue,STAFF ADVERTISING - VACANCIES,128000960,06/04/16,912465,"5,931.43",PENNA PLC,SP0006290
WANDSWORTH COUNCIL,CS,,INDIRECT,Revenue,STAFF ADVERTISING - VACANCIES,128000960,18/04/16,922577,840.50,PENNA PLC,SP0006290
WANDSWORTH COUNCIL,CS,,INDIRECT,Revenue,STAFF ADVERTISING - VACANCIES,128000960,21/04/16,924018,"3,663.56",PENNA PLC,SP0006290
WANDSWORTH COUNCIL,CS,,INDIRECT,Revenue,STAFF ADVERTISING - VACANCIES,128000960,21/04/16,926050,"1,200.00",PENNA PLC,SP0006290
WANDSWORTH COUNCIL,CS,,INDIRECT,Revenue,STAFF ADVERTISING - VACANCIES,128000960,22/04/16,929100,"2,629.53",PENNA PLC,SP0006290
WANDSWORTH COUNCIL,CS,,INDIRECT,Revenue,STAFF ADVERTISING - VACANCIES,128000960,28/04/16,929456,"2,173.06",PENNA PLC,SP0006290
WANDSWORTH COUNCIL,CS,,INDIRECT,Revenue,STAFF ADVERTISING - VACANCIES,128000960,28/04/16,933080,791.00,PENNA PLC,SP0006290
WANDSWORTH COUNCIL,CS,,INDIRECT,Revenue,STAFF ADVERTISING - VACANCIES,128000960,28/04/16,934177,"4,169.37",PENNA PLC,SP0006290
WANDSWORTH COUNCIL,ASC,SOCIAL SERVICES,HIRE,Revenue,HIRE - TRANSPORT,130220410,13/04/16,919333,"1,033.32",A STAR TRANSPORT LTD,SP0000866
WANDSWORTH COUNCIL,ASC,SOCIAL SERVICES,HIRE,Revenue,HIRE - TRANSPORT,130220410,13/04/16,919334,"1,033.32",A STAR TRANSPORT LTD,SP0000866
WANDSWORTH COUNCIL,ASC,SOCIAL SERVICES,HIRE,Revenue,HIRE - TRANSPORT,130220410,13/04/16,919335,981.65,A STAR TRANSPORT LTD,SP0000866
WANDSWORTH COUNCIL,ASC,SOCIAL SERVICES,HIRE,Revenue,HIRE - TRANSPORT,130220410,13/04/16,919336,981.65,A STAR TRANSPORT LTD,SP0000866
WANDSWORTH COUNCIL,ASC,SOCIAL SERVICES,HIRE,Revenue,HIRE - TRANSPORT,130220410,13/04/16,919337,929.99,A STAR TRANSPORT LTD,SP0000866
WANDSWORTH COUNCIL,ASC,SOCIAL SERVICES,HIRE,Revenue,HIRE - TRANSPORT,130220410,13/04/16,919338,"1,244.88",A STAR TRANSPORT LTD,SP0000866
WANDSWORTH COUNCIL,ASC,SOCIAL SERVICES,HIRE,Revenue,HIRE - TRANSPORT,130220410,13/04/16,919341,"1,453.20",A STAR TRANSPORT LTD,SP0000866
WANDSWORTH COUNCIL,ASC,SOCIAL SERVICES,HIRE,Revenue,HIRE - TRANSPORT,130220410,13/04/16,919367,"1,053.20",A STAR TRANSPORT LTD,SP0000866
WANDSWORTH COUNCIL,ASC,SOCIAL SERVICES,HIRE,Revenue,HIRE - TRANSPORT,130220410,18/04/16,925037,752.00,A STAR TRANSPORT LTD,SP0000866
WANDSWORTH COUNCIL,ASC,SOCIAL SERVICES,HIRE,Revenue,HIRE - TRANSPORT,130220410,18/04/16,925038,744.00,A STAR TRANSPORT LTD,SP0000866
WANDSWORTH COUNCIL,ASC,SOCIAL SERVICES,HIRE,Revenue,HIRE - TRANSPORT,130220410,18/04/16,925039,700.00,A STAR TRANSPORT LTD,SP0000866
WANDSWORTH COUNCIL,ASC,SOCIAL SERVICES,HIRE,Revenue,HIRE - TRANSPORT,130220410,18/04/16,925040,724.00,A STAR TRANSPORT LTD,SP0000866
WANDSWORTH COUNCIL,ASC,SOCIAL SERVICES,HIRE,Revenue,HIRE - TRANSPORT,130220410,28/04/16,934398,997.00,A STAR TRANSPORT LTD,SP0000866
WANDSWORTH COUNCIL,ASC,SOCIAL SERVICES,HIRE,Revenue,HIRE - TRANSPORT,130220410,28/04/16,934399,404.00,A STAR TRANSPORT LTD,SP0000866
WANDSWORTH COUNCIL,ASC,SOCIAL SERVICES,HIRE,Revenue,HIRE - TRANSPORT,130220410,28/04/16,934401,520.00,A STAR TRANSPORT LTD,SP0000866
WANDSWORTH COUNCIL,ASC,SOCIAL SERVICES,HIRE,Revenue,HIRE - TRANSPORT,130220410,28/04/16,934403,564.00,A STAR TRANSPORT LTD,SP0000866
WANDSWORTH COUNCIL,ASC,SOCIAL SERVICES,HIRE,Revenue,HIRE - TRANSPORT,130220410,28/04/16,934404,568.00,A STAR TRANSPORT LTD,SP0000866
WANDSWORTH COUNCIL,ASC,SOCIAL SERVICES,HIRE,Revenue,HIRE - TRANSPORT,130220410,28/04/16,934405,880.00,A STAR TRANSPORT LTD,SP0000866
WANDSWORTH COUNCIL,ASC,SOCIAL SERVICES,HIRE,Revenue,HIRE - TRANSPORT,130220410,28/04/16,934406,446.00,A STAR TRANSPORT LTD,SP0000866
WANDSWORTH COUNCIL,ASC,SOCIAL SERVICES,HIRE,Revenue,HIRE - TRANSPORT,130220410,28/04/16,934408,460.00,A STAR TRANSPORT LTD,SP0000866
WANDSWORTH COUNCIL,ASC,SOCIAL SERVICES,HIRE,Revenue,HIRE - TRANSPORT,130220410,28/04/16,934409,996.00,A STAR TRANSPORT LTD,SP0000866
WANDSWORTH COUNCIL,ASC,SOCIAL SERVICES,HIRE,Revenue,HIRE - TRANSPORT,130220410,28/04/16,934410,"1,088.00",A STAR TRANSPORT LTD,SP0000866
WANDSWORTH COUNCIL,ASC,SOCIAL SERVICES,HIRE,Revenue,HIRE - TRANSPORT,130220410,28/04/16,934413,565.80,A STAR TRANSPORT LTD,SP0000866
WANDSWORTH COUNCIL,ASC,SOCIAL SERVICES,HIRE,Revenue,HIRE - TRANSPORT,130220410,28/04/16,934414,"1,000.00",A STAR TRANSPORT LTD,SP0000866
WANDSWORTH COUNCIL,ASC,SOCIAL SERVICES,HIRE,Revenue,HIRE - TRANSPORT,130220410,28/04/16,934415,"1,000.00",A STAR TRANSPORT LTD,SP0000866
WANDSWORTH COUNCIL,ASC,SOCIAL SERVICES,HIRE,Revenue,HIRE - TRANSPORT,130220410,28/04/16,934418,848.00,A STAR TRANSPORT LTD,SP0000866
WANDSWORTH COUNCIL,ASC,SOCIAL SERVICES,HIRE,Revenue,HIRE - TRANSPORT,130220410,28/04/16,934419,448.00,A STAR TRANSPORT LTD,SP0000866
WANDSWORTH COUNCIL,ASC,SOCIAL SERVICES,HIRE,Revenue,HIRE - TRANSPORT,130220410,28/04/16,934420,612.00,A STAR TRANSPORT LTD,SP0000866
WANDSWORTH COUNCIL,ASC,SOCIAL SERVICES,HIRE,Revenue,HIRE - TRANSPORT,130220410,28/04/16,934424,573.00,A STAR TRANSPORT LTD,SP0000866
WANDSWORTH COUNCIL,ASC,SOCIAL SERVICES,HIRE,Revenue,HIRE - TRANSPORT,130220410,28/04/16,934425,528.00,A STAR TRANSPORT LTD,SP0000866
WANDSWORTH COUNCIL,ASC,SOCIAL SERVICES,HIRE,Revenue,HIRE - TRANSPORT,130220410,28/04/16,934426,528.00,A STAR TRANSPORT LTD,SP0000866
WANDSWORTH COUNCIL,ASC,SOCIAL SERVICES,HIRE,Revenue,HIRE - TRANSPORT,130220410,28/04/16,934427,528.00,A STAR TRANSPORT LTD,SP0000866
WANDSWORTH COUNCIL,ASC,SOCIAL SERVICES,HIRE,Revenue,HIRE - TRANSPORT,130220410,28/04/16,934430,"1,033.33",A STAR TRANSPORT LTD,SP0000866
WANDSWORTH COUNCIL,ASC,SOCIAL SERVICES,HIRE,Revenue,HIRE - TRANSPORT,130220410,28/04/16,934431,"1,453.33",A STAR TRANSPORT LTD,SP0000866
WANDSWORTH COUNCIL,ASC,SOCIAL SERVICES,HIRE,Revenue,HIRE - TRANSPORT,130220410,28/04/16,934432,"1,890.00",A STAR TRANSPORT LTD,SP0000866
WANDSWORTH COUNCIL,ASC,SOCIAL SERVICES,HIRE,Revenue,HIRE - TRANSPORT,130220410,28/04/16,934433,"1,744.00",A STAR TRANSPORT LTD,SP0000866
WANDSWORTH COUNCIL,ASC,SOCIAL SERVICES,HIRE,Revenue,HIRE - TRANSPORT,130220410,28/04/16,934434,"1,444.00",A STAR TRANSPORT LTD,SP0000866
WANDSWORTH COUNCIL,ASC,SOCIAL SERVICES,HIRE,Revenue,HIRE - TRANSPORT,130220410,28/04/16,934435,767.36,A STAR TRANSPORT LTD,SP0000866
WANDSWORTH COUNCIL,ASC,SOCIAL SERVICES,HIRE,Revenue,HIRE - TRANSPORT,130220410,28/04/16,934436,624.00,A STAR TRANSPORT LTD,SP0000866
WANDSWORTH COUNCIL,ASC,SOCIAL SERVICES,HIRE,Revenue,HIRE - TRANSPORT,130220410,28/04/16,934437,"1,240.00",A STAR TRANSPORT LTD,SP0000866
WANDSWORTH COUNCIL,ASC,SOCIAL SERVICES,HIRE,Revenue,HIRE - TRANSPORT,130220410,28/04/16,934438,476.00,A STAR TRANSPORT LTD,SP0000866
WANDSWORTH COUNCIL,ASC,SOCIAL SERVICES,HIRE,Revenue,HIRE - TRANSPORT,130220410,28/04/16,934439,"1,710.00",A STAR TRANSPORT LTD,SP0000866
WANDSWORTH COUNCIL,ASC,SOCIAL SERVICES,HIRE,Revenue,HIRE - TRANSPORT,130220410,28/04/16,934440,484.26,A STAR TRANSPORT LTD,SP0000866
WANDSWORTH COUNCIL,ASC,SOCIAL SERVICES,HIRE,Revenue,HIRE - TRANSPORT,130220410,28/04/16,934442,432.00,A STAR TRANSPORT LTD,SP0000866
WANDSWORTH COUNCIL,ASC,SOCIAL SERVICES,HIRE,Revenue,HIRE - TRANSPORT,130220410,28/04/16,934443,506.00,A STAR TRANSPORT LTD,SP0000866
WANDSWORTH COUNCIL,ASC,SOCIAL SERVICES,HIRE,Revenue,HIRE - TRANSPORT,130220410,28/04/16,934445,"2,080.00",A STAR TRANSPORT LTD,SP0000866
WANDSWORTH COUNCIL,ASC,SOCIAL SERVICES,HIRE,Revenue,HIRE - TRANSPORT,130220410,28/04/16,934448,"1,200.00",A STAR TRANSPORT LTD,SP0000866
WANDSWORTH COUNCIL,ASC,SOCIAL SERVICES,HIRE,Revenue,HIRE - TRANSPORT,130220410,28/04/16,934449,798.00,A STAR TRANSPORT LTD,SP0000866
WANDSWORTH COUNCIL,ASC,SOCIAL SERVICES,HIRE,Revenue,HIRE - TRANSPORT,130220410,28/04/16,934450,798.00,A STAR TRANSPORT LTD,SP0000866
WANDSWORTH COUNCIL,ASC,SOCIAL SERVICES,HIRE,Revenue,HIRE - TRANSPORT,130220410,28/04/16,934451,"1,263.00",A STAR TRANSPORT LTD,SP0000866
WANDSWORTH COUNCIL,ASC,SOCIAL SERVICES,HIRE,Revenue,HIRE - TRANSPORT,130220410,28/04/16,934454,574.00,A STAR TRANSPORT LTD,SP0000866
WANDSWORTH COUNCIL,ASC,SOCIAL SERVICES,HIRE,Revenue,HIRE - TRANSPORT,130220410,18/04/16,925041,780.86,ADDISON LEE LTD,SP0003268
WANDSWORTH COUNCIL,ASC,SOCIAL SERVICES,HIRE,Revenue,HIRE - TRANSPORT,130220410,18/04/16,925042,838.44,ADDISON LEE LTD,SP0003268
WANDSWORTH COUNCIL,ASC,SOCIAL SERVICES,HIRE,Revenue,HIRE - TRANSPORT,130220410,18/04/16,925043,623.51,ADDISON LEE LTD,SP0003268
WANDSWORTH COUNCIL,ASC,SOCIAL SERVICES,HIRE,Revenue,HIRE - TRANSPORT,130220410,18/04/16,925044,508.80,ADDISON LEE LTD,SP0003268
WANDSWORTH COUNCIL,ASC,SOCIAL SERVICES,HIRE,Revenue,HIRE - TRANSPORT,130220410,18/04/16,925046,804.53,ADDISON LEE LTD,SP0003268
WANDSWORTH COUNCIL,ASC,SOCIAL SERVICES,HIRE,Revenue,HIRE - TRANSPORT,130220410,18/04/16,925047,702.92,ADDISON LEE LTD,SP0003268
WANDSWORTH COUNCIL,ASC,SOCIAL SERVICES,HIRE,Revenue,HIRE - TRANSPORT,130220410,18/04/16,925048,622.87,ADDISON LEE LTD,SP0003268
WANDSWORTH COUNCIL,ASC,SOCIAL SERVICES,HIRE,Revenue,HIRE - TRANSPORT,130220410,25/04/16,931454,638.77,BECKETT CORPORATION LTD T/A TINAS CARS,SP0000729
WANDSWORTH COUNCIL,ASC,SOCIAL SERVICES,HIRE,Revenue,HIRE - TRANSPORT,130220410,25/04/16,931456,433.56,BECKETT CORPORATION LTD T/A TINAS CARS,SP0000729
WANDSWORTH COUNCIL,ASC,SOCIAL SERVICES,HIRE,Revenue,HIRE - TRANSPORT,130220410,25/04/16,931458,662.34,BECKETT CORPORATION LTD T/A TINAS CARS,SP0000729
WANDSWORTH COUNCIL,ASC,SOCIAL SERVICES,HIRE,Revenue,HIRE - TRANSPORT,130220410,25/04/16,931459,"1,722.60",BECKETT CORPORATION LTD T/A TINAS CARS,SP0000729
WANDSWORTH COUNCIL,ASC,SOCIAL SERVICES,HIRE,Revenue,HIRE - TRANSPORT,130220410,25/04/16,931461,437.34,BECKETT CORPORATION LTD T/A TINAS CARS,SP0000729
WANDSWORTH COUNCIL,ASC,SOCIAL SERVICES,HIRE,Revenue,HIRE - TRANSPORT,130220410,25/04/16,931462,425.52,BECKETT CORPORATION LTD T/A TINAS CARS,SP0000729
WANDSWORTH COUNCIL,ASC,SOCIAL SERVICES,HIRE,Revenue,HIRE - TRANSPORT,130220410,25/04/16,931463,552.06,BECKETT CORPORATION LTD T/A TINAS CARS,SP0000729
WANDSWORTH COUNCIL,ASC,SOCIAL SERVICES,HIRE,Revenue,HIRE - TRANSPORT,130220410,25/04/16,931465,468.00,BECKETT CORPORATION LTD T/A TINAS CARS,SP0000729
WANDSWORTH COUNCIL,ASC,SOCIAL SERVICES,HIRE,Revenue,HIRE - TRANSPORT,130220410,25/04/16,931467,736.00,BECKETT CORPORATION LTD T/A TINAS CARS,SP0000729
WANDSWORTH COUNCIL,ASC,SOCIAL SERVICES,HIRE,Revenue,HIRE - TRANSPORT,130220410,25/04/16,931468,663.84,BECKETT CORPORATION LTD T/A TINAS CARS,SP0000729
WANDSWORTH COUNCIL,ASC,SOCIAL SERVICES,HIRE,Revenue,HIRE - TRANSPORT,130220410,25/04/16,931469,640.00,BECKETT CORPORATION LTD T/A TINAS CARS,SP0000729
WANDSWORTH COUNCIL,ASC,SOCIAL SERVICES,HIRE,Revenue,HIRE - TRANSPORT,130220410,25/04/16,931470,"1,320.00",BECKETT CORPORATION LTD T/A TINAS CARS,SP0000729
WANDSWORTH COUNCIL,ASC,SOCIAL SERVICES,HIRE,Revenue,HIRE - TRANSPORT,130220410,25/04/16,931471,"1,290.00",BECKETT CORPORATION LTD T/A TINAS CARS,SP0000729
WANDSWORTH COUNCIL,ASC,SOCIAL SERVICES,HIRE,Revenue,HIRE - TRANSPORT,130220410,25/04/16,931472,780.00,BECKETT CORPORATION LTD T/A TINAS CARS,SP0000729
WANDSWORTH COUNCIL,ASC,SOCIAL SERVICES,HIRE,Revenue,HIRE - TRANSPORT,130220410,25/04/16,931473,"1,980.00",BECKETT CORPORATION LTD T/A TINAS CARS,SP0000729
WANDSWORTH COUNCIL,ASC,SOCIAL SERVICES,HIRE,Revenue,HIRE - TRANSPORT,130220410,25/04/16,931476,500.00,BECKETT CORPORATION LTD T/A TINAS CARS,SP0000729
WANDSWORTH COUNCIL,ASC,SOCIAL SERVICES,HIRE,Revenue,HIRE - TRANSPORT,130220410,25/04/16,931477,437.50,BECKETT CORPORATION LTD T/A TINAS CARS,SP0000729
WANDSWORTH COUNCIL,ASC,SOCIAL SERVICES,HIRE,Revenue,HIRE - TRANSPORT,130220410,19/04/16,926332,776.50,PARKER CARS LIMITED,SP0005826
WANDSWORTH COUNCIL,ASC,SOCIAL SERVICES,HIRE,Revenue,HIRE - TRANSPORT,130220410,19/04/16,926335,540.00,PARKER CARS LIMITED,SP0005826
WANDSWORTH COUNCIL,ASC,SOCIAL SERVICES,HIRE,Revenue,NEW TRANSPORT CONTRACT,130220430,28/04/16,934399,172.00,A STAR TRANSPORT LTD,SP0000866
WANDSWORTH COUNCIL,ASC,SOCIAL SERVICES,HIRE,Revenue,NEW TRANSPORT CONTRACT,130220430,25/04/16,931460,"1,722.60",BECKETT CORPORATION LTD T/A TINAS CARS,SP0000729
WANDSWORTH COUNCIL,ASC,SOCIAL SERVICES,SERVICES,Revenue,TRAVEL BUDDY SCHEME,130234970,28/04/16,934481,652.99,HARINGEY ASSOCIATION FOR INDEPENDENT LIV,SP0000222
WANDSWORTH COUNCIL,ASC,SOCIAL SERVICES,SERVICES,Revenue,TRAVEL BUDDY SCHEME,130234970,28/04/16,934482,633.20,HARINGEY ASSOCIATION FOR INDEPENDENT LIV,SP0000222
WANDSWORTH COUNCIL,ASC,SOCIAL SERVICES,SERVICES,Revenue,TRAVEL BUDDY SCHEME,130234970,28/04/16,934485,538.22,HARINGEY ASSOCIATION FOR INDEPENDENT LIV,SP0000222
WANDSWORTH COUNCIL,ASC,SOCIAL SERVICES,SERVICES,Revenue,TRAVEL BUDDY SCHEME,130234970,28/04/16,934487,506.56,HARINGEY ASSOCIATION FOR INDEPENDENT LIV,SP0000222
WANDSWORTH COUNCIL,ASC,SOCIAL SERVICES,SERVICES,Revenue,TRAVEL BUDDY SCHEME,130234970,28/04/16,934489,506.56,HARINGEY ASSOCIATION FOR INDEPENDENT LIV,SP0000222
WANDSWORTH COUNCIL,ASC,SOCIAL SERVICES,SERVICES,Revenue,TRAVEL BUDDY SCHEME,130234970,28/04/16,934493,546.14,HARINGEY ASSOCIATION FOR INDEPENDENT LIV,SP0000222
WANDSWORTH COUNCIL,ASC,SOCIAL SERVICES,SERVICES,Revenue,TRAVEL BUDDY SCHEME,130234970,28/04/16,934495,621.33,HARINGEY ASSOCIATION FOR INDEPENDENT LIV,SP0000222
WANDSWORTH COUNCIL,ASC,SOCIAL SERVICES,SERVICES,Revenue,TRAVEL BUDDY SCHEME,130234970,28/04/16,934497,664.86,HARINGEY ASSOCIATION FOR INDEPENDENT LIV,SP0000222
WANDSWORTH COUNCIL,ASC,SOCIAL SERVICES,SERVICES,Revenue,TRAVEL BUDDY SCHEME,130234970,28/04/16,934499,510.52,HARINGEY ASSOCIATION FOR INDEPENDENT LIV,SP0000222
WANDSWORTH COUNCIL,ASC,SOCIAL SERVICES,SERVICES,Revenue,TRAVEL BUDDY SCHEME,130234970,28/04/16,934502,569.88,HARINGEY ASSOCIATION FOR INDEPENDENT LIV,SP0000222
WANDSWORTH COUNCIL,ASC,SOCIAL SERVICES,SERVICES,Revenue,TRAVEL BUDDY SCHEME,130234970,21/04/16,927661,684.60,SOUTHSIDE PARTNERSHIP,SP0000692
WANDSWORTH COUNCIL,ASC,SOCIAL SERVICES,SERVICES,Revenue,TRAVEL BUDDY SCHEME,130234970,21/04/16,927662,635.70,SOUTHSIDE PARTNERSHIP,SP0000692
WANDSWORTH COUNCIL,ASC,SOCIAL SERVICES,SERVICES,Revenue,TRAVEL BUDDY SCHEME,130234970,21/04/16,927663,665.14,SOUTHSIDE PARTNERSHIP,SP0000692
WANDSWORTH COUNCIL,ASC,SOCIAL SERVICES,SERVICES,Revenue,TRAVEL BUDDY SCHEME,130234970,21/04/16,927666,749.80,SOUTHSIDE PARTNERSHIP,SP0000692
WANDSWORTH COUNCIL,ASC,SOCIAL SERVICES,HEALTH,Revenue,EXT RES S28A 100% OLD LONGSTAY,130241010,28/04/16,934249,"3,751.92",PARKGATE MANOR,SP0000521
WANDSWORTH COUNCIL,ASC,SOCIAL SERVICES,HEALTH,Revenue,EXT RES S28A 100% OLD LONGSTAY,130241010,13/04/16,919062,"6,266.83",VOYAGE CARE LTD,SP0000366
WANDSWORTH COUNCIL,ASC,SOCIAL SERVICES,HEALTH,Revenue,EXT RES S28A 100% OLD LONGSTAY,130241010,13/04/16,919070,"9,174.76",VOYAGE CARE LTD,SP0000366
WANDSWORTH COUNCIL,ASC,SOCIAL SERVICES,HEALTH,Revenue,EXT RES CARE S28A 100%,130241090,13/04/16,919063,"6,266.97",VOYAGE CARE LTD,SP0000366
WANDSWORTH COUNCIL,ASC,SOCIAL SERVICES,HEALTH,Revenue,EXT RES S28A OLD LONG STAY,130241110,26/04/16,932185,"4,709.79",METROPOLITAN HOUSING TRUST,SP0000626
WANDSWORTH COUNCIL,ASC,SOCIAL SERVICES,HEALTH,Revenue,EXT RES S28A OLD LONG STAY,130241110,28/04/16,934205,"4,709.79",METROPOLITAN HOUSING TRUST,SP0000626
WANDSWORTH COUNCIL,ASC,SOCIAL SERVICES,HEALTH,Revenue,EXT RES S28A OLD LONG STAY,130241110,29/04/16,935557,"4,804.97",THE COMMUNITY CARE COMPANY UK LTD,SP0000576
WANDSWORTH COUNCIL,ASC,,INDEPENDENT UNITS,Revenue,DAY CARE MUTUAL,130242040,08/04/16,911990,"552,636.40",ONE TRUST,SP0010206
WANDSWORTH COUNCIL,ASC,SOCIAL SERVICES,OTHER AGENCIES,Revenue,ENABLERS/EDUCATION FEES,130243280,29/04/16,935555,"12,795.51",CAMBIAN AUTISM SERVICES LTD,SP0001589
WANDSWORTH COUNCIL,ASC,SOCIAL SERVICES,OTHER AGENCIES,Revenue,ENABLERS/EDUCATION FEES,130243280,29/04/16,935556,760.76,CAMBIAN AUTISM SERVICES LTD,SP0001589
WANDSWORTH COUNCIL,ASC,SOCIAL SERVICES,OTHER AGENCIES,Revenue,ENABLERS/EDUCATION FEES,130243280,21/04/16,927622,"15,020.81",CAMBIAN WHINFELL SCHOOL LTD,SP0008913
WANDSWORTH COUNCIL,ASC,SOCIAL SERVICES,OTHER AGENCIES,Revenue,ENABLERS/EDUCATION FEES,130243280,28/04/16,934281,"10,083.93",CAMBIAN WHINFELL SCHOOL LTD,SP0008913
WANDSWORTH COUNCIL,ASC,SOCIAL SERVICES,OTHER AGENCIES,Revenue,ENABLERS/EDUCATION FEES,130243280,26/04/16,932168,"37,036.78",ST JOHN'S SCHOOL & COLLEGE,SP0001374
WANDSWORTH COUNCIL,ASC,SOCIAL SERVICES,OTHER AGENCIES,Revenue,ENABLERS/EDUCATION FEES,130243280,26/04/16,932169,"46,135.68",YOUNG EPILEPSY,SP0005433
WANDSWORTH COUNCIL,ASC,SOCIAL SERVICES,OTHER AGENCIES,Revenue,EXTERNAL LODGINGS,130243320,26/04/16,932291,429.00,M RAZA T/A CLOCK HOUSE HOTEL,SP0001280
WANDSWORTH COUNCIL,ASC,SOCIAL SERVICES,OTHER AGENCIES,Revenue,EXTERNAL LODGINGS,130243320,26/04/16,932292,"1,209.00",M RAZA T/A CLOCK HOUSE HOTEL,SP0001280
WANDSWORTH COUNCIL,ASC,SOCIAL SERVICES,OTHER AGENCIES,Revenue,EXTERNAL LODGINGS,130243320,26/04/16,932293,"1,131.00",M RAZA T/A CLOCK HOUSE HOTEL,SP0001280
WANDSWORTH COUNCIL,ASC,SOCIAL SERVICES,OTHER AGENCIES,Revenue,EXTERNAL OUTREACH,130243330,18/04/16,925057,"2,185.32",C M CARE LTD,SP0000455
WANDSWORTH COUNCIL,ASC,SOCIAL SERVICES,OTHER AGENCIES,Revenue,EXTERNAL OUTREACH,130243330,18/04/16,925060,"1,287.20",C M CARE LTD,SP0000455
WANDSWORTH COUNCIL,ASC,SOCIAL SERVICES,OTHER AGENCIES,Revenue,EXTERNAL OUTREACH,130243330,18/04/16,925062,576.00,C M CARE LTD,SP0000455
WANDSWORTH COUNCIL,ASC,SOCIAL SERVICES,OTHER AGENCIES,Revenue,EXTERNAL OUTREACH,130243330,18/04/16,925063,"1,540.00",C M CARE LTD,SP0000455
WANDSWORTH COUNCIL,ASC,SOCIAL SERVICES,OTHER AGENCIES,Revenue,EXTERNAL OUTREACH,130243330,12/04/16,917832,720.00,LIVE TOO LIMITED,SP0010112
WANDSWORTH COUNCIL,ASC,SOCIAL SERVICES,OTHER AGENCIES,Revenue,EXTERNAL OUTREACH,130243330,13/04/16,919351,931.00,PROTOCOL EDUCATION LTD,SP0000171
WANDSWORTH COUNCIL,ASC,SOCIAL SERVICES,OTHER AGENCIES,Revenue,EXTERNAL OUTREACH,130243330,13/04/16,919358,950.00,PROTOCOL EDUCATION LTD,SP0000171
WANDSWORTH COUNCIL,ASC,SOCIAL SERVICES,OTHER AGENCIES,Revenue,EXTERNAL OUTREACH,130243330,18/04/16,925035,950.00,PROTOCOL EDUCATION LTD,SP0000171
WANDSWORTH COUNCIL,ASC,SOCIAL SERVICES,OTHER AGENCIES,Revenue,EXTERNAL OUTREACH,130243330,25/04/16,931489,950.00,PROTOCOL EDUCATION LTD,SP0000171
WANDSWORTH COUNCIL,ASC,SOCIAL SERVICES,OTHER AGENCIES,Revenue,EXTERNAL OUTREACH,130243330,29/04/16,935780,475.00,PROTOCOL EDUCATION LTD,SP0000171
WANDSWORTH COUNCIL,ASC,SOCIAL SERVICES,OTHER AGENCIES,Revenue,EXTERNAL OUTREACH,130243330,19/04/16,926318,456.32,RAINBOW MEDICAL SERVICES,SP0000037
WANDSWORTH COUNCIL,ASC,SOCIAL SERVICES,OTHER AGENCIES,Revenue,EXTERNAL OUTREACH,130243330,19/04/16,926320,"2,368.14",RAINBOW MEDICAL SERVICES,SP0000037
WANDSWORTH COUNCIL,ASC,SOCIAL SERVICES,OTHER AGENCIES,Revenue,EXTERNAL OUTREACH,130243330,26/04/16,932297,"1,036.78",REED,SP0000295
WANDSWORTH COUNCIL,ASC,SOCIAL SERVICES,OTHER AGENCIES,Revenue,EXTERNAL OUTREACH,130243330,19/04/16,926322,"3,300.00",RELIABLE PERSONNEL LTD,SP0005657
WANDSWORTH COUNCIL,ASC,SOCIAL SERVICES,OTHER AGENCIES,Revenue,EXTERNAL OUTREACH,130243330,14/04/16,921862,"1,260.00",ROYAL ASSOCIATION FOR DEAF PEOPLE,SP0001251
WANDSWORTH COUNCIL,ASC,SOCIAL SERVICES,OTHER AGENCIES,Revenue,EXTERNAL OUTREACH,130243330,18/04/16,925030,870.00,ROYAL ASSOCIATION FOR DEAF PEOPLE,SP0001251
WANDSWORTH COUNCIL,ASC,SOCIAL SERVICES,OTHER AGENCIES,Revenue,EXTERNAL OUTREACH,130243330,28/04/16,934378,543.18,SOUTHSIDE PARTNERSHIP,SP0000692
WANDSWORTH COUNCIL,ASC,SOCIAL SERVICES,OTHER AGENCIES,Revenue,EXTERNAL OUTREACH,130243330,12/04/16,917773,568.44,THE BRANDON TRUST,SP0005337
WANDSWORTH COUNCIL,ASC,SOCIAL SERVICES,OTHER AGENCIES,Revenue,EXTERNAL OUTREACH,130243330,12/04/16,917774,505.28,THE BRANDON TRUST,SP0005337
WANDSWORTH COUNCIL,ASC,SOCIAL SERVICES,OTHER AGENCIES,Revenue,EXTERNAL OUTREACH,130243330,12/04/16,917775,252.24,THE BRANDON TRUST,SP0005337
WANDSWORTH COUNCIL,ASC,SOCIAL SERVICES,OTHER AGENCIES,Revenue,EXTERNAL OUTREACH,130243330,12/04/16,917779,947.40,THE BRANDON TRUST,SP0005337
WANDSWORTH COUNCIL,ASC,SOCIAL SERVICES,OTHER AGENCIES,Revenue,EXTERNAL OUTREACH,130243330,12/04/16,917780,"1,170.80",THE BRANDON TRUST,SP0005337
WANDSWORTH COUNCIL,ASC,SOCIAL SERVICES,OTHER AGENCIES,Revenue,EXTERNAL OUTREACH,130243330,12/04/16,917796,189.48,THE BRANDON TRUST,SP0005337
WANDSWORTH COUNCIL,ASC,SOCIAL SERVICES,OTHER AGENCIES,Revenue,EXTERNAL OUTREACH,130243330,12/04/16,917806,694.76,THE BRANDON TRUST,SP0005337
WANDSWORTH COUNCIL,ASC,SOCIAL SERVICES,OTHER AGENCIES,Revenue,EXTERNAL OUTREACH,130243330,19/04/16,926339,533.12,THE BRANDON TRUST,SP0005337
WANDSWORTH COUNCIL,ASC,SOCIAL SERVICES,OTHER AGENCIES,Revenue,EXTERNAL OUTREACH,130243330,19/04/16,926340,533.12,THE BRANDON TRUST,SP0005337
WANDSWORTH COUNCIL,ASC,SOCIAL SERVICES,OTHER AGENCIES,Revenue,EXTERNAL OUTREACH,130243330,19/04/16,926341,533.12,THE BRANDON TRUST,SP0005337
WANDSWORTH COUNCIL,ASC,,OTHER AGENCIES,Revenue,APS SHARED LIVES SCHEME,130243820,05/04/16,904302,"48,032.28",SOUTHSIDE PARTNERSHIP,SP0000692
WANDSWORTH COUNCIL,ASC,,OTHER AGENCIES,Revenue,APS SHARED LIVES SCHEME,130243820,05/04/16,904303,"15,619.00",SOUTHSIDE PARTNERSHIP,SP0000692
WANDSWORTH COUNCIL,ASC,,OTHER AGENCIES,Revenue,APS SHARED LIVES SCHEME,130243820,05/04/16,904304,"24,564.40",SOUTHSIDE PARTNERSHIP,SP0000692
WANDSWORTH COUNCIL,ASC,,OTHER AGENCIES,Revenue,APS SHARED LIVES SCHEME,130243820,27/04/16,926858,"38,875.58",SOUTHSIDE PARTNERSHIP,SP0000692
WANDSWORTH COUNCIL,ASC,,OTHER AGENCIES,Revenue,APS SHARED LIVES SCHEME,130243820,20/04/16,926859,"2,237.66",SOUTHSIDE PARTNERSHIP,SP0000692
WANDSWORTH COUNCIL,ASC,,OTHER AGENCIES,Revenue,APS SHARED LIVES SCHEME,130243820,27/04/16,926860,"47,345.62",SOUTHSIDE PARTNERSHIP,SP0000692
WANDSWORTH COUNCIL,ASC,SOCIAL SERVICES,PRIVATE,Revenue,EXTERNAL DAYCARE,130245290,29/04/16,935653,554.04,ACT TOO LTD,SP0000855
WANDSWORTH COUNCIL,ASC,SOCIAL SERVICES,PRIVATE,Revenue,EXTERNAL DAYCARE,130245290,29/04/16,935654,554.04,ACT TOO LTD,SP0000855
WANDSWORTH COUNCIL,ASC,SOCIAL SERVICES,PRIVATE,Revenue,EXTERNAL DAYCARE,130245290,29/04/16,935655,554.04,ACT TOO LTD,SP0000855
WANDSWORTH COUNCIL,ASC,SOCIAL SERVICES,PRIVATE,Revenue,EXTERNAL DAYCARE,130245290,29/04/16,935656,554.04,ACT TOO LTD,SP0000855
WANDSWORTH COUNCIL,ASC,SOCIAL SERVICES,PRIVATE,Revenue,EXTERNAL DAYCARE,130245290,29/04/16,935657,923.40,ACT TOO LTD,SP0000855
WANDSWORTH COUNCIL,ASC,SOCIAL SERVICES,PRIVATE,Revenue,EXTERNAL DAYCARE,130245290,29/04/16,935658,554.04,ACT TOO LTD,SP0000855
WANDSWORTH COUNCIL,ASC,SOCIAL SERVICES,PRIVATE,Revenue,EXTERNAL DAYCARE,130245290,29/04/16,935668,923.40,ACT TOO LTD,SP0000855
WANDSWORTH COUNCIL,ASC,SOCIAL SERVICES,PRIVATE,Revenue,EXTERNAL DAYCARE,130245290,29/04/16,935673,923.40,ACT TOO LTD,SP0000855
WANDSWORTH COUNCIL,ASC,SOCIAL SERVICES,PRIVATE,Revenue,EXTERNAL DAYCARE,130245290,29/04/16,935674,554.04,ACT TOO LTD,SP0000855
WANDSWORTH COUNCIL,ASC,SOCIAL SERVICES,PRIVATE,Revenue,EXTERNAL DAYCARE,130245290,29/04/16,935675,"1,108.08",ACT TOO LTD,SP0000855
WANDSWORTH COUNCIL,ASC,SOCIAL SERVICES,PRIVATE,Revenue,EXTERNAL DAYCARE,130245290,29/04/16,935676,738.72,ACT TOO LTD,SP0000855
WANDSWORTH COUNCIL,ASC,SOCIAL SERVICES,PRIVATE,Revenue,EXTERNAL DAYCARE,130245290,29/04/16,935679,554.04,ACT TOO LTD,SP0000855
WANDSWORTH COUNCIL,ASC,SOCIAL SERVICES,PRIVATE,Revenue,EXTERNAL DAYCARE,130245290,29/04/16,935680,554.04,ACT TOO LTD,SP0000855
WANDSWORTH COUNCIL,ASC,SOCIAL SERVICES,PRIVATE,Revenue,EXTERNAL DAYCARE,130245290,29/04/16,935685,554.04,ACT TOO LTD,SP0000855
WANDSWORTH COUNCIL,ASC,SOCIAL SERVICES,PRIVATE,Revenue,EXTERNAL DAYCARE,130245290,29/04/16,935689,738.72,ACT TOO LTD,SP0000855
WANDSWORTH COUNCIL,ASC,SOCIAL SERVICES,PRIVATE,Revenue,EXTERNAL DAYCARE,130245290,29/04/16,935692,554.04,ACT TOO LTD,SP0000855
WANDSWORTH COUNCIL,ASC,SOCIAL SERVICES,PRIVATE,Revenue,EXTERNAL DAYCARE,130245290,29/04/16,935695,738.72,ACT TOO LTD,SP0000855
WANDSWORTH COUNCIL,ASC,SOCIAL SERVICES,PRIVATE,Revenue,EXTERNAL DAYCARE,130245290,29/04/16,935697,738.72,ACT TOO LTD,SP0000855
WANDSWORTH COUNCIL,ASC,SOCIAL SERVICES,PRIVATE,Revenue,EXTERNAL DAYCARE,130245290,29/04/16,935699,738.72,ACT TOO LTD,SP0000855
WANDSWORTH COUNCIL,ASC,SOCIAL SERVICES,PRIVATE,Revenue,EXTERNAL DAYCARE,130245290,29/04/16,935700,"1,108.08",ACT TOO LTD,SP0000855
WANDSWORTH COUNCIL,ASC,SOCIAL SERVICES,PRIVATE,Revenue,EXTERNAL DAYCARE,130245290,29/04/16,935705,923.40,ACT TOO LTD,SP0000855
WANDSWORTH COUNCIL,ASC,SOCIAL SERVICES,PRIVATE,Revenue,EXTERNAL DAYCARE,130245290,29/04/16,935708,738.72,ACT TOO LTD,SP0000855
WANDSWORTH COUNCIL,ASC,SOCIAL SERVICES,PRIVATE,Revenue,EXTERNAL DAYCARE,130245290,29/04/16,935709,738.72,ACT TOO LTD,SP0000855
WANDSWORTH COUNCIL,ASC,SOCIAL SERVICES,PRIVATE,Revenue,EXTERNAL DAYCARE,130245290,29/04/16,935710,738.72,ACT TOO LTD,SP0000855
WANDSWORTH COUNCIL,ASC,SOCIAL SERVICES,PRIVATE,Revenue,EXTERNAL DAYCARE,130245290,29/04/16,935713,554.04,ACT TOO LTD,SP0000855
WANDSWORTH COUNCIL,ASC,SOCIAL SERVICES,PRIVATE,Revenue,EXTERNAL DAYCARE,130245290,29/04/16,935714,554.04,ACT TOO LTD,SP0000855
WANDSWORTH COUNCIL,ASC,SOCIAL SERVICES,PRIVATE,Revenue,EXTERNAL DAYCARE,130245290,29/04/16,935715,554.04,ACT TOO LTD,SP0000855
WANDSWORTH COUNCIL,ASC,SOCIAL SERVICES,PRIVATE,Revenue,EXTERNAL DAYCARE,130245290,29/04/16,935718,738.72,ACT TOO LTD,SP0000855
WANDSWORTH COUNCIL,ASC,SOCIAL SERVICES,PRIVATE,Revenue,EXTERNAL DAYCARE,130245290,29/04/16,935719,738.72,ACT TOO LTD,SP0000855
WANDSWORTH COUNCIL,ASC,SOCIAL SERVICES,PRIVATE,Revenue,EXTERNAL DAYCARE,130245290,29/04/16,935720,554.04,ACT TOO LTD,SP0000855
WANDSWORTH COUNCIL,ASC,SOCIAL SERVICES,PRIVATE,Revenue,EXTERNAL DAYCARE,130245290,29/04/16,935724,554.04,ACT TOO LTD,SP0000855
WANDSWORTH COUNCIL,ASC,SOCIAL SERVICES,PRIVATE,Revenue,EXTERNAL DAYCARE,130245290,13/04/16,919296,914.13,ASHFIELD CARE HOMES LTD,SP0000590
WANDSWORTH COUNCIL,ASC,SOCIAL SERVICES,PRIVATE,Revenue,EXTERNAL DAYCARE,130245290,26/04/16,932283,942.23,CHATSWORTH CARE,SP0000831
WANDSWORTH COUNCIL,ASC,SOCIAL SERVICES,PRIVATE,Revenue,EXTERNAL DAYCARE,130245290,26/04/16,932284,911.84,CHATSWORTH CARE,SP0000831
WANDSWORTH COUNCIL,ASC,SOCIAL SERVICES,PRIVATE,Revenue,EXTERNAL DAYCARE,130245290,18/04/16,924802,806.04,CRAEGMOOR FACILITIES CO LTD,SP0000306
WANDSWORTH COUNCIL,ASC,SOCIAL SERVICES,PRIVATE,Revenue,EXTERNAL DAYCARE,130245290,28/04/16,934352,892.50,DORSET SCOPE,SP0000591
WANDSWORTH COUNCIL,ASC,SOCIAL SERVICES,PRIVATE,Revenue,EXTERNAL DAYCARE,130245290,29/04/16,935728,819.52,HARROW MENCAP,SP0001347
WANDSWORTH COUNCIL,ASC,SOCIAL SERVICES,PRIVATE,Revenue,EXTERNAL DAYCARE,130245290,21/04/16,927811,602.56,HIGH HURLANDS HOMES,SP0000668
WANDSWORTH COUNCIL,ASC,SOCIAL SERVICES,PRIVATE,Revenue,EXTERNAL DAYCARE,130245290,28/04/16,934355,"2,456.16",INSPIRE CARE OUTREACH LIMITED,SP0010404
WANDSWORTH COUNCIL,ASC,SOCIAL SERVICES,PRIVATE,Revenue,EXTERNAL DAYCARE,130245290,28/04/16,934356,963.20,INSPIRE CARE OUTREACH LIMITED,SP0010404
WANDSWORTH COUNCIL,ASC,SOCIAL SERVICES,PRIVATE,Revenue,EXTERNAL DAYCARE,130245290,28/04/16,934357,963.20,INSPIRE CARE OUTREACH LIMITED,SP0010404
WANDSWORTH COUNCIL,ASC,SOCIAL SERVICES,PRIVATE,Revenue,EXTERNAL DAYCARE,130245290,28/04/16,934358,963.20,INSPIRE CARE OUTREACH LIMITED,SP0010404
WANDSWORTH COUNCIL,ASC,,PRIVATE,Revenue,EXTERNAL DAYCARE,130245290,27/04/16,933074,"3,622.38",LONDON & QUADRANT HOUSING TRUST,SP0006564
WANDSWORTH COUNCIL,ASC,SOCIAL SERVICES,PRIVATE,Revenue,EXTERNAL DAYCARE,130245290,25/04/16,931435,515.52,MENCAP OPEN DOOR,SP0000832
WANDSWORTH COUNCIL,ASC,SOCIAL SERVICES,PRIVATE,Revenue,EXTERNAL DAYCARE,130245290,25/04/16,931482,504.80,MENCAP OPEN DOOR,SP0000832
WANDSWORTH COUNCIL,ASC,SOCIAL SERVICES,PRIVATE,Revenue,EXTERNAL DAYCARE,130245290,21/04/16,927796,"3,719.00",NAS SERVICES LIMITED,SP0000217
WANDSWORTH COUNCIL,ASC,SOCIAL SERVICES,PRIVATE,Revenue,EXTERNAL DAYCARE,130245290,21/04/16,927797,"3,719.00",NAS SERVICES LIMITED,SP0000217
WANDSWORTH COUNCIL,ASC,SOCIAL SERVICES,PRIVATE,Revenue,EXTERNAL DAYCARE,130245290,21/04/16,927804,"1,583.68",NAS SERVICES LIMITED,SP0000217
WANDSWORTH COUNCIL,ASC,SOCIAL SERVICES,PRIVATE,Revenue,EXTERNAL DAYCARE,130245290,21/04/16,927805,"1,583.68",NAS SERVICES LIMITED,SP0000217
WANDSWORTH COUNCIL,ASC,SOCIAL SERVICES,PRIVATE,Revenue,EXTERNAL DAYCARE,130245290,21/04/16,927806,"3,719.00",NAS SERVICES LIMITED,SP0000217
WANDSWORTH COUNCIL,ASC,SOCIAL SERVICES,PRIVATE,Revenue,EXTERNAL DAYCARE,130245290,21/04/16,927807,"1,583.68",NAS SERVICES LIMITED,SP0000217
WANDSWORTH COUNCIL,ASC,SOCIAL SERVICES,PRIVATE,Revenue,EXTERNAL DAYCARE,130245290,21/04/16,927808,"1,583.68",NAS SERVICES LIMITED,SP0000217
WANDSWORTH COUNCIL,ASC,SOCIAL SERVICES,PRIVATE,Revenue,EXTERNAL DAYCARE,130245290,13/04/16,919297,878.48,ORCHARD VALE TRUST,SP0000214
WANDSWORTH COUNCIL,ASC,SOCIAL SERVICES,PRIVATE,Revenue,EXTERNAL DAYCARE,130245290,06/04/16,914583,546.00,PARCHMENT TRUST LTD,SP0000255
WANDSWORTH COUNCIL,ASC,SOCIAL SERVICES,PRIVATE,Revenue,EXTERNAL DAYCARE,130245290,28/04/16,934383,518.70,PARCHMENT TRUST LTD,SP0000255
WANDSWORTH COUNCIL,ASC,SOCIAL SERVICES,PRIVATE,Revenue,EXTERNAL DAYCARE,130245290,06/04/16,914580,"1,158.59",RESIDENTIAL CARE SERVICES T/A FRANKLYN L,SP0000147
WANDSWORTH COUNCIL,ASC,SOCIAL SERVICES,PRIVATE,Revenue,EXTERNAL DAYCARE,130245290,08/04/16,915611,"1,176.00",RIDGEWOOD CARE SERVICES LTD,SP0000969
WANDSWORTH COUNCIL,ASC,SOCIAL SERVICES,PRIVATE,Revenue,EXTERNAL DAYCARE,130245290,18/04/16,924574,"1,176.00",RIDGEWOOD CARE SERVICES LTD,SP0000969
WANDSWORTH COUNCIL,ASC,SOCIAL SERVICES,PRIVATE,Revenue,EXTERNAL DAYCARE,130245290,18/04/16,924804,"1,138.40",RIDGEWOOD CARE SERVICES LTD,SP0000969
WANDSWORTH COUNCIL,ASC,SOCIAL SERVICES,PRIVATE,Revenue,EXTERNAL DAYCARE,130245290,28/04/16,934282,"1,200.00",RIDGEWOOD CARE SERVICES LTD,SP0000969
WANDSWORTH COUNCIL,ASC,SOCIAL SERVICES,PRIVATE,Revenue,EXTERNAL DAYCARE,130245290,13/04/16,918552,833.52,SCOPE,SP0000852
WANDSWORTH COUNCIL,ASC,SOCIAL SERVICES,PRIVATE,Revenue,EXTERNAL DAYCARE,130245290,14/04/16,921670,814.03,SCOPE,SP0000852
WANDSWORTH COUNCIL,ASC,SOCIAL SERVICES,PRIVATE,Revenue,EXTERNAL DAYCARE,130245290,13/04/16,919276,713.16,SHARE COMMUNITY,SP0000329
WANDSWORTH COUNCIL,ASC,SOCIAL SERVICES,PRIVATE,Revenue,EXTERNAL DAYCARE,130245290,13/04/16,919278,950.84,SHARE COMMUNITY,SP0000329
WANDSWORTH COUNCIL,ASC,SOCIAL SERVICES,PRIVATE,Revenue,EXTERNAL DAYCARE,130245290,13/04/16,919279,713.16,SHARE COMMUNITY,SP0000329
WANDSWORTH COUNCIL,ASC,SOCIAL SERVICES,PRIVATE,Revenue,EXTERNAL DAYCARE,130245290,13/04/16,919282,713.16,SHARE COMMUNITY,SP0000329
WANDSWORTH COUNCIL,ASC,SOCIAL SERVICES,PRIVATE,Revenue,EXTERNAL DAYCARE,130245290,13/04/16,919284,950.84,SHARE COMMUNITY,SP0000329
WANDSWORTH COUNCIL,ASC,SOCIAL SERVICES,PRIVATE,Revenue,EXTERNAL DAYCARE,130245290,13/04/16,919285,950.84,SHARE COMMUNITY,SP0000329
WANDSWORTH COUNCIL,ASC,SOCIAL SERVICES,PRIVATE,Revenue,EXTERNAL DAYCARE,130245290,13/04/16,919286,713.16,SHARE COMMUNITY,SP0000329
WANDSWORTH COUNCIL,ASC,SOCIAL SERVICES,PRIVATE,Revenue,EXTERNAL DAYCARE,130245290,13/04/16,919287,"1,188.56",SHARE COMMUNITY,SP0000329
WANDSWORTH COUNCIL,ASC,SOCIAL SERVICES,PRIVATE,Revenue,EXTERNAL DAYCARE,130245290,13/04/16,919288,713.16,SHARE COMMUNITY,SP0000329
WANDSWORTH COUNCIL,ASC,SOCIAL SERVICES,PRIVATE,Revenue,EXTERNAL DAYCARE,130245290,13/04/16,919289,950.84,SHARE COMMUNITY,SP0000329
WANDSWORTH COUNCIL,ASC,SOCIAL SERVICES,PRIVATE,Revenue,EXTERNAL DAYCARE,130245290,13/04/16,919292,713.16,SHARE COMMUNITY,SP0000329
WANDSWORTH COUNCIL,ASC,SOCIAL SERVICES,PRIVATE,Revenue,EXTERNAL DAYCARE,130245290,13/04/16,919294,594.28,SHARE COMMUNITY,SP0000329
WANDSWORTH COUNCIL,ASC,SOCIAL SERVICES,PRIVATE,Revenue,EXTERNAL DAYCARE,130245290,13/04/16,919300,713.16,SHARE COMMUNITY,SP0000329
WANDSWORTH COUNCIL,ASC,SOCIAL SERVICES,PRIVATE,Revenue,EXTERNAL DAYCARE,130245290,13/04/16,919304,713.16,SHARE COMMUNITY,SP0000329
WANDSWORTH COUNCIL,ASC,SOCIAL SERVICES,PRIVATE,Revenue,EXTERNAL DAYCARE,130245290,13/04/16,919305,"1,188.56",SHARE COMMUNITY,SP0000329
WANDSWORTH COUNCIL,ASC,SOCIAL SERVICES,PRIVATE,Revenue,EXTERNAL DAYCARE,130245290,13/04/16,919310,713.16,SHARE COMMUNITY,SP0000329
WANDSWORTH COUNCIL,ASC,SOCIAL SERVICES,PRIVATE,Revenue,EXTERNAL DAYCARE,130245290,13/04/16,919313,713.16,SHARE COMMUNITY,SP0000329
WANDSWORTH COUNCIL,ASC,SOCIAL SERVICES,PRIVATE,Revenue,EXTERNAL DAYCARE,130245290,13/04/16,919314,713.16,SHARE COMMUNITY,SP0000329
WANDSWORTH COUNCIL,ASC,SOCIAL SERVICES,PRIVATE,Revenue,EXTERNAL DAYCARE,130245290,13/04/16,919315,950.84,SHARE COMMUNITY,SP0000329
WANDSWORTH COUNCIL,ASC,SOCIAL SERVICES,PRIVATE,Revenue,EXTERNAL DAYCARE,130245290,13/04/16,919316,713.16,SHARE COMMUNITY,SP0000329
WANDSWORTH COUNCIL,ASC,SOCIAL SERVICES,PRIVATE,Revenue,EXTERNAL DAYCARE,130245290,13/04/16,919318,950.84,SHARE COMMUNITY,SP0000329
WANDSWORTH COUNCIL,ASC,SOCIAL SERVICES,PRIVATE,Revenue,EXTERNAL DAYCARE,130245290,13/04/16,919319,713.16,SHARE COMMUNITY,SP0000329
WANDSWORTH COUNCIL,ASC,SOCIAL SERVICES,PRIVATE,Revenue,EXTERNAL DAYCARE,130245290,13/04/16,919322,713.16,SHARE COMMUNITY,SP0000329
WANDSWORTH COUNCIL,ASC,SOCIAL SERVICES,PRIVATE,Revenue,EXTERNAL DAYCARE,130245290,13/04/16,919323,713.16,SHARE COMMUNITY,SP0000329
WANDSWORTH COUNCIL,ASC,SOCIAL SERVICES,PRIVATE,Revenue,EXTERNAL DAYCARE,130245290,13/04/16,919327,713.16,SHARE COMMUNITY,SP0000329
WANDSWORTH COUNCIL,ASC,SOCIAL SERVICES,PRIVATE,Revenue,EXTERNAL DAYCARE,130245290,13/04/16,919329,950.84,SHARE COMMUNITY,SP0000329
WANDSWORTH COUNCIL,ASC,SOCIAL SERVICES,PRIVATE,Revenue,EXTERNAL DAYCARE,130245290,13/04/16,919330,713.16,SHARE COMMUNITY,SP0000329
WANDSWORTH COUNCIL,ASC,SOCIAL SERVICES,PRIVATE,Revenue,EXTERNAL DAYCARE,130245290,13/04/16,919331,950.84,SHARE COMMUNITY,SP0000329
WANDSWORTH COUNCIL,ASC,SOCIAL SERVICES,PRIVATE,Revenue,EXTERNAL DAYCARE,130245290,25/04/16,931393,"1,057.00",ST DAVIDS CARE IN THE COMMUNITY,SP0000379
WANDSWORTH COUNCIL,ASC,SOCIAL SERVICES,PRIVATE,Revenue,EXTERNAL DAYCARE,130245290,25/04/16,931394,"1,057.00",ST DAVIDS CARE IN THE COMMUNITY,SP0000379
WANDSWORTH COUNCIL,ASC,SOCIAL SERVICES,PRIVATE,Revenue,EXTERNAL DAYCARE,130245290,25/04/16,931395,"1,057.00",ST DAVIDS CARE IN THE COMMUNITY,SP0000379
WANDSWORTH COUNCIL,ASC,SOCIAL SERVICES,PRIVATE,Revenue,EXTERNAL DAYCARE,130245290,25/04/16,931436,520.00,THE CAMDEN SOCIETY,SP0001674
WANDSWORTH COUNCIL,ASC,SOCIAL SERVICES,PRIVATE,Revenue,EXTERNAL DAYCARE,130245290,25/04/16,931437,520.00,THE CAMDEN SOCIETY,SP0001674
WANDSWORTH COUNCIL,ASC,SOCIAL SERVICES,PRIVATE,Revenue,EXTERNAL DAYCARE,130245290,25/04/16,931438,520.00,THE CAMDEN SOCIETY,SP0001674
WANDSWORTH COUNCIL,ASC,SOCIAL SERVICES,PRIVATE,Revenue,EXTERNAL DAYCARE,130245290,25/04/16,931439,520.00,THE CAMDEN SOCIETY,SP0001674
WANDSWORTH COUNCIL,ASC,SOCIAL SERVICES,PRIVATE,Revenue,EXTERNAL DAYCARE,130245290,25/04/16,931440,520.00,THE CAMDEN SOCIETY,SP0001674
WANDSWORTH COUNCIL,ASC,SOCIAL SERVICES,PRIVATE,Revenue,EXTERNAL DAYCARE,130245290,25/04/16,931441,520.00,THE CAMDEN SOCIETY,SP0001674
WANDSWORTH COUNCIL,ASC,SOCIAL SERVICES,PRIVATE,Revenue,EXTERNAL DAYCARE,130245290,25/04/16,931442,520.00,THE CAMDEN SOCIETY,SP0001674
WANDSWORTH COUNCIL,ASC,SOCIAL SERVICES,PRIVATE,Revenue,EXTERNAL DAYCARE,130245290,29/04/16,935557,37.49,THE COMMUNITY CARE COMPANY UK LTD,SP0000576
WANDSWORTH COUNCIL,ASC,SOCIAL SERVICES,PRIVATE,Revenue,EXTERNAL DAYCARE,130245290,18/04/16,924561,527.36,UNITED RESPONSE,SP0000797
WANDSWORTH COUNCIL,ASC,SOCIAL SERVICES,PRIVATE,Revenue,EXTERNAL DAYCARE,130245290,13/04/16,919299,"1,654.08",VOYAGE CARE LTD,SP0000366
WANDSWORTH COUNCIL,ASC,SOCIAL SERVICES,PRIVATE,Revenue,EXTERNAL DAYCARE,130245290,26/04/16,932276,684.00,WANDSWORTH BENGALI WELFARE ASSOCIATION,SP0000479
WANDSWORTH COUNCIL,ASC,SOCIAL SERVICES,PRIVATE,Revenue,EXTERNAL DAYCARE,130245290,25/04/16,931391,"1,416.24",WINSLOW COURT,SP0000886
WANDSWORTH COUNCIL,ASC,SOCIAL SERVICES,PRIVATE,Revenue,EXTERNAL DAYCARE,130245290,25/04/16,931392,"1,416.24",WINSLOW COURT,SP0000886
WANDSWORTH COUNCIL,ASC,SOCIAL SERVICES,PRIVATE,Revenue,EXTERNAL DAYCARE,130245290,25/04/16,931390,"3,770.00",WORCESTERSHIRE COUNTY COUNCIL,SP0000700
WANDSWORTH COUNCIL,ASC,SOCIAL SERVICES,PRIVATE,Revenue,EXTERNAL DAYCARE,130245290,13/04/16,919240,"1,126.08",WORKSHOP 305,SP0001403
WANDSWORTH COUNCIL,ASC,SOCIAL SERVICES,PRIVATE,Revenue,EXTERNAL DAYCARE,130245290,13/04/16,919245,962.88,WORKSHOP 305,SP0001403
WANDSWORTH COUNCIL,ASC,SOCIAL SERVICES,PRIVATE,Revenue,EXTERNAL DAYCARE,130245290,13/04/16,919248,722.16,WORKSHOP 305,SP0001403
WANDSWORTH COUNCIL,ASC,SOCIAL SERVICES,PRIVATE,Revenue,EXTERNAL DAYCARE,130245290,13/04/16,919254,844.56,WORKSHOP 305,SP0001403
WANDSWORTH COUNCIL,ASC,SOCIAL SERVICES,PRIVATE,Revenue,EXTERNAL DAYCARE,130245290,13/04/16,919255,722.16,WORKSHOP 305,SP0001403
WANDSWORTH COUNCIL,ASC,SOCIAL SERVICES,PRIVATE,Revenue,EXTERNAL DAYCARE,130245290,13/04/16,919258,722.16,WORKSHOP 305,SP0001403
WANDSWORTH COUNCIL,ASC,SOCIAL SERVICES,PRIVATE,Revenue,EXTERNAL DAYCARE,130245290,13/04/16,919273,962.88,WORKSHOP 305,SP0001403
WANDSWORTH COUNCIL,ASC,SOCIAL SERVICES,PRIVATE,Revenue,EXTERNAL DAYCARE,130245290,26/04/16,932289,722.16,WORKSHOP 305,SP0001403
WANDSWORTH COUNCIL,ASC,SOCIAL SERVICES,PRIVATE,Revenue,EXTERNAL HOMECARE,130245300,18/04/16,924785,560.10,CARE OUTLOOK LTD,SP0001545
WANDSWORTH COUNCIL,ASC,SOCIAL SERVICES,PRIVATE,Revenue,EXTERNAL HOMECARE,130245300,06/04/16,914576,"3,232.00",CHRISTIES CARE LTD,SP0005440
WANDSWORTH COUNCIL,ASC,SOCIAL SERVICES,PRIVATE,Revenue,EXTERNAL HOMECARE,130245300,22/04/16,929175,558.50,HEALTH CARE SOLUTIONS,SP0010527
WANDSWORTH COUNCIL,ASC,SOCIAL SERVICES,PRIVATE,Revenue,EXTERNAL HOMECARE,130245300,22/04/16,929176,558.50,HEALTH CARE SOLUTIONS,SP0010527
WANDSWORTH COUNCIL,ASC,SOCIAL SERVICES,PRIVATE,Revenue,EXTERNAL HOMECARE,130245300,22/04/16,929177,"5,749.67",HEALTH CARE SOLUTIONS,SP0010527
WANDSWORTH COUNCIL,ASC,SOCIAL SERVICES,PRIVATE,Revenue,EXTERNAL HOMECARE,130245300,25/04/16,931196,780.00,MUSHKIL AASAAN LTD,SP0000978
WANDSWORTH COUNCIL,ASC,SOCIAL SERVICES,PRIVATE,Revenue,EXTERNAL HOMECARE,130245300,25/04/16,931218,586.52,MUSHKIL AASAAN LTD,SP0000978
WANDSWORTH COUNCIL,ASC,SOCIAL SERVICES,PRIVATE,Revenue,EXTERNAL HOMECARE,130245300,21/04/16,927780,964.90,RAINBOW MEDICAL SERVICES,SP0000037
WANDSWORTH COUNCIL,ASC,SOCIAL SERVICES,PRIVATE,Revenue,EXTERNAL NURSING CARE,130245310,22/04/16,929338,"2,938.27",BUPA CARE SERVICES BACS RECEIPTS,SP0000644
WANDSWORTH COUNCIL,ASC,SOCIAL SERVICES,PRIVATE,Revenue,EXTERNAL NURSING CARE,130245310,22/04/16,929362,"3,058.12",BUPA CARE SERVICES BACS RECEIPTS,SP0000644
WANDSWORTH COUNCIL,ASC,SOCIAL SERVICES,PRIVATE,Revenue,EXTERNAL NURSING CARE,130245310,28/04/16,934236,"9,108.20",CHOICE SUPPORT,SP0000398
WANDSWORTH COUNCIL,ASC,SOCIAL SERVICES,PRIVATE,Revenue,EXTERNAL NURSING CARE,130245310,12/04/16,917644,"5,382.09",HIGH HURLANDS HOMES,SP0000668
WANDSWORTH COUNCIL,ASC,SOCIAL SERVICES,PRIVATE,Revenue,EXTERNAL NURSING CARE,130245310,29/04/16,935574,"3,557.14",ROSEDENE NURSING HOME,SP0000316
WANDSWORTH COUNCIL,ASC,SOCIAL SERVICES,PRIVATE,Revenue,EXTERNAL NURSING CARE,130245310,29/04/16,935559,"8,725.84",THE COMMUNITY CARE COMPANY UK LTD,SP0000576
WANDSWORTH COUNCIL,ASC,SOCIAL SERVICES,PRIVATE,Revenue,EXTERNAL NURSING CARE,130245310,13/04/16,919061,"4,181.88",VOYAGE CARE LTD,SP0000366
WANDSWORTH COUNCIL,ASC,SOCIAL SERVICES,PRIVATE,Revenue,EXTERNAL NURSING CARE,130245310,13/04/16,919067,"5,325.08",VOYAGE CARE LTD,SP0000366
WANDSWORTH COUNCIL,ASC,SOCIAL SERVICES,PRIVATE,Revenue,EXTERNAL NURSING CARE,130245310,19/04/16,926294,"1,751.93",YEW TREE NURSING HOME,SP0000454
WANDSWORTH COUNCIL,ASC,SOCIAL SERVICES,PRIVATE,Revenue,EXTERNAL RESIDENTIAL CARE,130245330,18/04/16,924516,"12,419.78",ACH OF LONDON LLP,SP0001688
WANDSWORTH COUNCIL,ASC,SOCIAL SERVICES,PRIVATE,Revenue,EXTERNAL RESIDENTIAL CARE,130245330,21/04/16,927617,"8,100.81",AIMS CARE PARTNERSHIP,SP0000561
WANDSWORTH COUNCIL,ASC,SOCIAL SERVICES,PRIVATE,Revenue,EXTERNAL RESIDENTIAL CARE,130245330,13/04/16,919055,"4,193.01",ALLIED CARE (MHS) LTD,SP0001069
WANDSWORTH COUNCIL,ASC,SOCIAL SERVICES,PRIVATE,Revenue,EXTERNAL RESIDENTIAL CARE,130245330,25/04/16,931079,"4,630.48",ALLIED CARE (MHS) LTD,SP0001069
WANDSWORTH COUNCIL,ASC,SOCIAL SERVICES,PRIVATE,Revenue,EXTERNAL RESIDENTIAL CARE,130245330,25/04/16,931080,"4,839.00",ALLIED CARE (MHS) LTD,SP0001069
WANDSWORTH COUNCIL,ASC,SOCIAL SERVICES,PRIVATE,Revenue,EXTERNAL RESIDENTIAL CARE,130245330,28/04/16,934277,"4,566.84",ALLIED CARE LTD T/A ASHSTEAD HOUSE LTD,SP0009950
WANDSWORTH COUNCIL,ASC,SOCIAL SERVICES,PRIVATE,Revenue,EXTERNAL RESIDENTIAL CARE,130245330,13/04/16,919054,"10,946.36",ASHCROFT CARE SERVICES,SP0000872
WANDSWORTH COUNCIL,ASC,SOCIAL SERVICES,PRIVATE,Revenue,EXTERNAL RESIDENTIAL CARE,130245330,13/04/16,919073,"3,970.57",BEECH LODGE,SP0000807
WANDSWORTH COUNCIL,ASC,SOCIAL SERVICES,PRIVATE,Revenue,EXTERNAL RESIDENTIAL CARE,130245330,13/04/16,919074,"3,970.57",BEECH LODGE,SP0000807
WANDSWORTH COUNCIL,ASC,SOCIAL SERVICES,PRIVATE,Revenue,EXTERNAL RESIDENTIAL CARE,130245330,13/04/16,919075,"3,970.57",BEECH LODGE,SP0000807
WANDSWORTH COUNCIL,ASC,SOCIAL SERVICES,PRIVATE,Revenue,EXTERNAL RESIDENTIAL CARE,130245330,28/04/16,934244,"6,439.77",BIRCC,SP0000584
WANDSWORTH COUNCIL,ASC,SOCIAL SERVICES,PRIVATE,Revenue,EXTERNAL RESIDENTIAL CARE,130245330,25/04/16,931082,"7,424.00",C.H.O.I.C.E LIMITED,SP0010438
WANDSWORTH COUNCIL,ASC,SOCIAL SERVICES,PRIVATE,Revenue,EXTERNAL RESIDENTIAL CARE,130245330,29/04/16,935594,"13,842.03",CAMBIAN LEARNING DISABILITIES MIDLANDS,SP0010672
WANDSWORTH COUNCIL,ASC,SOCIAL SERVICES,PRIVATE,Revenue,EXTERNAL RESIDENTIAL CARE,130245330,28/04/16,934235,"4,689.36",CAMERON LODGE LIMITED,SP0000271
WANDSWORTH COUNCIL,ASC,SOCIAL SERVICES,PRIVATE,Revenue,EXTERNAL RESIDENTIAL CARE,130245330,28/04/16,934210,"3,397.64",CARE UNLIMITED DOMCARE LIMITED,SP0005359
WANDSWORTH COUNCIL,ASC,SOCIAL SERVICES,PRIVATE,Revenue,EXTERNAL RESIDENTIAL CARE,130245330,28/04/16,934211,"3,631.96",CARE UNLIMITED DOMCARE LIMITED,SP0005359
WANDSWORTH COUNCIL,ASC,SOCIAL SERVICES,PRIVATE,Revenue,EXTERNAL RESIDENTIAL CARE,130245330,28/04/16,934212,"3,514.80",CARE UNLIMITED DOMCARE LIMITED,SP0005359
WANDSWORTH COUNCIL,ASC,SOCIAL SERVICES,PRIVATE,Revenue,EXTERNAL RESIDENTIAL CARE,130245330,06/04/16,914575,"3,975.08",CENTRUST CARE HOMES LTD,SP0000141
WANDSWORTH COUNCIL,ASC,SOCIAL SERVICES,PRIVATE,Revenue,EXTERNAL RESIDENTIAL CARE,130245330,21/04/16,927653,"9,200.00",CHATSWORTH CARE,SP0000831
WANDSWORTH COUNCIL,ASC,SOCIAL SERVICES,PRIVATE,Revenue,EXTERNAL RESIDENTIAL CARE,130245330,21/04/16,927654,"9,200.00",CHATSWORTH CARE,SP0000831
WANDSWORTH COUNCIL,ASC,SOCIAL SERVICES,PRIVATE,Revenue,EXTERNAL RESIDENTIAL CARE,130245330,21/04/16,927659,"7,959.11",CHATSWORTH CARE,SP0000831
WANDSWORTH COUNCIL,ASC,SOCIAL SERVICES,PRIVATE,Revenue,EXTERNAL RESIDENTIAL CARE,130245330,21/04/16,927660,"7,702.37",CHATSWORTH CARE,SP0000831
WANDSWORTH COUNCIL,ASC,SOCIAL SERVICES,PRIVATE,Revenue,EXTERNAL RESIDENTIAL CARE,130245330,13/04/16,919076,"3,990.72",CHERRY LODGE,SP0000965
WANDSWORTH COUNCIL,ASC,SOCIAL SERVICES,PRIVATE,Revenue,EXTERNAL RESIDENTIAL CARE,130245330,13/04/16,919077,"5,674.36",CMG HOMES LTD,SP0000075
WANDSWORTH COUNCIL,ASC,SOCIAL SERVICES,PRIVATE,Revenue,EXTERNAL RESIDENTIAL CARE,130245330,13/04/16,919079,"3,940.80",CMG HOMES LTD,SP0000075
WANDSWORTH COUNCIL,ASC,SOCIAL SERVICES,PRIVATE,Revenue,EXTERNAL RESIDENTIAL CARE,130245330,13/04/16,919080,"6,052.16",CMG HOMES LTD,SP0000075
WANDSWORTH COUNCIL,ASC,SOCIAL SERVICES,PRIVATE,Revenue,EXTERNAL RESIDENTIAL CARE,130245330,13/04/16,919081,"5,594.64",CMG HOMES LTD,SP0000075
WANDSWORTH COUNCIL,ASC,SOCIAL SERVICES,PRIVATE,Revenue,EXTERNAL RESIDENTIAL CARE,130245330,13/04/16,919082,"4,404.80",CMG HOMES LTD,SP0000075
WANDSWORTH COUNCIL,ASC,SOCIAL SERVICES,PRIVATE,Revenue,EXTERNAL RESIDENTIAL CARE,130245330,13/04/16,919083,"3,987.92",CMG HOMES LTD,SP0000075
WANDSWORTH COUNCIL,ASC,SOCIAL SERVICES,PRIVATE,Revenue,EXTERNAL RESIDENTIAL CARE,130245330,13/04/16,919084,"3,909.12",CMG HOMES LTD,SP0000075
WANDSWORTH COUNCIL,ASC,SOCIAL SERVICES,PRIVATE,Revenue,EXTERNAL RESIDENTIAL CARE,130245330,13/04/16,919085,"8,121.44",CMG HOMES LTD,SP0000075
WANDSWORTH COUNCIL,ASC,SOCIAL SERVICES,PRIVATE,Revenue,EXTERNAL RESIDENTIAL CARE,130245330,13/04/16,919086,"4,902.84",CMG HOMES LTD,SP0000075
WANDSWORTH COUNCIL,ASC,SOCIAL SERVICES,PRIVATE,Revenue,EXTERNAL RESIDENTIAL CARE,130245330,13/04/16,919087,"4,680.84",CMG HOMES LTD,SP0000075
WANDSWORTH COUNCIL,ASC,SOCIAL SERVICES,PRIVATE,Revenue,EXTERNAL RESIDENTIAL CARE,130245330,13/04/16,919088,"7,188.28",CMG HOMES LTD,SP0000075
WANDSWORTH COUNCIL,ASC,SOCIAL SERVICES,PRIVATE,Revenue,EXTERNAL RESIDENTIAL CARE,130245330,13/04/16,919089,"4,448.72",CMG HOMES LTD,SP0000075
WANDSWORTH COUNCIL,ASC,SOCIAL SERVICES,PRIVATE,Revenue,EXTERNAL RESIDENTIAL CARE,130245330,25/04/16,931087,"7,928.57",CONDOVER COLLEGE LTD,SP0001641
WANDSWORTH COUNCIL,ASC,SOCIAL SERVICES,PRIVATE,Revenue,EXTERNAL RESIDENTIAL CARE,130245330,26/04/16,932122,"8,192.86",CONDOVER COLLEGE LTD,SP0001641
WANDSWORTH COUNCIL,ASC,SOCIAL SERVICES,PRIVATE,Revenue,EXTERNAL RESIDENTIAL CARE,130245330,26/04/16,932123,"1,740.00",CONDOVER COLLEGE LTD,SP0001641
WANDSWORTH COUNCIL,ASC,SOCIAL SERVICES,PRIVATE,Revenue,EXTERNAL RESIDENTIAL CARE,130245330,18/04/16,924562,"2,950.92",CRAEGMOOR FACILITIES CO LTD,SP0000306
WANDSWORTH COUNCIL,ASC,SOCIAL SERVICES,PRIVATE,Revenue,EXTERNAL RESIDENTIAL CARE,130245330,18/04/16,924539,"3,523.28",CRAEGMOOR OLD RECTORY BREDE PRIORY,SP0001621
WANDSWORTH COUNCIL,ASC,SOCIAL SERVICES,PRIVATE,Revenue,EXTERNAL RESIDENTIAL CARE,130245330,28/04/16,934302,"9,861.00","CRAEGMOOR, PARKCARE HOMES (NO2) LTD TA W",SP0010529
WANDSWORTH COUNCIL,ASC,SOCIAL SERVICES,PRIVATE,Revenue,EXTERNAL RESIDENTIAL CARE,130245330,13/04/16,919093,"3,469.00",CSS LTD T/A THF CARE ESTATES LTD,SP0005682
WANDSWORTH COUNCIL,ASC,SOCIAL SERVICES,PRIVATE,Revenue,EXTERNAL RESIDENTIAL CARE,130245330,13/04/16,919095,"3,469.00",CSS LTD T/A THF CARE ESTATES LTD,SP0005682
WANDSWORTH COUNCIL,ASC,SOCIAL SERVICES,PRIVATE,Revenue,EXTERNAL RESIDENTIAL CARE,130245330,13/04/16,919097,"3,469.00",CSS LTD T/A THF CARE ESTATES LTD,SP0005682
WANDSWORTH COUNCIL,ASC,SOCIAL SERVICES,PRIVATE,Revenue,EXTERNAL RESIDENTIAL CARE,130245330,13/04/16,919099,"3,469.00",CSS LTD T/A THF CARE ESTATES LTD,SP0005682
WANDSWORTH COUNCIL,ASC,SOCIAL SERVICES,PRIVATE,Revenue,EXTERNAL RESIDENTIAL CARE,130245330,28/04/16,934303,"5,980.80",ENHAM,SP0005845
WANDSWORTH COUNCIL,ASC,SOCIAL SERVICES,PRIVATE,Revenue,EXTERNAL RESIDENTIAL CARE,130245330,26/04/16,932139,"6,299.33",EVERGREEN PARTNERSHIP,SP0000597
WANDSWORTH COUNCIL,ASC,SOCIAL SERVICES,PRIVATE,Revenue,EXTERNAL RESIDENTIAL CARE,130245330,25/04/16,931083,"2,267.32",FREEWAYS TRUST LTD,SP0000793
WANDSWORTH COUNCIL,ASC,SOCIAL SERVICES,PRIVATE,Revenue,EXTERNAL RESIDENTIAL CARE,130245330,18/04/16,917640,"3,444.45",HASTINGS & BEXHILL MENCAP SOCIETY,SP0005380
WANDSWORTH COUNCIL,ASC,SOCIAL SERVICES,PRIVATE,Revenue,EXTERNAL RESIDENTIAL CARE,130245330,12/04/16,917645,"3,724.72",HAYDON PARK LODGE LTD,SP0000231
WANDSWORTH COUNCIL,ASC,SOCIAL SERVICES,PRIVATE,Revenue,EXTERNAL RESIDENTIAL CARE,130245330,12/04/16,917646,"3,724.72",HAYDON PARK LODGE LTD,SP0000231
WANDSWORTH COUNCIL,ASC,SOCIAL SERVICES,PRIVATE,Revenue,EXTERNAL RESIDENTIAL CARE,130245330,12/04/16,917647,"3,724.72",HAYDON PARK LODGE LTD,SP0000231
WANDSWORTH COUNCIL,ASC,SOCIAL SERVICES,PRIVATE,Revenue,EXTERNAL RESIDENTIAL CARE,130245330,13/04/16,919065,"12,485.03",ILG LTD,SP0001103
WANDSWORTH COUNCIL,ASC,SOCIAL SERVICES,PRIVATE,Revenue,EXTERNAL RESIDENTIAL CARE,130245330,28/04/16,934327,"3,449.46",INSPIRE CARE OUTREACH LIMITED,SP0010404
WANDSWORTH COUNCIL,ASC,SOCIAL SERVICES,PRIVATE,Revenue,EXTERNAL RESIDENTIAL CARE,130245330,28/04/16,934328,"3,092.66",INSPIRE CARE OUTREACH LIMITED,SP0010404
WANDSWORTH COUNCIL,ASC,SOCIAL SERVICES,PRIVATE,Revenue,EXTERNAL RESIDENTIAL CARE,130245330,28/04/16,934329,"3,115.64",INSPIRE CARE OUTREACH LIMITED,SP0010404
WANDSWORTH COUNCIL,ASC,SOCIAL SERVICES,PRIVATE,Revenue,EXTERNAL RESIDENTIAL CARE,130245330,28/04/16,934330,"1,557.82",INSPIRE CARE OUTREACH LIMITED,SP0010404
WANDSWORTH COUNCIL,ASC,SOCIAL SERVICES,PRIVATE,Revenue,EXTERNAL RESIDENTIAL CARE,130245330,12/04/16,917641,"4,150.04",KENILWORTH RESIDENTIAL HOME,SP0000432
WANDSWORTH COUNCIL,ASC,SOCIAL SERVICES,PRIVATE,Revenue,EXTERNAL RESIDENTIAL CARE,130245330,12/04/16,917642,"3,976.44",KENILWORTH RESIDENTIAL HOME,SP0000432
WANDSWORTH COUNCIL,ASC,SOCIAL SERVICES,PRIVATE,Revenue,EXTERNAL RESIDENTIAL CARE,130245330,25/04/16,931105,"4,558.48",LAETUS LODGE,SP0000600
WANDSWORTH COUNCIL,ASC,SOCIAL SERVICES,PRIVATE,Revenue,EXTERNAL RESIDENTIAL CARE,130245330,25/04/16,931106,"4,792.20",LAETUS LODGE,SP0000600
WANDSWORTH COUNCIL,ASC,SOCIAL SERVICES,PRIVATE,Revenue,EXTERNAL RESIDENTIAL CARE,130245330,25/04/16,931107,"6,096.48",LAETUS LODGE,SP0000600
WANDSWORTH COUNCIL,ASC,SOCIAL SERVICES,PRIVATE,Revenue,EXTERNAL RESIDENTIAL CARE,130245330,25/04/16,931108,"6,193.48",LAETUS LODGE,SP0000600
WANDSWORTH COUNCIL,ASC,SOCIAL SERVICES,PRIVATE,Revenue,EXTERNAL RESIDENTIAL CARE,130245330,25/04/16,931109,"3,669.12",LAETUS LODGE,SP0000600
WANDSWORTH COUNCIL,ASC,SOCIAL SERVICES,PRIVATE,Revenue,EXTERNAL RESIDENTIAL CARE,130245330,25/04/16,931110,"3,759.76",LAETUS LODGE,SP0000600
WANDSWORTH COUNCIL,ASC,SOCIAL SERVICES,PRIVATE,Revenue,EXTERNAL RESIDENTIAL CARE,130245330,25/04/16,931111,"5,240.56",LAETUS LODGE,SP0000600
WANDSWORTH COUNCIL,ASC,SOCIAL SERVICES,PRIVATE,Revenue,EXTERNAL RESIDENTIAL CARE,130245330,28/04/16,934213,"4,558.48",LAETUS LODGE,SP0000600
WANDSWORTH COUNCIL,ASC,SOCIAL SERVICES,PRIVATE,Revenue,EXTERNAL RESIDENTIAL CARE,130245330,28/04/16,934214,"4,800.20",LAETUS LODGE,SP0000600
WANDSWORTH COUNCIL,ASC,SOCIAL SERVICES,PRIVATE,Revenue,EXTERNAL RESIDENTIAL CARE,130245330,28/04/16,934215,"6,096.48",LAETUS LODGE,SP0000600
WANDSWORTH COUNCIL,ASC,SOCIAL SERVICES,PRIVATE,Revenue,EXTERNAL RESIDENTIAL CARE,130245330,28/04/16,934216,"6,193.48",LAETUS LODGE,SP0000600
WANDSWORTH COUNCIL,ASC,SOCIAL SERVICES,PRIVATE,Revenue,EXTERNAL RESIDENTIAL CARE,130245330,28/04/16,934217,"3,669.12",LAETUS LODGE,SP0000600
WANDSWORTH COUNCIL,ASC,SOCIAL SERVICES,PRIVATE,Revenue,EXTERNAL RESIDENTIAL CARE,130245330,28/04/16,934218,"3,767.76",LAETUS LODGE,SP0000600
WANDSWORTH COUNCIL,ASC,SOCIAL SERVICES,PRIVATE,Revenue,EXTERNAL RESIDENTIAL CARE,130245330,28/04/16,934219,"5,248.56",LAETUS LODGE,SP0000600
WANDSWORTH COUNCIL,ASC,SOCIAL SERVICES,PRIVATE,Revenue,EXTERNAL RESIDENTIAL CARE,130245330,13/04/16,919101,"7,791.43",LD CARE,SP0005447
WANDSWORTH COUNCIL,ASC,SOCIAL SERVICES,PRIVATE,Revenue,EXTERNAL RESIDENTIAL CARE,130245330,13/04/16,919102,"7,285.71",LD CARE,SP0005447
WANDSWORTH COUNCIL,ASC,SOCIAL SERVICES,PRIVATE,Revenue,EXTERNAL RESIDENTIAL CARE,130245330,13/04/16,919103,"8,051.14",LD CARE,SP0005447
WANDSWORTH COUNCIL,ASC,SOCIAL SERVICES,PRIVATE,Revenue,EXTERNAL RESIDENTIAL CARE,130245330,13/04/16,919104,"7,528.57",LD CARE,SP0005447
WANDSWORTH COUNCIL,ASC,SOCIAL SERVICES,PRIVATE,Revenue,EXTERNAL RESIDENTIAL CARE,130245330,13/04/16,919105,"8,051.14",LD CARE,SP0005447
WANDSWORTH COUNCIL,ASC,SOCIAL SERVICES,PRIVATE,Revenue,EXTERNAL RESIDENTIAL CARE,130245330,13/04/16,919106,"7,528.27",LD CARE,SP0005447
WANDSWORTH COUNCIL,ASC,SOCIAL SERVICES,PRIVATE,Revenue,EXTERNAL RESIDENTIAL CARE,130245330,13/04/16,919107,"7,531.71",LD CARE,SP0005447
WANDSWORTH COUNCIL,ASC,SOCIAL SERVICES,PRIVATE,Revenue,EXTERNAL RESIDENTIAL CARE,130245330,13/04/16,919108,"7,042.86",LD CARE,SP0005447
WANDSWORTH COUNCIL,ASC,SOCIAL SERVICES,PRIVATE,Revenue,EXTERNAL RESIDENTIAL CARE,130245330,13/04/16,919109,"8,051.14",LD CARE,SP0005447
WANDSWORTH COUNCIL,ASC,SOCIAL SERVICES,PRIVATE,Revenue,EXTERNAL RESIDENTIAL CARE,130245330,13/04/16,919110,"7,528.57",LD CARE,SP0005447
WANDSWORTH COUNCIL,ASC,SOCIAL SERVICES,PRIVATE,Revenue,EXTERNAL RESIDENTIAL CARE,130245330,29/04/16,934323,"4,359.84",LEONARD CHESHIRE,SP0000976
WANDSWORTH COUNCIL,ASC,SOCIAL SERVICES,PRIVATE,Revenue,EXTERNAL RESIDENTIAL CARE,130245330,29/04/16,935539,"4,702.61",LEONARD CHESHIRE,SP0000976
WANDSWORTH COUNCIL,ASC,SOCIAL SERVICES,PRIVATE,Revenue,EXTERNAL RESIDENTIAL CARE,130245330,12/04/16,917643,"6,060.62",LIVING AMBITIONS LIMITED,SP0001039
WANDSWORTH COUNCIL,ASC,SOCIAL SERVICES,PRIVATE,Revenue,EXTERNAL RESIDENTIAL CARE,130245330,13/04/16,919118,"5,669.62",LIVING AMBITIONS LIMITED,SP0001039
WANDSWORTH COUNCIL,ASC,SOCIAL SERVICES,PRIVATE,Revenue,EXTERNAL RESIDENTIAL CARE,130245330,25/04/16,931088,"7,717.76",LORING HALL LIMITED,SP0000511
WANDSWORTH COUNCIL,ASC,SOCIAL SERVICES,PRIVATE,Revenue,EXTERNAL RESIDENTIAL CARE,130245330,28/04/16,935115,"4,613.60",LOTUS CARE HOME LTD,SP0001006
WANDSWORTH COUNCIL,ASC,SOCIAL SERVICES,PRIVATE,Revenue,EXTERNAL RESIDENTIAL CARE,130245330,28/04/16,935116,"4,613.60",LOTUS CARE HOME LTD,SP0001006
WANDSWORTH COUNCIL,ASC,SOCIAL SERVICES,PRIVATE,Revenue,EXTERNAL RESIDENTIAL CARE,130245330,12/04/16,917632,"11,475.88",LOVING CARE LTD,SP0000670
WANDSWORTH COUNCIL,ASC,SOCIAL SERVICES,PRIVATE,Revenue,EXTERNAL RESIDENTIAL CARE,130245330,12/04/16,917633,"11,322.96",LOVING CARE LTD,SP0000670
WANDSWORTH COUNCIL,ASC,SOCIAL SERVICES,PRIVATE,Revenue,EXTERNAL RESIDENTIAL CARE,130245330,12/04/16,917634,"11,282.12",LOVING CARE LTD,SP0000670
WANDSWORTH COUNCIL,ASC,SOCIAL SERVICES,PRIVATE,Revenue,EXTERNAL RESIDENTIAL CARE,130245330,12/04/16,917635,"11,017.24",LOVING CARE LTD,SP0000670
WANDSWORTH COUNCIL,ASC,SOCIAL SERVICES,PRIVATE,Revenue,EXTERNAL RESIDENTIAL CARE,130245330,12/04/16,917636,"11,475.88",LOVING CARE LTD,SP0000670
WANDSWORTH COUNCIL,ASC,SOCIAL SERVICES,PRIVATE,Revenue,EXTERNAL RESIDENTIAL CARE,130245330,12/04/16,917637,"11,170.12",LOVING CARE LTD,SP0000670
WANDSWORTH COUNCIL,ASC,SOCIAL SERVICES,PRIVATE,Revenue,EXTERNAL RESIDENTIAL CARE,130245330,28/04/16,934304,"5,210.48",MACINTYRE CARE,SP0000473
WANDSWORTH COUNCIL,ASC,SOCIAL SERVICES,PRIVATE,Revenue,EXTERNAL RESIDENTIAL CARE,130245330,28/04/16,934305,"5,429.64",MACINTYRE CARE,SP0000473
WANDSWORTH COUNCIL,ASC,SOCIAL SERVICES,PRIVATE,Revenue,EXTERNAL RESIDENTIAL CARE,130245330,28/04/16,934307,"3,767.07",MACINTYRE CARE,SP0000473
WANDSWORTH COUNCIL,ASC,SOCIAL SERVICES,PRIVATE,Revenue,EXTERNAL RESIDENTIAL CARE,130245330,28/04/16,934308,"5,192.48",MACINTYRE CARE,SP0000473
WANDSWORTH COUNCIL,ASC,SOCIAL SERVICES,PRIVATE,Revenue,EXTERNAL RESIDENTIAL CARE,130245330,28/04/16,934309,"3,750.72",MACINTYRE CARE,SP0000473
WANDSWORTH COUNCIL,ASC,SOCIAL SERVICES,PRIVATE,Revenue,EXTERNAL RESIDENTIAL CARE,130245330,28/04/16,934310,"5,097.20",MACINTYRE CARE,SP0000473
WANDSWORTH COUNCIL,ASC,SOCIAL SERVICES,PRIVATE,Revenue,EXTERNAL RESIDENTIAL CARE,130245330,28/04/16,934311,"2,301.48",MACINTYRE CARE,SP0000473
WANDSWORTH COUNCIL,ASC,SOCIAL SERVICES,PRIVATE,Revenue,EXTERNAL RESIDENTIAL CARE,130245330,28/04/16,934312,"8,054.44",MACINTYRE CARE,SP0000473
WANDSWORTH COUNCIL,ASC,SOCIAL SERVICES,PRIVATE,Revenue,EXTERNAL RESIDENTIAL CARE,130245330,28/04/16,934313,"5,037.99",MACINTYRE CARE,SP0000473
WANDSWORTH COUNCIL,ASC,SOCIAL SERVICES,PRIVATE,Revenue,EXTERNAL RESIDENTIAL CARE,130245330,28/04/16,934314,"5,437.93",MACINTYRE CARE,SP0000473
WANDSWORTH COUNCIL,ASC,SOCIAL SERVICES,PRIVATE,Revenue,EXTERNAL RESIDENTIAL CARE,130245330,28/04/16,934315,"4,915.19",MACINTYRE CARE,SP0000473
WANDSWORTH COUNCIL,ASC,SOCIAL SERVICES,PRIVATE,Revenue,EXTERNAL RESIDENTIAL CARE,130245330,28/04/16,934316,"4,304.17",MACINTYRE CARE,SP0000473
WANDSWORTH COUNCIL,ASC,SOCIAL SERVICES,PRIVATE,Revenue,EXTERNAL RESIDENTIAL CARE,130245330,28/04/16,934317,"4,917.33",MACINTYRE CARE,SP0000473
WANDSWORTH COUNCIL,ASC,SOCIAL SERVICES,PRIVATE,Revenue,EXTERNAL RESIDENTIAL CARE,130245330,28/04/16,934319,"4,904.32",MACINTYRE CARE,SP0000473
WANDSWORTH COUNCIL,ASC,SOCIAL SERVICES,PRIVATE,Revenue,EXTERNAL RESIDENTIAL CARE,130245330,28/04/16,934320,"4,915.19",MACINTYRE CARE,SP0000473
WANDSWORTH COUNCIL,ASC,SOCIAL SERVICES,PRIVATE,Revenue,EXTERNAL RESIDENTIAL CARE,130245330,28/04/16,934321,"5,030.56",MACINTYRE CARE,SP0000473
WANDSWORTH COUNCIL,ASC,SOCIAL SERVICES,PRIVATE,Revenue,EXTERNAL RESIDENTIAL CARE,130245330,28/04/16,934322,"4,915.19",MACINTYRE CARE,SP0000473
WANDSWORTH COUNCIL,ASC,SOCIAL SERVICES,PRIVATE,Revenue,EXTERNAL RESIDENTIAL CARE,130245330,28/04/16,935113,"4,909.16",MACINTYRE CARE,SP0000473
WANDSWORTH COUNCIL,ASC,SOCIAL SERVICES,PRIVATE,Revenue,EXTERNAL RESIDENTIAL CARE,130245330,26/04/16,932172,"3,659.52",METROPOLITAN HOUSING TRUST,SP0000626
WANDSWORTH COUNCIL,ASC,SOCIAL SERVICES,PRIVATE,Revenue,EXTERNAL RESIDENTIAL CARE,130245330,26/04/16,932173,"3,659.52",METROPOLITAN HOUSING TRUST,SP0000626
WANDSWORTH COUNCIL,ASC,SOCIAL SERVICES,PRIVATE,Revenue,EXTERNAL RESIDENTIAL CARE,130245330,26/04/16,932174,"3,659.52",METROPOLITAN HOUSING TRUST,SP0000626
WANDSWORTH COUNCIL,ASC,SOCIAL SERVICES,PRIVATE,Revenue,EXTERNAL RESIDENTIAL CARE,130245330,26/04/16,932175,"3,659.68",METROPOLITAN HOUSING TRUST,SP0000626
WANDSWORTH COUNCIL,ASC,SOCIAL SERVICES,PRIVATE,Revenue,EXTERNAL RESIDENTIAL CARE,130245330,26/04/16,932176,"3,659.52",METROPOLITAN HOUSING TRUST,SP0000626
WANDSWORTH COUNCIL,ASC,SOCIAL SERVICES,PRIVATE,Revenue,EXTERNAL RESIDENTIAL CARE,130245330,26/04/16,932177,"3,812.04",METROPOLITAN HOUSING TRUST,SP0000626
WANDSWORTH COUNCIL,ASC,SOCIAL SERVICES,PRIVATE,Revenue,EXTERNAL RESIDENTIAL CARE,130245330,26/04/16,932178,"3,659.52",METROPOLITAN HOUSING TRUST,SP0000626
WANDSWORTH COUNCIL,ASC,SOCIAL SERVICES,PRIVATE,Revenue,EXTERNAL RESIDENTIAL CARE,130245330,26/04/16,932179,"4,756.92",METROPOLITAN HOUSING TRUST,SP0000626
WANDSWORTH COUNCIL,ASC,SOCIAL SERVICES,PRIVATE,Revenue,EXTERNAL RESIDENTIAL CARE,130245330,26/04/16,932180,"4,756.88",METROPOLITAN HOUSING TRUST,SP0000626
WANDSWORTH COUNCIL,ASC,SOCIAL SERVICES,PRIVATE,Revenue,EXTERNAL RESIDENTIAL CARE,130245330,26/04/16,932181,"4,756.88",METROPOLITAN HOUSING TRUST,SP0000626
WANDSWORTH COUNCIL,ASC,SOCIAL SERVICES,PRIVATE,Revenue,EXTERNAL RESIDENTIAL CARE,130245330,26/04/16,932182,"4,427.04",METROPOLITAN HOUSING TRUST,SP0000626
WANDSWORTH COUNCIL,ASC,SOCIAL SERVICES,PRIVATE,Revenue,EXTERNAL RESIDENTIAL CARE,130245330,26/04/16,932183,"4,709.79",METROPOLITAN HOUSING TRUST,SP0000626
WANDSWORTH COUNCIL,ASC,SOCIAL SERVICES,PRIVATE,Revenue,EXTERNAL RESIDENTIAL CARE,130245330,26/04/16,932184,"4,709.79",METROPOLITAN HOUSING TRUST,SP0000626
WANDSWORTH COUNCIL,ASC,SOCIAL SERVICES,PRIVATE,Revenue,EXTERNAL RESIDENTIAL CARE,130245330,28/04/16,934192,"3,659.52",METROPOLITAN HOUSING TRUST,SP0000626
WANDSWORTH COUNCIL,ASC,SOCIAL SERVICES,PRIVATE,Revenue,EXTERNAL RESIDENTIAL CARE,130245330,28/04/16,934193,"3,659.52",METROPOLITAN HOUSING TRUST,SP0000626
WANDSWORTH COUNCIL,ASC,SOCIAL SERVICES,PRIVATE,Revenue,EXTERNAL RESIDENTIAL CARE,130245330,28/04/16,934194,"3,659.52",METROPOLITAN HOUSING TRUST,SP0000626
WANDSWORTH COUNCIL,ASC,SOCIAL SERVICES,PRIVATE,Revenue,EXTERNAL RESIDENTIAL CARE,130245330,28/04/16,934195,"3,659.68",METROPOLITAN HOUSING TRUST,SP0000626
WANDSWORTH COUNCIL,ASC,SOCIAL SERVICES,PRIVATE,Revenue,EXTERNAL RESIDENTIAL CARE,130245330,28/04/16,934196,"3,659.52",METROPOLITAN HOUSING TRUST,SP0000626
WANDSWORTH COUNCIL,ASC,SOCIAL SERVICES,PRIVATE,Revenue,EXTERNAL RESIDENTIAL CARE,130245330,28/04/16,934197,"3,659.52",METROPOLITAN HOUSING TRUST,SP0000626
WANDSWORTH COUNCIL,ASC,SOCIAL SERVICES,PRIVATE,Revenue,EXTERNAL RESIDENTIAL CARE,130245330,28/04/16,934198,"3,659.52",METROPOLITAN HOUSING TRUST,SP0000626
WANDSWORTH COUNCIL,ASC,SOCIAL SERVICES,PRIVATE,Revenue,EXTERNAL RESIDENTIAL CARE,130245330,28/04/16,934199,"4,756.88",METROPOLITAN HOUSING TRUST,SP0000626
WANDSWORTH COUNCIL,ASC,SOCIAL SERVICES,PRIVATE,Revenue,EXTERNAL RESIDENTIAL CARE,130245330,28/04/16,934200,"2,067.29",METROPOLITAN HOUSING TRUST,SP0000626
WANDSWORTH COUNCIL,ASC,SOCIAL SERVICES,PRIVATE,Revenue,EXTERNAL RESIDENTIAL CARE,130245330,28/04/16,934201,"4,756.88",METROPOLITAN HOUSING TRUST,SP0000626
WANDSWORTH COUNCIL,ASC,SOCIAL SERVICES,PRIVATE,Revenue,EXTERNAL RESIDENTIAL CARE,130245330,28/04/16,934202,"4,427.04",METROPOLITAN HOUSING TRUST,SP0000626
WANDSWORTH COUNCIL,ASC,SOCIAL SERVICES,PRIVATE,Revenue,EXTERNAL RESIDENTIAL CARE,130245330,28/04/16,934204,"4,709.79",METROPOLITAN HOUSING TRUST,SP0000626
WANDSWORTH COUNCIL,ASC,SOCIAL SERVICES,PRIVATE,Revenue,EXTERNAL RESIDENTIAL CARE,130245330,28/04/16,934206,"4,756.88",METROPOLITAN HOUSING TRUST,SP0000626
WANDSWORTH COUNCIL,ASC,SOCIAL SERVICES,PRIVATE,Revenue,EXTERNAL RESIDENTIAL CARE,130245330,28/04/16,935114,"3,812.04",METROPOLITAN HOUSING TRUST,SP0000626
WANDSWORTH COUNCIL,ASC,SOCIAL SERVICES,PRIVATE,Revenue,EXTERNAL RESIDENTIAL CARE,130245330,29/04/16,935599,"3,659.52",METROPOLITAN HOUSING TRUST,SP0000626
WANDSWORTH COUNCIL,ASC,SOCIAL SERVICES,PRIVATE,Revenue,EXTERNAL RESIDENTIAL CARE,130245330,29/04/16,935600,"4,709.79",METROPOLITAN HOUSING TRUST,SP0000626
WANDSWORTH COUNCIL,ASC,SOCIAL SERVICES,PRIVATE,Revenue,EXTERNAL RESIDENTIAL CARE,130245330,12/04/16,917638,"6,868.00",MIGHOUSE RESIDENTIAL CARE HOME LTD,SP0001402
WANDSWORTH COUNCIL,ASC,SOCIAL SERVICES,PRIVATE,Revenue,EXTERNAL RESIDENTIAL CARE,130245330,12/04/16,917639,"7,113.29",MIGHOUSE RESIDENTIAL CARE HOME LTD,SP0001402
WANDSWORTH COUNCIL,ASC,SOCIAL SERVICES,PRIVATE,Revenue,EXTERNAL RESIDENTIAL CARE,130245330,13/04/16,919119,"2,930.00",MISSION CARE,SP0000958
WANDSWORTH COUNCIL,ASC,SOCIAL SERVICES,PRIVATE,Revenue,EXTERNAL RESIDENTIAL CARE,130245330,28/04/16,934224,"2,930.00",MISSION CARE,SP0000958
WANDSWORTH COUNCIL,ASC,SOCIAL SERVICES,PRIVATE,Revenue,EXTERNAL RESIDENTIAL CARE,130245330,14/04/16,919785,"8,689.12",NAS SERVICES LIMITED,SP0000217
WANDSWORTH COUNCIL,ASC,SOCIAL SERVICES,PRIVATE,Revenue,EXTERNAL RESIDENTIAL CARE,130245330,21/04/16,927633,"5,436.36",NAS SERVICES LIMITED,SP0000217
WANDSWORTH COUNCIL,ASC,SOCIAL SERVICES,PRIVATE,Revenue,EXTERNAL RESIDENTIAL CARE,130245330,21/04/16,927634,"8,689.12",NAS SERVICES LIMITED,SP0000217
WANDSWORTH COUNCIL,ASC,SOCIAL SERVICES,PRIVATE,Revenue,EXTERNAL RESIDENTIAL CARE,130245330,21/04/16,927635,"8,689.12",NAS SERVICES LIMITED,SP0000217
WANDSWORTH COUNCIL,ASC,SOCIAL SERVICES,PRIVATE,Revenue,EXTERNAL RESIDENTIAL CARE,130245330,28/04/16,934245,"5,455.66",NAS SERVICES LIMITED,SP0000217
WANDSWORTH COUNCIL,ASC,SOCIAL SERVICES,PRIVATE,Revenue,EXTERNAL RESIDENTIAL CARE,130245330,28/04/16,934246,"6,463.30",NAS SERVICES LIMITED,SP0000217
WANDSWORTH COUNCIL,ASC,SOCIAL SERVICES,PRIVATE,Revenue,EXTERNAL RESIDENTIAL CARE,130245330,28/04/16,934247,"5,474.96",NAS SERVICES LIMITED,SP0000217
WANDSWORTH COUNCIL,ASC,SOCIAL SERVICES,PRIVATE,Revenue,EXTERNAL RESIDENTIAL CARE,130245330,28/04/16,934248,"6,485.84",NAS SERVICES LIMITED,SP0000217
WANDSWORTH COUNCIL,ASC,SOCIAL SERVICES,PRIVATE,Revenue,EXTERNAL RESIDENTIAL CARE,130245330,13/04/16,919045,"7,501.72",NORCREST (2000) HOME LTD,SP0008343
WANDSWORTH COUNCIL,ASC,SOCIAL SERVICES,PRIVATE,Revenue,EXTERNAL RESIDENTIAL CARE,130245330,13/04/16,919046,"7,501.72",NORCREST (2000) HOME LTD,SP0008343
WANDSWORTH COUNCIL,ASC,SOCIAL SERVICES,PRIVATE,Revenue,EXTERNAL RESIDENTIAL CARE,130245330,13/04/16,919047,"7,501.72",NORCREST (2000) HOME LTD,SP0008343
WANDSWORTH COUNCIL,ASC,SOCIAL SERVICES,PRIVATE,Revenue,EXTERNAL RESIDENTIAL CARE,130245330,13/04/16,919038,"1,647.40",ORCHARD VALE TRUST,SP0000214
WANDSWORTH COUNCIL,ASC,SOCIAL SERVICES,PRIVATE,Revenue,EXTERNAL RESIDENTIAL CARE,130245330,21/04/16,927626,"3,135.60",POTENSIAL LTD,SP0000395
WANDSWORTH COUNCIL,ASC,SOCIAL SERVICES,PRIVATE,Revenue,EXTERNAL RESIDENTIAL CARE,130245330,25/04/16,931100,"3,151.20",PROSPECTS,SP0000800
WANDSWORTH COUNCIL,ASC,SOCIAL SERVICES,PRIVATE,Revenue,EXTERNAL RESIDENTIAL CARE,130245330,06/04/16,914574,"4,062.44",RESIDENTIAL CARE SERVICES T/A FRANKLYN L,SP0000147
WANDSWORTH COUNCIL,ASC,SOCIAL SERVICES,PRIVATE,Revenue,EXTERNAL RESIDENTIAL CARE,130245330,13/04/16,919059,"6,006.65",RESIDENTIAL COMMUNITY CARE,SP0000315
WANDSWORTH COUNCIL,ASC,SOCIAL SERVICES,PRIVATE,Revenue,EXTERNAL RESIDENTIAL CARE,130245330,13/04/16,919060,"6,061.41",RESIDENTIAL COMMUNITY CARE,SP0000315
WANDSWORTH COUNCIL,ASC,SOCIAL SERVICES,PRIVATE,Revenue,EXTERNAL RESIDENTIAL CARE,130245330,08/04/16,915608,"6,493.16",RIDGEWOOD CARE SERVICES LTD,SP0000969
WANDSWORTH COUNCIL,ASC,SOCIAL SERVICES,PRIVATE,Revenue,EXTERNAL RESIDENTIAL CARE,130245330,08/04/16,915609,"3,538.76",RIDGEWOOD CARE SERVICES LTD,SP0000969
WANDSWORTH COUNCIL,ASC,SOCIAL SERVICES,PRIVATE,Revenue,EXTERNAL RESIDENTIAL CARE,130245330,08/04/16,915610,"3,766.44",RIDGEWOOD CARE SERVICES LTD,SP0000969
WANDSWORTH COUNCIL,ASC,SOCIAL SERVICES,PRIVATE,Revenue,EXTERNAL RESIDENTIAL CARE,130245330,18/04/16,924570,"3,538.76",RIDGEWOOD CARE SERVICES LTD,SP0000969
WANDSWORTH COUNCIL,ASC,SOCIAL SERVICES,PRIVATE,Revenue,EXTERNAL RESIDENTIAL CARE,130245330,18/04/16,924571,"3,557.60",RIDGEWOOD CARE SERVICES LTD,SP0000969
WANDSWORTH COUNCIL,ASC,SOCIAL SERVICES,PRIVATE,Revenue,EXTERNAL RESIDENTIAL CARE,130245330,18/04/16,924572,"6,497.24",RIDGEWOOD CARE SERVICES LTD,SP0000969
WANDSWORTH COUNCIL,ASC,SOCIAL SERVICES,PRIVATE,Revenue,EXTERNAL RESIDENTIAL CARE,130245330,18/04/16,924573,"3,766.44",RIDGEWOOD CARE SERVICES LTD,SP0000969
WANDSWORTH COUNCIL,ASC,SOCIAL SERVICES,PRIVATE,Revenue,EXTERNAL RESIDENTIAL CARE,130245330,18/04/16,924575,"3,766.44",RIDGEWOOD CARE SERVICES LTD,SP0000969
WANDSWORTH COUNCIL,ASC,SOCIAL SERVICES,PRIVATE,Revenue,EXTERNAL RESIDENTIAL CARE,130245330,07/04/16,914888,"5,840.68",ROYAL MENCAP SOCIETY,SP0000842
WANDSWORTH COUNCIL,ASC,SOCIAL SERVICES,PRIVATE,Revenue,EXTERNAL RESIDENTIAL CARE,130245330,07/04/16,914889,"4,197.68",ROYAL MENCAP SOCIETY,SP0000842
WANDSWORTH COUNCIL,ASC,SOCIAL SERVICES,PRIVATE,Revenue,EXTERNAL RESIDENTIAL CARE,130245330,19/04/16,926290,"10,219.46",SALISBURY SUPPORT 4 AUTISM LTD,SP0001691
WANDSWORTH COUNCIL,ASC,SOCIAL SERVICES,PRIVATE,Revenue,EXTERNAL RESIDENTIAL CARE,130245330,28/04/16,934242,"9,889.80",SALISBURY SUPPORT 4 AUTISM LTD,SP0001691
WANDSWORTH COUNCIL,ASC,SOCIAL SERVICES,PRIVATE,Revenue,EXTERNAL RESIDENTIAL CARE,130245330,22/04/16,929188,"2,494.74",SANCTUARY CARE LTD,SP0000121
WANDSWORTH COUNCIL,ASC,SOCIAL SERVICES,PRIVATE,Revenue,EXTERNAL RESIDENTIAL CARE,130245330,13/04/16,919091,"10,566.57",SEQUENCE CARE GROUP,SP0009709
WANDSWORTH COUNCIL,ASC,SOCIAL SERVICES,PRIVATE,Revenue,EXTERNAL RESIDENTIAL CARE,130245330,13/04/16,919048,"8,720.00",SPRING LAKE,SP0000223
WANDSWORTH COUNCIL,ASC,SOCIAL SERVICES,PRIVATE,Revenue,EXTERNAL RESIDENTIAL CARE,130245330,13/04/16,919049,"7,600.00",SPRING LAKE,SP0000223
WANDSWORTH COUNCIL,ASC,SOCIAL SERVICES,PRIVATE,Revenue,EXTERNAL RESIDENTIAL CARE,130245330,13/04/16,919050,"8,720.00",SPRING LAKE,SP0000223
WANDSWORTH COUNCIL,ASC,SOCIAL SERVICES,PRIVATE,Revenue,EXTERNAL RESIDENTIAL CARE,130245330,13/04/16,919051,"7,600.00",SPRING LAKE,SP0000223
WANDSWORTH COUNCIL,ASC,SOCIAL SERVICES,PRIVATE,Revenue,EXTERNAL RESIDENTIAL CARE,130245330,13/04/16,919052,"8,720.00",SPRING LAKE,SP0000223
WANDSWORTH COUNCIL,ASC,SOCIAL SERVICES,PRIVATE,Revenue,EXTERNAL RESIDENTIAL CARE,130245330,13/04/16,919053,"7,600.00",SPRING LAKE,SP0000223
WANDSWORTH COUNCIL,ASC,SOCIAL SERVICES,PRIVATE,Revenue,EXTERNAL RESIDENTIAL CARE,130245330,28/04/16,934325,"5,507.14",STALLCOMBE HOUSE,SP0000843
WANDSWORTH COUNCIL,ASC,SOCIAL SERVICES,PRIVATE,Revenue,EXTERNAL RESIDENTIAL CARE,130245330,18/04/16,924566,"8,982.39",SURREY & BORDERS PARTNERSHIP NHS TRUST,SP0000501
WANDSWORTH COUNCIL,ASC,SOCIAL SERVICES,PRIVATE,Revenue,EXTERNAL RESIDENTIAL CARE,130245330,28/04/16,934243,"6,408.96",THE BRANDON TRUST,SP0005337
WANDSWORTH COUNCIL,ASC,SOCIAL SERVICES,PRIVATE,Revenue,EXTERNAL RESIDENTIAL CARE,130245330,18/04/16,924540,"5,584.39",THE CHESTNUTS,SP0000182
WANDSWORTH COUNCIL,ASC,SOCIAL SERVICES,PRIVATE,Revenue,EXTERNAL RESIDENTIAL CARE,130245330,18/04/16,924553,"5,433.73",THE CHESTNUTS,SP0000182
WANDSWORTH COUNCIL,ASC,SOCIAL SERVICES,PRIVATE,Revenue,EXTERNAL RESIDENTIAL CARE,130245330,29/04/16,935560,"5,487.72",THE COMMUNITY CARE COMPANY UK LTD,SP0000576
WANDSWORTH COUNCIL,ASC,SOCIAL SERVICES,PRIVATE,Revenue,EXTERNAL RESIDENTIAL CARE,130245330,29/04/16,935561,"6,924.46",THE COMMUNITY CARE COMPANY UK LTD,SP0000576
WANDSWORTH COUNCIL,ASC,SOCIAL SERVICES,PRIVATE,Revenue,EXTERNAL RESIDENTIAL CARE,130245330,29/04/16,935562,"5,847.62",THE COMMUNITY CARE COMPANY UK LTD,SP0000576
WANDSWORTH COUNCIL,ASC,SOCIAL SERVICES,PRIVATE,Revenue,EXTERNAL RESIDENTIAL CARE,130245330,29/04/16,935563,"7,003.34",THE COMMUNITY CARE COMPANY UK LTD,SP0000576
WANDSWORTH COUNCIL,ASC,SOCIAL SERVICES,PRIVATE,Revenue,EXTERNAL RESIDENTIAL CARE,130245330,29/04/16,935564,"6,028.40",THE COMMUNITY CARE COMPANY UK LTD,SP0000576
WANDSWORTH COUNCIL,ASC,SOCIAL SERVICES,PRIVATE,Revenue,EXTERNAL RESIDENTIAL CARE,130245330,13/04/16,919113,"3,708.20",THE HOME FARM TRUST LTD,SP0001048
WANDSWORTH COUNCIL,ASC,SOCIAL SERVICES,PRIVATE,Revenue,EXTERNAL RESIDENTIAL CARE,130245330,18/04/16,924522,"3,957.32",THE LEO TRUST,SP0000908
WANDSWORTH COUNCIL,ASC,SOCIAL SERVICES,PRIVATE,Revenue,EXTERNAL RESIDENTIAL CARE,130245330,21/04/16,927655,"9,223.48",THE MAPLES,SP0000154
WANDSWORTH COUNCIL,ASC,SOCIAL SERVICES,PRIVATE,Revenue,EXTERNAL RESIDENTIAL CARE,130245330,21/04/16,927656,"9,223.48",THE MAPLES,SP0000154
WANDSWORTH COUNCIL,ASC,SOCIAL SERVICES,PRIVATE,Revenue,EXTERNAL RESIDENTIAL CARE,130245330,21/04/16,927657,"9,223.48",THE MAPLES,SP0000154
WANDSWORTH COUNCIL,ASC,SOCIAL SERVICES,PRIVATE,Revenue,EXTERNAL RESIDENTIAL CARE,130245330,21/04/16,927658,"9,223.48",THE MAPLES,SP0000154
WANDSWORTH COUNCIL,ASC,SOCIAL SERVICES,PRIVATE,Revenue,EXTERNAL RESIDENTIAL CARE,130245330,25/04/16,931097,"4,654.32",THE WELL HOUSE,SP0000448
WANDSWORTH COUNCIL,ASC,SOCIAL SERVICES,PRIVATE,Revenue,EXTERNAL RESIDENTIAL CARE,130245330,25/04/16,931098,"4,409.93",THE WELL HOUSE,SP0000448
WANDSWORTH COUNCIL,ASC,SOCIAL SERVICES,PRIVATE,Revenue,EXTERNAL RESIDENTIAL CARE,130245330,18/04/16,924519,"9,844.42",THE WEST OF ENGLAND SCHOOL & COLLEGE,SP0001486
WANDSWORTH COUNCIL,ASC,SOCIAL SERVICES,PRIVATE,Revenue,EXTERNAL RESIDENTIAL CARE,130245330,18/04/16,924520,"8,321.97",THE WEST OF ENGLAND SCHOOL & COLLEGE,SP0001486
WANDSWORTH COUNCIL,ASC,SOCIAL SERVICES,PRIVATE,Revenue,EXTERNAL RESIDENTIAL CARE,130245330,25/04/16,931113,"7,395.80",TOTTERDOWN,SP0001113
WANDSWORTH COUNCIL,ASC,SOCIAL SERVICES,PRIVATE,Revenue,EXTERNAL RESIDENTIAL CARE,130245330,25/04/16,931114,"3,671.24",TOTTERDOWN,SP0001113
WANDSWORTH COUNCIL,ASC,SOCIAL SERVICES,PRIVATE,Revenue,EXTERNAL RESIDENTIAL CARE,130245330,28/04/16,934226,"7,395.80",TOTTERDOWN,SP0001113
WANDSWORTH COUNCIL,ASC,SOCIAL SERVICES,PRIVATE,Revenue,EXTERNAL RESIDENTIAL CARE,130245330,28/04/16,934227,"3,653.44",TOTTERDOWN,SP0001113
WANDSWORTH COUNCIL,ASC,SOCIAL SERVICES,PRIVATE,Revenue,EXTERNAL RESIDENTIAL CARE,130245330,26/04/16,932160,"5,137.07",TRACS,SP0000914
WANDSWORTH COUNCIL,ASC,SOCIAL SERVICES,PRIVATE,Revenue,EXTERNAL RESIDENTIAL CARE,130245330,21/04/16,927630,"19,034.08",TRELOAR SCHOOL,SP0000200
WANDSWORTH COUNCIL,ASC,SOCIAL SERVICES,PRIVATE,Revenue,EXTERNAL RESIDENTIAL CARE,130245330,18/04/16,924557,"3,140.56",UNITED RESPONSE,SP0000797
WANDSWORTH COUNCIL,ASC,SOCIAL SERVICES,PRIVATE,Revenue,EXTERNAL RESIDENTIAL CARE,130245330,21/04/16,927619,"3,140.56",UNITED RESPONSE,SP0000797
WANDSWORTH COUNCIL,ASC,SOCIAL SERVICES,PRIVATE,Revenue,EXTERNAL RESIDENTIAL CARE,130245330,21/04/16,927620,"3,140.56",UNITED RESPONSE,SP0000797
WANDSWORTH COUNCIL,ASC,SOCIAL SERVICES,PRIVATE,Revenue,EXTERNAL RESIDENTIAL CARE,130245330,21/04/16,927621,"3,140.56",UNITED RESPONSE,SP0000797
WANDSWORTH COUNCIL,ASC,SOCIAL SERVICES,PRIVATE,Revenue,EXTERNAL RESIDENTIAL CARE,130245330,13/04/16,919066,"7,444.36",VOYAGE CARE LTD,SP0000366
WANDSWORTH COUNCIL,ASC,SOCIAL SERVICES,PRIVATE,Revenue,EXTERNAL RESIDENTIAL CARE,130245330,13/04/16,919068,"6,091.77",VOYAGE CARE LTD,SP0000366
WANDSWORTH COUNCIL,ASC,SOCIAL SERVICES,PRIVATE,Revenue,EXTERNAL RESIDENTIAL CARE,130245330,13/04/16,919069,"6,127.81",VOYAGE CARE LTD,SP0000366
WANDSWORTH COUNCIL,ASC,SOCIAL SERVICES,PRIVATE,Revenue,EXTERNAL RESIDENTIAL CARE,130245330,13/04/16,919071,"6,441.12",VOYAGE CARE LTD,SP0000366
WANDSWORTH COUNCIL,ASC,SOCIAL SERVICES,PRIVATE,Revenue,EXTERNAL RESIDENTIAL CARE,130245330,13/04/16,919072,"7,766.72",VOYAGE CARE LTD,SP0000366
WANDSWORTH COUNCIL,ASC,SOCIAL SERVICES,PRIVATE,Revenue,EXTERNAL RESIDENTIAL CARE,130245330,18/04/16,924556,"6,125.73",WESSEX AUTISTIC SOCIETY,SP0000805
WANDSWORTH COUNCIL,ASC,SOCIAL SERVICES,PRIVATE,Revenue,EXTERNAL RESIDENTIAL CARE,130245330,25/04/16,931103,"5,599.36",WINSLOW COURT,SP0000886
WANDSWORTH COUNCIL,ASC,SOCIAL SERVICES,PRIVATE,Revenue,EXTERNAL RESI RESPITE CARE,130245340,25/04/16,931115,"2,850.00",SEASHELL TRUST,SP0005836
WANDSWORTH COUNCIL,ASC,SOCIAL SERVICES,PRIVATE,Revenue,EXTERNAL RESI RESPITE CARE,130245340,25/04/16,931116,"1,425.00",SEASHELL TRUST,SP0005836
WANDSWORTH COUNCIL,ASC,SOCIAL SERVICES,PRIVATE,Revenue,EXTERNAL RESI RESPITE CARE,130245340,25/04/16,931117,"1,425.00",SEASHELL TRUST,SP0005836
WANDSWORTH COUNCIL,ASC,SOCIAL SERVICES,PRIVATE,Revenue,ONE TO ONE CARE,130246220,29/04/16,935763,"11,064.69",CAMBIAN AUTISM SERVICES LTD,SP0001589
WANDSWORTH COUNCIL,ASC,SOCIAL SERVICES,PRIVATE,Revenue,ONE TO ONE CARE,130246220,18/04/16,925052,"3,000.00",CRAEGMOOR OLD RECTORY BREDE PRIORY,SP0001621
WANDSWORTH COUNCIL,ASC,SOCIAL SERVICES,PRIVATE,Revenue,ONE TO ONE CARE,130246220,14/04/16,921842,11.44,FRONTIER SUPPORT SERVICES LTD,SP0001132
WANDSWORTH COUNCIL,ASC,SOCIAL SERVICES,PRIVATE,Revenue,ONE TO ONE CARE,130246220,14/04/16,921844,708.24,FRONTIER SUPPORT SERVICES LTD,SP0001132
WANDSWORTH COUNCIL,ASC,SOCIAL SERVICES,PRIVATE,Revenue,ONE TO ONE CARE,130246220,29/04/16,935785,952.28,HARROW MENCAP,SP0001347
WANDSWORTH COUNCIL,ASC,SOCIAL SERVICES,PRIVATE,Revenue,ONE TO ONE CARE,130246220,14/04/16,921807,547.60,LIFEWAYS COMMUNITY CARE LTD,SP0000364
WANDSWORTH COUNCIL,ASC,SOCIAL SERVICES,PRIVATE,Revenue,ONE TO ONE CARE,130246220,28/04/16,934475,"1,350.52",MACINTYRE CARE,SP0000473
WANDSWORTH COUNCIL,ASC,SOCIAL SERVICES,PRIVATE,Revenue,ONE TO ONE CARE,130246220,28/04/16,934476,"1,350.52",MACINTYRE CARE,SP0000473
WANDSWORTH COUNCIL,ASC,SOCIAL SERVICES,PRIVATE,Revenue,ONE TO ONE CARE,130246220,28/04/16,934477,"1,910.04",MACINTYRE CARE,SP0000473
WANDSWORTH COUNCIL,ASC,SOCIAL SERVICES,PRIVATE,Revenue,ONE TO ONE CARE,130246220,28/04/16,934478,"1,350.52",MACINTYRE CARE,SP0000473
WANDSWORTH COUNCIL,ASC,SOCIAL SERVICES,PRIVATE,Revenue,ONE TO ONE CARE,130246220,28/04/16,934479,694.56,MACINTYRE CARE,SP0000473
WANDSWORTH COUNCIL,ASC,SOCIAL SERVICES,PRIVATE,Revenue,ONE TO ONE CARE,130246220,28/04/16,934359,"2,407.20",METROPOLITAN HOUSING TRUST,SP0000626
WANDSWORTH COUNCIL,ASC,SOCIAL SERVICES,PRIVATE,Revenue,ONE TO ONE CARE,130246220,28/04/16,934362,702.72,METROPOLITAN HOUSING TRUST,SP0000626
WANDSWORTH COUNCIL,ASC,SOCIAL SERVICES,PRIVATE,Revenue,ONE TO ONE CARE,130246220,28/04/16,934363,"1,585.92",METROPOLITAN HOUSING TRUST,SP0000626
WANDSWORTH COUNCIL,ASC,SOCIAL SERVICES,PRIVATE,Revenue,ONE TO ONE CARE,130246220,28/04/16,934365,"1,844.64",METROPOLITAN HOUSING TRUST,SP0000626
WANDSWORTH COUNCIL,ASC,SOCIAL SERVICES,PRIVATE,Revenue,ONE TO ONE CARE,130246220,28/04/16,934366,"2,237.28",METROPOLITAN HOUSING TRUST,SP0000626
WANDSWORTH COUNCIL,ASC,SOCIAL SERVICES,PRIVATE,Revenue,ONE TO ONE CARE,130246220,28/04/16,934369,"2,459.52",METROPOLITAN HOUSING TRUST,SP0000626
WANDSWORTH COUNCIL,ASC,SOCIAL SERVICES,PRIVATE,Revenue,ONE TO ONE CARE,130246220,28/04/16,934370,"1,755.84",METROPOLITAN HOUSING TRUST,SP0000626
WANDSWORTH COUNCIL,ASC,SOCIAL SERVICES,PRIVATE,Revenue,ONE TO ONE CARE,130246220,28/04/16,934372,"1,844.64",METROPOLITAN HOUSING TRUST,SP0000626
WANDSWORTH COUNCIL,ASC,SOCIAL SERVICES,PRIVATE,Revenue,ONE TO ONE CARE,130246220,19/04/16,926317,"2,206.75",RAINBOW MEDICAL SERVICES,SP0000037
WANDSWORTH COUNCIL,ASC,SOCIAL SERVICES,PRIVATE,Revenue,ONE TO ONE CARE,130246220,19/04/16,926319,"1,553.60",RAINBOW MEDICAL SERVICES,SP0000037
WANDSWORTH COUNCIL,ASC,SOCIAL SERVICES,PRIVATE,Revenue,ONE TO ONE CARE,130246220,13/04/16,919059,"1,900.50",RESIDENTIAL COMMUNITY CARE,SP0000315
WANDSWORTH COUNCIL,ASC,SOCIAL SERVICES,PRIVATE,Revenue,ONE TO ONE CARE,130246220,12/04/16,917792,600.04,THE BRANDON TRUST,SP0005337
WANDSWORTH COUNCIL,ASC,SOCIAL SERVICES,PRIVATE,Revenue,ONE TO ONE CARE,130246220,12/04/16,917800,331.20,THE BRANDON TRUST,SP0005337
WANDSWORTH COUNCIL,ASC,SOCIAL SERVICES,PRIVATE,Revenue,ONE TO ONE CARE,130246220,12/04/16,917802,331.20,THE BRANDON TRUST,SP0005337
WANDSWORTH COUNCIL,ASC,SOCIAL SERVICES,PRIVATE,Revenue,ONE TO ONE CARE,130246220,14/04/16,921869,"2,839.87",THE BRANDON TRUST,SP0005337
WANDSWORTH COUNCIL,ASC,SOCIAL SERVICES,PRIVATE,Revenue,ONE TO ONE CARE,130246220,18/04/16,925025,516.34,THE BRANDON TRUST,SP0005337
WANDSWORTH COUNCIL,ASC,SOCIAL SERVICES,PRIVATE,Revenue,ONE TO ONE CARE,130246220,29/04/16,935778,"1,132.10",THE COMMUNITY CARE COMPANY UK LTD,SP0000576
WANDSWORTH COUNCIL,ASC,SOCIAL SERVICES,PRIVATE,Revenue,ONE TO ONE CARE,130246220,29/04/16,935779,"1,291.11",THE COMMUNITY CARE COMPANY UK LTD,SP0000576
WANDSWORTH COUNCIL,ASC,SOCIAL SERVICES,PRIVATE,Revenue,ONE TO ONE CARE,130246220,25/04/16,931481,"1,597.44",TOTTERDOWN,SP0001113
WANDSWORTH COUNCIL,ASC,SOCIAL SERVICES,PRIVATE,Revenue,ONE TO ONE CARE,130246220,28/04/16,934387,"1,597.44",TOTTERDOWN,SP0001113
WANDSWORTH COUNCIL,ASC,SOCIAL SERVICES,PRIVATE,Revenue,ONE TO ONE CARE,130246220,13/04/16,919353,"1,062.86",VOYAGE CARE LTD,SP0000366
WANDSWORTH COUNCIL,ASC,SOCIAL SERVICES,VOL ASS,Revenue,SUPPORTED HOUSING PROGRAMME,130248030,18/04/16,925061,"1,687.76",C M CARE LTD,SP0000455
WANDSWORTH COUNCIL,ASC,SOCIAL SERVICES,VOL ASS,Revenue,SUPPORTED HOUSING PROGRAMME,130248030,28/04/16,934290,"7,972.24",CHOICE SUPPORT,SP0000398
WANDSWORTH COUNCIL,ASC,SOCIAL SERVICES,VOL ASS,Revenue,SUPPORTED HOUSING PROGRAMME,130248030,13/04/16,919349,"7,822.08",CURANS CARE LTD,SP0010190
WANDSWORTH COUNCIL,ASC,SOCIAL SERVICES,VOL ASS,Revenue,SUPPORTED HOUSING PROGRAMME,130248030,13/04/16,919350,"3,714.12",CURANS CARE LTD,SP0010190
WANDSWORTH COUNCIL,ASC,SOCIAL SERVICES,VOL ASS,Revenue,SUPPORTED HOUSING PROGRAMME,130248030,28/04/16,934381,"7,822.08",CURANS CARE LTD,SP0010190
WANDSWORTH COUNCIL,ASC,SOCIAL SERVICES,VOL ASS,Revenue,SUPPORTED HOUSING PROGRAMME,130248030,28/04/16,934382,"3,714.12",CURANS CARE LTD,SP0010190
WANDSWORTH COUNCIL,ASC,SOCIAL SERVICES,VOL ASS,Revenue,SUPPORTED HOUSING PROGRAMME,130248030,26/04/16,932302,"3,214.36",DERWEN COLLEGE,SP0010347
WANDSWORTH COUNCIL,ASC,SOCIAL SERVICES,VOL ASS,Revenue,SUPPORTED HOUSING PROGRAMME,130248030,14/04/16,921842,"1,535.60",FRONTIER SUPPORT SERVICES LTD,SP0001132
WANDSWORTH COUNCIL,ASC,SOCIAL SERVICES,VOL ASS,Revenue,SUPPORTED HOUSING PROGRAMME,130248030,14/04/16,921843,"1,251.12",FRONTIER SUPPORT SERVICES LTD,SP0001132
WANDSWORTH COUNCIL,ASC,SOCIAL SERVICES,VOL ASS,Revenue,SUPPORTED HOUSING PROGRAMME,130248030,14/04/16,921844,"1,097.60",FRONTIER SUPPORT SERVICES LTD,SP0001132
WANDSWORTH COUNCIL,ASC,SOCIAL SERVICES,VOL ASS,Revenue,SUPPORTED HOUSING PROGRAMME,130248030,14/04/16,921845,"1,533.00",FRONTIER SUPPORT SERVICES LTD,SP0001132
WANDSWORTH COUNCIL,ASC,SOCIAL SERVICES,VOL ASS,Revenue,SUPPORTED HOUSING PROGRAMME,130248030,14/04/16,921846,"1,864.88",FRONTIER SUPPORT SERVICES LTD,SP0001132
WANDSWORTH COUNCIL,ASC,SOCIAL SERVICES,VOL ASS,Revenue,SUPPORTED HOUSING PROGRAMME,130248030,14/04/16,921847,"1,353.32",FRONTIER SUPPORT SERVICES LTD,SP0001132
WANDSWORTH COUNCIL,ASC,SOCIAL SERVICES,VOL ASS,Revenue,SUPPORTED HOUSING PROGRAMME,130248030,14/04/16,921848,"1,353.88",FRONTIER SUPPORT SERVICES LTD,SP0001132
WANDSWORTH COUNCIL,ASC,SOCIAL SERVICES,VOL ASS,Revenue,SUPPORTED HOUSING PROGRAMME,130248030,14/04/16,921849,"1,097.52",FRONTIER SUPPORT SERVICES LTD,SP0001132
WANDSWORTH COUNCIL,ASC,SOCIAL SERVICES,VOL ASS,Revenue,SUPPORTED HOUSING PROGRAMME,130248030,14/04/16,921851,"2,509.20",FRONTIER SUPPORT SERVICES LTD,SP0001132
WANDSWORTH COUNCIL,ASC,SOCIAL SERVICES,VOL ASS,Revenue,SUPPORTED HOUSING PROGRAMME,130248030,14/04/16,921852,657.80,FRONTIER SUPPORT SERVICES LTD,SP0001132
WANDSWORTH COUNCIL,ASC,SOCIAL SERVICES,VOL ASS,Revenue,SUPPORTED HOUSING PROGRAMME,130248030,14/04/16,921854,"1,685.92",FRONTIER SUPPORT SERVICES LTD,SP0001132
WANDSWORTH COUNCIL,ASC,SOCIAL SERVICES,VOL ASS,Revenue,SUPPORTED HOUSING PROGRAMME,130248030,14/04/16,921857,"15,870.84",FRONTIER SUPPORT SERVICES LTD,SP0001132
WANDSWORTH COUNCIL,ASC,SOCIAL SERVICES,VOL ASS,Revenue,SUPPORTED HOUSING PROGRAMME,130248030,14/04/16,921858,"1,535.04",FRONTIER SUPPORT SERVICES LTD,SP0001132
WANDSWORTH COUNCIL,ASC,SOCIAL SERVICES,VOL ASS,Revenue,SUPPORTED HOUSING PROGRAMME,130248030,14/04/16,921808,"3,885.44",LIFEWAYS COMMUNITY CARE LTD,SP0000364
WANDSWORTH COUNCIL,ASC,SOCIAL SERVICES,VOL ASS,Revenue,SUPPORTED HOUSING PROGRAMME,130248030,14/04/16,921809,"2,596.04",LIFEWAYS COMMUNITY CARE LTD,SP0000364
WANDSWORTH COUNCIL,ASC,SOCIAL SERVICES,VOL ASS,Revenue,SUPPORTED HOUSING PROGRAMME,130248030,14/04/16,921810,"2,166.24",LIFEWAYS COMMUNITY CARE LTD,SP0000364
WANDSWORTH COUNCIL,ASC,SOCIAL SERVICES,VOL ASS,Revenue,SUPPORTED HOUSING PROGRAMME,130248030,14/04/16,921811,"2,227.64",LIFEWAYS COMMUNITY CARE LTD,SP0000364
WANDSWORTH COUNCIL,ASC,SOCIAL SERVICES,VOL ASS,Revenue,SUPPORTED HOUSING PROGRAMME,130248030,14/04/16,921812,"1,982.04",LIFEWAYS COMMUNITY CARE LTD,SP0000364
WANDSWORTH COUNCIL,ASC,SOCIAL SERVICES,VOL ASS,Revenue,SUPPORTED HOUSING PROGRAMME,130248030,14/04/16,921814,"2,289.04",LIFEWAYS COMMUNITY CARE LTD,SP0000364
WANDSWORTH COUNCIL,ASC,SOCIAL SERVICES,VOL ASS,Revenue,SUPPORTED HOUSING PROGRAMME,130248030,14/04/16,921815,"1,982.04",LIFEWAYS COMMUNITY CARE LTD,SP0000364
WANDSWORTH COUNCIL,ASC,SOCIAL SERVICES,VOL ASS,Revenue,SUPPORTED HOUSING PROGRAMME,130248030,14/04/16,921816,"2,227.64",LIFEWAYS COMMUNITY CARE LTD,SP0000364
WANDSWORTH COUNCIL,ASC,SOCIAL SERVICES,VOL ASS,Revenue,SUPPORTED HOUSING PROGRAMME,130248030,14/04/16,921817,"2,411.84",LIFEWAYS COMMUNITY CARE LTD,SP0000364
WANDSWORTH COUNCIL,ASC,SOCIAL SERVICES,VOL ASS,Revenue,SUPPORTED HOUSING PROGRAMME,130248030,14/04/16,921818,"1,920.64",LIFEWAYS COMMUNITY CARE LTD,SP0000364
WANDSWORTH COUNCIL,ASC,SOCIAL SERVICES,VOL ASS,Revenue,SUPPORTED HOUSING PROGRAMME,130248030,14/04/16,921819,"3,210.04",LIFEWAYS COMMUNITY CARE LTD,SP0000364
WANDSWORTH COUNCIL,ASC,SOCIAL SERVICES,VOL ASS,Revenue,SUPPORTED HOUSING PROGRAMME,130248030,14/04/16,921822,"2,394.20",LIFEWAYS COMMUNITY CARE LTD,SP0000364
WANDSWORTH COUNCIL,ASC,SOCIAL SERVICES,VOL ASS,Revenue,SUPPORTED HOUSING PROGRAMME,130248030,14/04/16,921823,"2,551.16",LIFEWAYS COMMUNITY CARE LTD,SP0000364
WANDSWORTH COUNCIL,ASC,SOCIAL SERVICES,VOL ASS,Revenue,SUPPORTED HOUSING PROGRAMME,130248030,14/04/16,921824,"3,335.96",LIFEWAYS COMMUNITY CARE LTD,SP0000364
WANDSWORTH COUNCIL,ASC,SOCIAL SERVICES,VOL ASS,Revenue,SUPPORTED HOUSING PROGRAMME,130248030,14/04/16,921825,"2,969.72",LIFEWAYS COMMUNITY CARE LTD,SP0000364
WANDSWORTH COUNCIL,ASC,SOCIAL SERVICES,VOL ASS,Revenue,SUPPORTED HOUSING PROGRAMME,130248030,14/04/16,921826,"2,341.88",LIFEWAYS COMMUNITY CARE LTD,SP0000364
WANDSWORTH COUNCIL,ASC,SOCIAL SERVICES,VOL ASS,Revenue,SUPPORTED HOUSING PROGRAMME,130248030,14/04/16,921827,"2,551.16",LIFEWAYS COMMUNITY CARE LTD,SP0000364
WANDSWORTH COUNCIL,ASC,SOCIAL SERVICES,VOL ASS,Revenue,SUPPORTED HOUSING PROGRAMME,130248030,14/04/16,921828,"1,444.56",LIFEWAYS COMMUNITY CARE LTD,SP0000364
WANDSWORTH COUNCIL,ASC,SOCIAL SERVICES,VOL ASS,Revenue,SUPPORTED HOUSING PROGRAMME,130248030,14/04/16,921829,"2,025.24",LIFEWAYS COMMUNITY CARE LTD,SP0000364
WANDSWORTH COUNCIL,ASC,SOCIAL SERVICES,VOL ASS,Revenue,SUPPORTED HOUSING PROGRAMME,130248030,14/04/16,921830,"2,025.24",LIFEWAYS COMMUNITY CARE LTD,SP0000364
WANDSWORTH COUNCIL,ASC,SOCIAL SERVICES,VOL ASS,Revenue,SUPPORTED HOUSING PROGRAMME,130248030,14/04/16,921831,"2,025.24",LIFEWAYS COMMUNITY CARE LTD,SP0000364
WANDSWORTH COUNCIL,ASC,SOCIAL SERVICES,VOL ASS,Revenue,SUPPORTED HOUSING PROGRAMME,130248030,14/04/16,921832,"2,244.28",LIFEWAYS COMMUNITY CARE LTD,SP0000364
WANDSWORTH COUNCIL,ASC,SOCIAL SERVICES,VOL ASS,Revenue,SUPPORTED HOUSING PROGRAMME,130248030,14/04/16,921833,"2,518.08",LIFEWAYS COMMUNITY CARE LTD,SP0000364
WANDSWORTH COUNCIL,ASC,SOCIAL SERVICES,VOL ASS,Revenue,SUPPORTED HOUSING PROGRAMME,130248030,14/04/16,921834,"2,025.24",LIFEWAYS COMMUNITY CARE LTD,SP0000364
WANDSWORTH COUNCIL,ASC,SOCIAL SERVICES,VOL ASS,Revenue,SUPPORTED HOUSING PROGRAMME,130248030,14/04/16,921835,"2,244.28",LIFEWAYS COMMUNITY CARE LTD,SP0000364
WANDSWORTH COUNCIL,ASC,SOCIAL SERVICES,VOL ASS,Revenue,SUPPORTED HOUSING PROGRAMME,130248030,14/04/16,921836,"1,860.96",LIFEWAYS COMMUNITY CARE LTD,SP0000364
WANDSWORTH COUNCIL,ASC,SOCIAL SERVICES,VOL ASS,Revenue,SUPPORTED HOUSING PROGRAMME,130248030,14/04/16,921837,"2,345.32",LIFEWAYS COMMUNITY CARE LTD,SP0000364
WANDSWORTH COUNCIL,ASC,SOCIAL SERVICES,VOL ASS,Revenue,SUPPORTED HOUSING PROGRAMME,130248030,14/04/16,921838,"2,867.20",LIFEWAYS COMMUNITY CARE LTD,SP0000364
WANDSWORTH COUNCIL,ASC,SOCIAL SERVICES,VOL ASS,Revenue,SUPPORTED HOUSING PROGRAMME,130248030,14/04/16,921840,"2,603.48",LIFEWAYS COMMUNITY CARE LTD,SP0000364
WANDSWORTH COUNCIL,ASC,SOCIAL SERVICES,VOL ASS,Revenue,SUPPORTED HOUSING PROGRAMME,130248030,26/04/16,932273,"7,336.00",LIFEWAYS COMMUNITY CARE LTD,SP0000364
WANDSWORTH COUNCIL,ASC,SOCIAL SERVICES,VOL ASS,Revenue,SUPPORTED HOUSING PROGRAMME,130248030,26/04/16,932274,"7,336.00",LIFEWAYS COMMUNITY CARE LTD,SP0000364
WANDSWORTH COUNCIL,ASC,SOCIAL SERVICES,VOL ASS,Revenue,SUPPORTED HOUSING PROGRAMME,130248030,12/04/16,917826,784.00,LIVE TOO LIMITED,SP0010112
WANDSWORTH COUNCIL,ASC,SOCIAL SERVICES,VOL ASS,Revenue,SUPPORTED HOUSING PROGRAMME,130248030,12/04/16,917828,"1,800.00",LIVE TOO LIMITED,SP0010112
WANDSWORTH COUNCIL,ASC,SOCIAL SERVICES,VOL ASS,Revenue,SUPPORTED HOUSING PROGRAMME,130248030,12/04/16,917829,"1,200.00",LIVE TOO LIMITED,SP0010112
WANDSWORTH COUNCIL,ASC,SOCIAL SERVICES,VOL ASS,Revenue,SUPPORTED HOUSING PROGRAMME,130248030,12/04/16,917830,"1,620.00",LIVE TOO LIMITED,SP0010112
WANDSWORTH COUNCIL,ASC,SOCIAL SERVICES,VOL ASS,Revenue,SUPPORTED HOUSING PROGRAMME,130248030,12/04/16,917831,"11,760.00",LIVE TOO LIMITED,SP0010112
WANDSWORTH COUNCIL,ASC,SOCIAL SERVICES,VOL ASS,Revenue,SUPPORTED HOUSING PROGRAMME,130248030,12/04/16,917833,"1,260.00",LIVE TOO LIMITED,SP0010112
WANDSWORTH COUNCIL,ASC,SOCIAL SERVICES,VOL ASS,Revenue,SUPPORTED HOUSING PROGRAMME,130248030,12/04/16,917834,930.00,LIVE TOO LIMITED,SP0010112
WANDSWORTH COUNCIL,ASC,SOCIAL SERVICES,VOL ASS,Revenue,SUPPORTED HOUSING PROGRAMME,130248030,12/04/16,917835,"1,440.00",LIVE TOO LIMITED,SP0010112
WANDSWORTH COUNCIL,ASC,SOCIAL SERVICES,VOL ASS,Revenue,SUPPORTED HOUSING PROGRAMME,130248030,12/04/16,917836,990.00,LIVE TOO LIMITED,SP0010112
WANDSWORTH COUNCIL,ASC,SOCIAL SERVICES,VOL ASS,Revenue,SUPPORTED HOUSING PROGRAMME,130248030,12/04/16,917838,720.00,LIVE TOO LIMITED,SP0010112
WANDSWORTH COUNCIL,ASC,SOCIAL SERVICES,VOL ASS,Revenue,SUPPORTED HOUSING PROGRAMME,130248030,12/04/16,917839,"1,710.00",LIVE TOO LIMITED,SP0010112
WANDSWORTH COUNCIL,ASC,SOCIAL SERVICES,VOL ASS,Revenue,SUPPORTED HOUSING PROGRAMME,130248030,12/04/16,917842,"1,350.00",LIVE TOO LIMITED,SP0010112
WANDSWORTH COUNCIL,ASC,SOCIAL SERVICES,VOL ASS,Revenue,SUPPORTED HOUSING PROGRAMME,130248030,12/04/16,917846,"1,568.00",LIVE TOO LIMITED,SP0010112
WANDSWORTH COUNCIL,ASC,SOCIAL SERVICES,VOL ASS,Revenue,SUPPORTED HOUSING PROGRAMME,130248030,12/04/16,917847,700.00,LIVE TOO LIMITED,SP0010112
WANDSWORTH COUNCIL,ASC,SOCIAL SERVICES,VOL ASS,Revenue,SUPPORTED HOUSING PROGRAMME,130248030,12/04/16,917848,"2,400.00",LIVE TOO LIMITED,SP0010112
WANDSWORTH COUNCIL,ASC,SOCIAL SERVICES,VOL ASS,Revenue,SUPPORTED HOUSING PROGRAMME,130248030,12/04/16,917849,522.64,LIVE TOO LIMITED,SP0010112
WANDSWORTH COUNCIL,ASC,SOCIAL SERVICES,VOL ASS,Revenue,SUPPORTED HOUSING PROGRAMME,130248030,12/04/16,917850,"2,162.64",LIVE TOO LIMITED,SP0010112
WANDSWORTH COUNCIL,ASC,SOCIAL SERVICES,VOL ASS,Revenue,SUPPORTED HOUSING PROGRAMME,130248030,28/04/16,934389,"1,320.00",LIVE TOO LIMITED,SP0010112
WANDSWORTH COUNCIL,ASC,SOCIAL SERVICES,VOL ASS,Revenue,SUPPORTED HOUSING PROGRAMME,130248030,21/04/16,927842,593.68,MCCALLUM CARE LTD CAREMARK (WANDSWORTH),SP0006036
WANDSWORTH COUNCIL,ASC,SOCIAL SERVICES,VOL ASS,Revenue,SUPPORTED HOUSING PROGRAMME,130248030,21/04/16,927843,602.92,MCCALLUM CARE LTD CAREMARK (WANDSWORTH),SP0006036
WANDSWORTH COUNCIL,ASC,SOCIAL SERVICES,VOL ASS,Revenue,SUPPORTED HOUSING PROGRAMME,130248030,29/04/16,935784,"1,131.69",MS J DAVIES-BENNETTS T/A HANDSON HORSES,SP0010539
WANDSWORTH COUNCIL,ASC,SOCIAL SERVICES,VOL ASS,Revenue,SUPPORTED HOUSING PROGRAMME,130248030,19/04/16,926321,"7,650.00",RELIABLE PERSONNEL LTD,SP0005657
WANDSWORTH COUNCIL,ASC,SOCIAL SERVICES,VOL ASS,Revenue,SUPPORTED HOUSING PROGRAMME,130248030,18/04/16,925036,"2,570.08",ROTHERHAM METROPOLITAN BOROUGH COUNCIL,SP0000720
WANDSWORTH COUNCIL,ASC,SOCIAL SERVICES,VOL ASS,Revenue,SUPPORTED HOUSING PROGRAMME,130248030,07/04/16,914890,"5,204.28",ROYAL MENCAP SOCIETY,SP0000842
WANDSWORTH COUNCIL,ASC,SOCIAL SERVICES,VOL ASS,Revenue,SUPPORTED HOUSING PROGRAMME,130248030,07/04/16,914891,"2,251.52",ROYAL MENCAP SOCIETY,SP0000842
WANDSWORTH COUNCIL,ASC,SOCIAL SERVICES,VOL ASS,Revenue,SUPPORTED HOUSING PROGRAMME,130248030,07/04/16,914894,"2,441.20",ROYAL MENCAP SOCIETY,SP0000842
WANDSWORTH COUNCIL,ASC,SOCIAL SERVICES,VOL ASS,Revenue,SUPPORTED HOUSING PROGRAMME,130248030,07/04/16,914895,"7,069.80",ROYAL MENCAP SOCIETY,SP0000842
WANDSWORTH COUNCIL,ASC,SOCIAL SERVICES,VOL ASS,Revenue,SUPPORTED HOUSING PROGRAMME,130248030,07/04/16,914896,"3,273.32",ROYAL MENCAP SOCIETY,SP0000842
WANDSWORTH COUNCIL,ASC,SOCIAL SERVICES,VOL ASS,Revenue,SUPPORTED HOUSING PROGRAMME,130248030,07/04/16,914897,"2,491.28",ROYAL MENCAP SOCIETY,SP0000842
WANDSWORTH COUNCIL,ASC,SOCIAL SERVICES,VOL ASS,Revenue,SUPPORTED HOUSING PROGRAMME,130248030,07/04/16,914898,897.32,ROYAL MENCAP SOCIETY,SP0000842
WANDSWORTH COUNCIL,ASC,SOCIAL SERVICES,VOL ASS,Revenue,SUPPORTED HOUSING PROGRAMME,130248030,07/04/16,914899,"3,246.40",ROYAL MENCAP SOCIETY,SP0000842
WANDSWORTH COUNCIL,ASC,SOCIAL SERVICES,VOL ASS,Revenue,SUPPORTED HOUSING PROGRAMME,130248030,07/04/16,914900,"1,748.04",ROYAL MENCAP SOCIETY,SP0000842
WANDSWORTH COUNCIL,ASC,SOCIAL SERVICES,VOL ASS,Revenue,SUPPORTED HOUSING PROGRAMME,130248030,25/04/16,931453,"5,103.90",ST ELIZABETHS CENTRE,SP0001019
WANDSWORTH COUNCIL,ASC,SOCIAL SERVICES,VOL ASS,Revenue,SUPPORTED HOUSING PROGRAMME,130248030,06/04/16,914581,"4,740.00",STEP 4 YOU,SP0010196
WANDSWORTH COUNCIL,ASC,SOCIAL SERVICES,VOL ASS,Revenue,SUPPORTED HOUSING PROGRAMME,130248030,14/04/16,921864,"3,940.00",STEP 4 YOU,SP0010196
WANDSWORTH COUNCIL,ASC,SOCIAL SERVICES,VOL ASS,Revenue,SUPPORTED HOUSING PROGRAMME,130248030,19/04/16,926324,"1,970.00",STEP 4 YOU,SP0010196
WANDSWORTH COUNCIL,ASC,SOCIAL SERVICES,VOL ASS,Revenue,SUPPORTED HOUSING PROGRAMME,130248030,19/04/16,926325,"1,970.00",STEP 4 YOU,SP0010196
WANDSWORTH COUNCIL,ASC,SOCIAL SERVICES,VOL ASS,Revenue,SUPPORTED HOUSING PROGRAMME,130248030,21/04/16,927841,"3,940.00",STEP 4 YOU,SP0010196
WANDSWORTH COUNCIL,ASC,SOCIAL SERVICES,VOL ASS,Revenue,SUPPORTED HOUSING PROGRAMME,130248030,12/04/16,917775,"1,499.44",THE BRANDON TRUST,SP0005337
WANDSWORTH COUNCIL,ASC,SOCIAL SERVICES,VOL ASS,Revenue,SUPPORTED HOUSING PROGRAMME,130248030,12/04/16,917781,"1,034.48",THE BRANDON TRUST,SP0005337
WANDSWORTH COUNCIL,ASC,SOCIAL SERVICES,VOL ASS,Revenue,SUPPORTED HOUSING PROGRAMME,130248030,12/04/16,917796,"1,625.36",THE BRANDON TRUST,SP0005337
WANDSWORTH COUNCIL,ASC,SOCIAL SERVICES,VOL ASS,Revenue,SUPPORTED HOUSING PROGRAMME,130248030,12/04/16,917797,"1,674.84",THE BRANDON TRUST,SP0005337
WANDSWORTH COUNCIL,ASC,SOCIAL SERVICES,VOL ASS,Revenue,SUPPORTED HOUSING PROGRAMME,130248030,12/04/16,917800,"2,459.52",THE BRANDON TRUST,SP0005337
WANDSWORTH COUNCIL,ASC,SOCIAL SERVICES,VOL ASS,Revenue,SUPPORTED HOUSING PROGRAMME,130248030,12/04/16,917801,"3,883.68",THE BRANDON TRUST,SP0005337
WANDSWORTH COUNCIL,ASC,SOCIAL SERVICES,VOL ASS,Revenue,SUPPORTED HOUSING PROGRAMME,130248030,12/04/16,917802,"2,618.48",THE BRANDON TRUST,SP0005337
WANDSWORTH COUNCIL,ASC,SOCIAL SERVICES,VOL ASS,Revenue,SUPPORTED HOUSING PROGRAMME,130248030,12/04/16,917803,"1,730.88",THE BRANDON TRUST,SP0005337
WANDSWORTH COUNCIL,ASC,SOCIAL SERVICES,VOL ASS,Revenue,SUPPORTED HOUSING PROGRAMME,130248030,12/04/16,917810,"1,465.92",THE BRANDON TRUST,SP0005337
WANDSWORTH COUNCIL,ASC,SOCIAL SERVICES,VOL ASS,Revenue,SUPPORTED HOUSING PROGRAMME,130248030,12/04/16,917811,"2,606.80",THE BRANDON TRUST,SP0005337
WANDSWORTH COUNCIL,ASC,SOCIAL SERVICES,VOL ASS,Revenue,SUPPORTED HOUSING PROGRAMME,130248030,12/04/16,917813,"2,631.48",THE BRANDON TRUST,SP0005337
WANDSWORTH COUNCIL,ASC,SOCIAL SERVICES,VOL ASS,Revenue,SUPPORTED HOUSING PROGRAMME,130248030,12/04/16,917816,"4,177.52",THE BRANDON TRUST,SP0005337
WANDSWORTH COUNCIL,ASC,SOCIAL SERVICES,VOL ASS,Revenue,SUPPORTED HOUSING PROGRAMME,130248030,14/04/16,921865,"2,919.16",THE BRANDON TRUST,SP0005337
WANDSWORTH COUNCIL,ASC,SOCIAL SERVICES,VOL ASS,Revenue,SUPPORTED HOUSING PROGRAMME,130248030,14/04/16,921866,"2,919.16",THE BRANDON TRUST,SP0005337
WANDSWORTH COUNCIL,ASC,SOCIAL SERVICES,VOL ASS,Revenue,SUPPORTED HOUSING PROGRAMME,130248030,14/04/16,921867,"2,919.16",THE BRANDON TRUST,SP0005337
WANDSWORTH COUNCIL,ASC,SOCIAL SERVICES,VOL ASS,Revenue,SUPPORTED HOUSING PROGRAMME,130248030,14/04/16,921868,"2,919.16",THE BRANDON TRUST,SP0005337
WANDSWORTH COUNCIL,ASC,SOCIAL SERVICES,VOL ASS,Revenue,SUPPORTED HOUSING PROGRAMME,130248030,14/04/16,921869,"12,243.34",THE BRANDON TRUST,SP0005337
WANDSWORTH COUNCIL,ASC,SOCIAL SERVICES,VOL ASS,Revenue,SUPPORTED HOUSING PROGRAMME,130248030,18/04/16,925024,"2,919.16",THE BRANDON TRUST,SP0005337
WANDSWORTH COUNCIL,ASC,SOCIAL SERVICES,VOL ASS,Revenue,SUPPORTED HOUSING PROGRAMME,130248030,18/04/16,925025,"2,402.82",THE BRANDON TRUST,SP0005337
WANDSWORTH COUNCIL,ASC,SOCIAL SERVICES,VOL ASS,Revenue,SUPPORTED HOUSING PROGRAMME,130248030,18/04/16,925032,591.04,THE BRANDON TRUST,SP0005337
WANDSWORTH COUNCIL,ASC,SOCIAL SERVICES,VOL ASS,Revenue,SUPPORTED HOUSING PROGRAMME,130248030,21/04/16,927832,"2,140.32",THE BRANDON TRUST,SP0005337
WANDSWORTH COUNCIL,ASC,SOCIAL SERVICES,DIRECT,Revenue,DIRECT PAYMENTS,130250380,25/04/16,930423,"2,218.20",EPAYROLLUK LTD,SP0009092
WANDSWORTH COUNCIL,ASC,SOCIAL SERVICES,DIRECT,Revenue,DIRECT PAYMENTS,130250380,25/04/16,930462,"1,876.72",HESTIA HOUSING & SUPPORT,SP0000258
WANDSWORTH COUNCIL,ASC,SOCIAL SERVICES,DIRECT,Revenue,DIRECT PAYMENTS,130250380,25/04/16,930465,732.84,HESTIA HOUSING & SUPPORT,SP0000258
WANDSWORTH COUNCIL,ASC,SOCIAL SERVICES,DIRECT,Revenue,DIRECT PAYMENTS,130250380,25/04/16,930468,"2,248.36",HESTIA HOUSING & SUPPORT,SP0000258
WANDSWORTH COUNCIL,ASC,SOCIAL SERVICES,DIRECT,Revenue,DIRECT PAYMENTS,130250380,25/04/16,930469,"1,020.80",HESTIA HOUSING & SUPPORT,SP0000258
WANDSWORTH COUNCIL,ASC,SOCIAL SERVICES,DIRECT,Revenue,DIRECT PAYMENTS,130250380,25/04/16,930728,"1,856.16",VIBRANCE,SP0005489
WANDSWORTH COUNCIL,ASC,SOCIAL SERVICES,DIRECT,Revenue,DIRECT PAYMENTS,130250380,25/04/16,930729,518.56,VIBRANCE,SP0005489
WANDSWORTH COUNCIL,ASC,SOCIAL SERVICES,DIRECT,Revenue,DIRECT PAYMENTS,130250380,25/04/16,930730,"1,861.12",VIBRANCE,SP0005489
WANDSWORTH COUNCIL,ASC,SOCIAL SERVICES,DIRECT,Revenue,DIRECT PAYMENTS,130250380,25/04/16,930736,517.72,VIBRANCE,SP0005489
WANDSWORTH COUNCIL,ASC,SOCIAL SERVICES,DIRECT,Revenue,DIRECT PAYMENTS,130250380,25/04/16,930737,772.46,VIBRANCE,SP0005489
WANDSWORTH COUNCIL,ASC,SOCIAL SERVICES,DIRECT,Revenue,DIRECT PAYMENTS,130250380,25/04/16,930738,772.46,VIBRANCE,SP0005489
WANDSWORTH COUNCIL,ASC,SOCIAL SERVICES,DIRECT,Revenue,DIRECT PAYMENTS,130250380,25/04/16,930741,838.12,VIBRANCE,SP0005489
WANDSWORTH COUNCIL,ASC,SOCIAL SERVICES,DIRECT,Revenue,DIRECT PAYMENTS,130250380,25/04/16,930748,760.24,VIBRANCE,SP0005489
WANDSWORTH COUNCIL,ASC,SOCIAL SERVICES,DIRECT,Revenue,DIRECT PAYMENTS,130250380,25/04/16,930753,"1,065.52",VIBRANCE,SP0005489
WANDSWORTH COUNCIL,ASC,SOCIAL SERVICES,DIRECT,Revenue,DIRECT PAYMENTS,130250380,25/04/16,930767,522.72,VIBRANCE,SP0005489
WANDSWORTH COUNCIL,ASC,SOCIAL SERVICES,DIRECT,Revenue,DIRECT PAYMENTS,130250380,25/04/16,930768,769.76,VIBRANCE,SP0005489
WANDSWORTH COUNCIL,ASC,SOCIAL SERVICES,DIRECT,Revenue,DIRECT PAYMENTS,130250380,25/04/16,930769,783.68,VIBRANCE,SP0005489
WANDSWORTH COUNCIL,ASC,SOCIAL SERVICES,DIRECT,Revenue,DIRECT PAYMENTS,130250380,25/04/16,930770,644.16,VIBRANCE,SP0005489
WANDSWORTH COUNCIL,ASC,SOCIAL SERVICES,DIRECT,Revenue,DIRECT PAYMENTS,130250380,25/04/16,930772,606.56,VIBRANCE,SP0005489
WANDSWORTH COUNCIL,ASC,SOCIAL SERVICES,DIRECT,Revenue,DIRECT PAYMENTS,130250380,25/04/16,930780,608.72,VIBRANCE,SP0005489
WANDSWORTH COUNCIL,ASC,SOCIAL SERVICES,DIRECT,Revenue,DIRECT PAYMENTS,130250380,25/04/16,930785,"1,003.76",VIBRANCE,SP0005489
WANDSWORTH COUNCIL,ASC,SOCIAL SERVICES,DIRECT,Revenue,DIRECT PAYMENTS,130250380,25/04/16,930787,"3,704.84",VIBRANCE,SP0005489
WANDSWORTH COUNCIL,ASC,SOCIAL SERVICES,DIRECT,Revenue,DIRECT PAYMENTS,130250380,25/04/16,930790,714.00,VIBRANCE,SP0005489
WANDSWORTH COUNCIL,ASC,SOCIAL SERVICES,DIRECT,Revenue,DIRECT PAYMENTS,130250380,25/04/16,930793,719.16,VIBRANCE,SP0005489
WANDSWORTH COUNCIL,ASC,SOCIAL SERVICES,DIRECT,Revenue,DIRECT PAYMENTS,130250380,25/04/16,930801,"1,856.16",VIBRANCE,SP0005489
WANDSWORTH COUNCIL,ASC,SOCIAL SERVICES,DIRECT,Revenue,DIRECT PAYMENTS,130250380,25/04/16,930803,930.56,VIBRANCE,SP0005489
WANDSWORTH COUNCIL,ASC,SOCIAL SERVICES,DIRECT,Revenue,DIRECT PAYMENTS,130250380,25/04/16,930811,720.96,VIBRANCE,SP0005489
WANDSWORTH COUNCIL,ASC,SOCIAL SERVICES,DIRECT,Revenue,DIRECT PAYMENTS,130250380,25/04/16,930812,720.96,VIBRANCE,SP0005489
WANDSWORTH COUNCIL,ASC,SOCIAL SERVICES,CUSTOMER & CLIENT RECPTS - EXT,Revenue,CL CONT EXT RESIDEN S28A 100%,130280680,13/04/16,919062,(546.05),VOYAGE CARE LTD,SP0000366
WANDSWORTH COUNCIL,ASC,SOCIAL SERVICES,CUSTOMER & CLIENT RECPTS - EXT,Revenue,CL CONT EXT RESIDEN S28A 100%,130280680,13/04/16,919070,(443.52),VOYAGE CARE LTD,SP0000366
WANDSWORTH COUNCIL,ASC,SOCIAL SERVICES,CUSTOMER & CLIENT RECPTS - EXT,Revenue,CL CONT EXTERNAL RESIDENT S28A,130280710,26/04/16,932185,(321.80),METROPOLITAN HOUSING TRUST,SP0000626
WANDSWORTH COUNCIL,ASC,SOCIAL SERVICES,CUSTOMER & CLIENT RECPTS - EXT,Revenue,CL CONT EXTERNAL RESIDENT S28A,130280710,28/04/16,934196,(510.64),METROPOLITAN HOUSING TRUST,SP0000626
WANDSWORTH COUNCIL,ASC,SOCIAL SERVICES,CUSTOMER & CLIENT RECPTS - EXT,Revenue,CL CONT EXTERNAL RESIDENT S28A,130280710,28/04/16,934205,(321.80),METROPOLITAN HOUSING TRUST,SP0000626
WANDSWORTH COUNCIL,ASC,SOCIAL SERVICES,CUSTOMER & CLIENT RECPTS - EXT,Revenue,CL CONT EXTERNAL RESIDENT S28A,130280710,29/04/16,935599,(510.64),METROPOLITAN HOUSING TRUST,SP0000626
WANDSWORTH COUNCIL,ASC,SOCIAL SERVICES,CUSTOMER & CLIENT RECPTS - EXT,Revenue,CL CONT EXTERNAL RESIDENT S28A,130280710,28/04/16,934249,(356.22),PARKGATE MANOR,SP0000521
WANDSWORTH COUNCIL,ASC,SOCIAL SERVICES,CUSTOMER & CLIENT RECPTS - EXT,Revenue,CL CONT EXTERNAL RESIDENT S28A,130280710,18/04/16,924566,(229.85),SURREY & BORDERS PARTNERSHIP NHS TRUST,SP0000501
WANDSWORTH COUNCIL,ASC,SOCIAL SERVICES,CUSTOMER & CLIENT RECPTS - EXT,Revenue,CL CONT EXTERNAL RESIDENT S28A,130280710,29/04/16,935557,(553.86),THE COMMUNITY CARE COMPANY UK LTD,SP0000576
WANDSWORTH COUNCIL,ASC,SOCIAL SERVICES,CUSTOMER & CLIENT RECPTS - EXT,Revenue,CL CONT EXTERNAL RESIDENTIAL,130280720,18/04/16,924516,(429.21),ACH OF LONDON LLP,SP0001688
WANDSWORTH COUNCIL,ASC,SOCIAL SERVICES,CUSTOMER & CLIENT RECPTS - EXT,Revenue,CL CONT EXTERNAL RESIDENTIAL,130280720,21/04/16,927617,(356.22),AIMS CARE PARTNERSHIP,SP0000561
WANDSWORTH COUNCIL,ASC,SOCIAL SERVICES,CUSTOMER & CLIENT RECPTS - EXT,Revenue,CL CONT EXTERNAL RESIDENTIAL,130280720,13/04/16,919055,(266.61),ALLIED CARE (MHS) LTD,SP0001069
WANDSWORTH COUNCIL,ASC,SOCIAL SERVICES,CUSTOMER & CLIENT RECPTS - EXT,Revenue,CL CONT EXTERNAL RESIDENTIAL,130280720,25/04/16,931079,(321.80),ALLIED CARE (MHS) LTD,SP0001069
WANDSWORTH COUNCIL,ASC,SOCIAL SERVICES,CUSTOMER & CLIENT RECPTS - EXT,Revenue,CL CONT EXTERNAL RESIDENTIAL,130280720,13/04/16,919054,(344.79),ASHCROFT CARE SERVICES,SP0000872
WANDSWORTH COUNCIL,ASC,SOCIAL SERVICES,CUSTOMER & CLIENT RECPTS - EXT,Revenue,CL CONT EXTERNAL RESIDENTIAL,130280720,13/04/16,919073,(356.28),BEECH LODGE,SP0000807
WANDSWORTH COUNCIL,ASC,SOCIAL SERVICES,CUSTOMER & CLIENT RECPTS - EXT,Revenue,CL CONT EXTERNAL RESIDENTIAL,130280720,13/04/16,919074,(356.28),BEECH LODGE,SP0000807
WANDSWORTH COUNCIL,ASC,SOCIAL SERVICES,CUSTOMER & CLIENT RECPTS - EXT,Revenue,CL CONT EXTERNAL RESIDENTIAL,130280720,13/04/16,919075,(356.28),BEECH LODGE,SP0000807
WANDSWORTH COUNCIL,ASC,SOCIAL SERVICES,CUSTOMER & CLIENT RECPTS - EXT,Revenue,CL CONT EXTERNAL RESIDENTIAL,130280720,28/04/16,934244,(553.86),BIRCC,SP0000584
WANDSWORTH COUNCIL,ASC,SOCIAL SERVICES,CUSTOMER & CLIENT RECPTS - EXT,Revenue,CL CONT EXTERNAL RESIDENTIAL,130280720,25/04/16,931082,(325.80),C.H.O.I.C.E LIMITED,SP0010438
WANDSWORTH COUNCIL,ASC,SOCIAL SERVICES,CUSTOMER & CLIENT RECPTS - EXT,Revenue,CL CONT EXTERNAL RESIDENTIAL,130280720,29/04/16,935594,(145.92),CAMBIAN LEARNING DISABILITIES MIDLANDS,SP0010672
WANDSWORTH COUNCIL,ASC,SOCIAL SERVICES,CUSTOMER & CLIENT RECPTS - EXT,Revenue,CL CONT EXTERNAL RESIDENTIAL,130280720,28/04/16,934235,(638.48),CAMERON LODGE LIMITED,SP0000271
WANDSWORTH COUNCIL,ASC,SOCIAL SERVICES,CUSTOMER & CLIENT RECPTS - EXT,Revenue,CL CONT EXTERNAL RESIDENTIAL,130280720,28/04/16,934210,(523.24),CARE UNLIMITED DOMCARE LIMITED,SP0005359
WANDSWORTH COUNCIL,ASC,SOCIAL SERVICES,CUSTOMER & CLIENT RECPTS - EXT,Revenue,CL CONT EXTERNAL RESIDENTIAL,130280720,28/04/16,934211,(559.33),CARE UNLIMITED DOMCARE LIMITED,SP0005359
WANDSWORTH COUNCIL,ASC,SOCIAL SERVICES,CUSTOMER & CLIENT RECPTS - EXT,Revenue,CL CONT EXTERNAL RESIDENTIAL,130280720,28/04/16,934212,(541.29),CARE UNLIMITED DOMCARE LIMITED,SP0005359
WANDSWORTH COUNCIL,ASC,SOCIAL SERVICES,CUSTOMER & CLIENT RECPTS - EXT,Revenue,CL CONT EXTERNAL RESIDENTIAL,130280720,06/04/16,914575,(356.28),CENTRUST CARE HOMES LTD,SP0000141
WANDSWORTH COUNCIL,ASC,SOCIAL SERVICES,CUSTOMER & CLIENT RECPTS - EXT,Revenue,CL CONT EXTERNAL RESIDENTIAL,130280720,21/04/16,927653,(400.60),CHATSWORTH CARE,SP0000831
WANDSWORTH COUNCIL,ASC,SOCIAL SERVICES,CUSTOMER & CLIENT RECPTS - EXT,Revenue,CL CONT EXTERNAL RESIDENTIAL,130280720,21/04/16,927654,(400.60),CHATSWORTH CARE,SP0000831
WANDSWORTH COUNCIL,ASC,SOCIAL SERVICES,CUSTOMER & CLIENT RECPTS - EXT,Revenue,CL CONT EXTERNAL RESIDENTIAL,130280720,21/04/16,927659,(405.65),CHATSWORTH CARE,SP0000831
WANDSWORTH COUNCIL,ASC,SOCIAL SERVICES,CUSTOMER & CLIENT RECPTS - EXT,Revenue,CL CONT EXTERNAL RESIDENTIAL,130280720,21/04/16,927660,(392.57),CHATSWORTH CARE,SP0000831
WANDSWORTH COUNCIL,ASC,SOCIAL SERVICES,CUSTOMER & CLIENT RECPTS - EXT,Revenue,CL CONT EXTERNAL RESIDENTIAL,130280720,13/04/16,919076,(356.28),CHERRY LODGE,SP0000965
WANDSWORTH COUNCIL,ASC,SOCIAL SERVICES,CUSTOMER & CLIENT RECPTS - EXT,Revenue,CL CONT EXTERNAL RESIDENTIAL,130280720,13/04/16,919077,(400.60),CMG HOMES LTD,SP0000075
WANDSWORTH COUNCIL,ASC,SOCIAL SERVICES,CUSTOMER & CLIENT RECPTS - EXT,Revenue,CL CONT EXTERNAL RESIDENTIAL,130280720,13/04/16,919079,(343.80),CMG HOMES LTD,SP0000075
WANDSWORTH COUNCIL,ASC,SOCIAL SERVICES,CUSTOMER & CLIENT RECPTS - EXT,Revenue,CL CONT EXTERNAL RESIDENTIAL,130280720,13/04/16,919081,(400.60),CMG HOMES LTD,SP0000075
WANDSWORTH COUNCIL,ASC,SOCIAL SERVICES,CUSTOMER & CLIENT RECPTS - EXT,Revenue,CL CONT EXTERNAL RESIDENTIAL,130280720,13/04/16,919082,(132.00),CMG HOMES LTD,SP0000075
WANDSWORTH COUNCIL,ASC,SOCIAL SERVICES,CUSTOMER & CLIENT RECPTS - EXT,Revenue,CL CONT EXTERNAL RESIDENTIAL,130280720,13/04/16,919083,(400.60),CMG HOMES LTD,SP0000075
WANDSWORTH COUNCIL,ASC,SOCIAL SERVICES,CUSTOMER & CLIENT RECPTS - EXT,Revenue,CL CONT EXTERNAL RESIDENTIAL,130280720,13/04/16,919084,(400.60),CMG HOMES LTD,SP0000075
WANDSWORTH COUNCIL,ASC,SOCIAL SERVICES,CUSTOMER & CLIENT RECPTS - EXT,Revenue,CL CONT EXTERNAL RESIDENTIAL,130280720,13/04/16,919085,(400.60),CMG HOMES LTD,SP0000075
WANDSWORTH COUNCIL,ASC,SOCIAL SERVICES,CUSTOMER & CLIENT RECPTS - EXT,Revenue,CL CONT EXTERNAL RESIDENTIAL,130280720,13/04/16,919086,(321.80),CMG HOMES LTD,SP0000075
WANDSWORTH COUNCIL,ASC,SOCIAL SERVICES,CUSTOMER & CLIENT RECPTS - EXT,Revenue,CL CONT EXTERNAL RESIDENTIAL,130280720,13/04/16,919087,(505.20),CMG HOMES LTD,SP0000075
WANDSWORTH COUNCIL,ASC,SOCIAL SERVICES,CUSTOMER & CLIENT RECPTS - EXT,Revenue,CL CONT EXTERNAL RESIDENTIAL,130280720,13/04/16,919088,(359.80),CMG HOMES LTD,SP0000075
WANDSWORTH COUNCIL,ASC,SOCIAL SERVICES,CUSTOMER & CLIENT RECPTS - EXT,Revenue,CL CONT EXTERNAL RESIDENTIAL,130280720,13/04/16,919089,(321.80),CMG HOMES LTD,SP0000075
WANDSWORTH COUNCIL,ASC,SOCIAL SERVICES,CUSTOMER & CLIENT RECPTS - EXT,Revenue,CL CONT EXTERNAL RESIDENTIAL,130280720,18/04/16,924562,(321.80),CRAEGMOOR FACILITIES CO LTD,SP0000306
WANDSWORTH COUNCIL,ASC,SOCIAL SERVICES,CUSTOMER & CLIENT RECPTS - EXT,Revenue,CL CONT EXTERNAL RESIDENTIAL,130280720,18/04/16,924539,(287.60),CRAEGMOOR OLD RECTORY BREDE PRIORY,SP0001621
WANDSWORTH COUNCIL,ASC,SOCIAL SERVICES,CUSTOMER & CLIENT RECPTS - EXT,Revenue,CL CONT EXTERNAL RESIDENTIAL,130280720,28/04/16,934302,(132.00),"CRAEGMOOR, PARKCARE HOMES (NO2) LTD TA W",SP0010529
WANDSWORTH COUNCIL,ASC,SOCIAL SERVICES,CUSTOMER & CLIENT RECPTS - EXT,Revenue,CL CONT EXTERNAL RESIDENTIAL,130280720,28/04/16,934303,(400.60),ENHAM,SP0005845
WANDSWORTH COUNCIL,ASC,SOCIAL SERVICES,CUSTOMER & CLIENT RECPTS - EXT,Revenue,CL CONT EXTERNAL RESIDENTIAL,130280720,26/04/16,932139,(206.87),EVERGREEN PARTNERSHIP,SP0000597
WANDSWORTH COUNCIL,ASC,SOCIAL SERVICES,CUSTOMER & CLIENT RECPTS - EXT,Revenue,CL CONT EXTERNAL RESIDENTIAL,130280720,25/04/16,931083,(321.80),FREEWAYS TRUST LTD,SP0000793
WANDSWORTH COUNCIL,ASC,SOCIAL SERVICES,CUSTOMER & CLIENT RECPTS - EXT,Revenue,CL CONT EXTERNAL RESIDENTIAL,130280720,12/04/16,917645,(337.60),HAYDON PARK LODGE LTD,SP0000231
WANDSWORTH COUNCIL,ASC,SOCIAL SERVICES,CUSTOMER & CLIENT RECPTS - EXT,Revenue,CL CONT EXTERNAL RESIDENTIAL,130280720,12/04/16,917646,(337.60),HAYDON PARK LODGE LTD,SP0000231
WANDSWORTH COUNCIL,ASC,SOCIAL SERVICES,CUSTOMER & CLIENT RECPTS - EXT,Revenue,CL CONT EXTERNAL RESIDENTIAL,130280720,12/04/16,917647,(337.60),HAYDON PARK LODGE LTD,SP0000231
WANDSWORTH COUNCIL,ASC,SOCIAL SERVICES,CUSTOMER & CLIENT RECPTS - EXT,Revenue,CL CONT EXTERNAL RESIDENTIAL,130280720,13/04/16,919065,(356.28),ILG LTD,SP0001103
WANDSWORTH COUNCIL,ASC,SOCIAL SERVICES,CUSTOMER & CLIENT RECPTS - EXT,Revenue,CL CONT EXTERNAL RESIDENTIAL,130280720,28/04/16,934327,(356.28),INSPIRE CARE OUTREACH LIMITED,SP0010404
WANDSWORTH COUNCIL,ASC,SOCIAL SERVICES,CUSTOMER & CLIENT RECPTS - EXT,Revenue,CL CONT EXTERNAL RESIDENTIAL,130280720,28/04/16,934328,(333.29),INSPIRE CARE OUTREACH LIMITED,SP0010404
WANDSWORTH COUNCIL,ASC,SOCIAL SERVICES,CUSTOMER & CLIENT RECPTS - EXT,Revenue,CL CONT EXTERNAL RESIDENTIAL,130280720,28/04/16,934329,(321.80),INSPIRE CARE OUTREACH LIMITED,SP0010404
WANDSWORTH COUNCIL,ASC,SOCIAL SERVICES,CUSTOMER & CLIENT RECPTS - EXT,Revenue,CL CONT EXTERNAL RESIDENTIAL,130280720,28/04/16,934330,(160.90),INSPIRE CARE OUTREACH LIMITED,SP0010404
WANDSWORTH COUNCIL,ASC,SOCIAL SERVICES,CUSTOMER & CLIENT RECPTS - EXT,Revenue,CL CONT EXTERNAL RESIDENTIAL,130280720,12/04/16,917641,(505.20),KENILWORTH RESIDENTIAL HOME,SP0000432
WANDSWORTH COUNCIL,ASC,SOCIAL SERVICES,CUSTOMER & CLIENT RECPTS - EXT,Revenue,CL CONT EXTERNAL RESIDENTIAL,130280720,12/04/16,917642,(321.80),KENILWORTH RESIDENTIAL HOME,SP0000432
WANDSWORTH COUNCIL,ASC,SOCIAL SERVICES,CUSTOMER & CLIENT RECPTS - EXT,Revenue,CL CONT EXTERNAL RESIDENTIAL,130280720,25/04/16,931106,(321.80),LAETUS LODGE,SP0000600
WANDSWORTH COUNCIL,ASC,SOCIAL SERVICES,CUSTOMER & CLIENT RECPTS - EXT,Revenue,CL CONT EXTERNAL RESIDENTIAL,130280720,25/04/16,931107,(321.80),LAETUS LODGE,SP0000600
WANDSWORTH COUNCIL,ASC,SOCIAL SERVICES,CUSTOMER & CLIENT RECPTS - EXT,Revenue,CL CONT EXTERNAL RESIDENTIAL,130280720,25/04/16,931109,(366.40),LAETUS LODGE,SP0000600
WANDSWORTH COUNCIL,ASC,SOCIAL SERVICES,CUSTOMER & CLIENT RECPTS - EXT,Revenue,CL CONT EXTERNAL RESIDENTIAL,130280720,25/04/16,931110,(321.80),LAETUS LODGE,SP0000600
WANDSWORTH COUNCIL,ASC,SOCIAL SERVICES,CUSTOMER & CLIENT RECPTS - EXT,Revenue,CL CONT EXTERNAL RESIDENTIAL,130280720,25/04/16,931111,(321.80),LAETUS LODGE,SP0000600
WANDSWORTH COUNCIL,ASC,SOCIAL SERVICES,CUSTOMER & CLIENT RECPTS - EXT,Revenue,CL CONT EXTERNAL RESIDENTIAL,130280720,28/04/16,934214,(329.80),LAETUS LODGE,SP0000600
WANDSWORTH COUNCIL,ASC,SOCIAL SERVICES,CUSTOMER & CLIENT RECPTS - EXT,Revenue,CL CONT EXTERNAL RESIDENTIAL,130280720,28/04/16,934215,(321.80),LAETUS LODGE,SP0000600
WANDSWORTH COUNCIL,ASC,SOCIAL SERVICES,CUSTOMER & CLIENT RECPTS - EXT,Revenue,CL CONT EXTERNAL RESIDENTIAL,130280720,28/04/16,934217,(366.40),LAETUS LODGE,SP0000600
WANDSWORTH COUNCIL,ASC,SOCIAL SERVICES,CUSTOMER & CLIENT RECPTS - EXT,Revenue,CL CONT EXTERNAL RESIDENTIAL,130280720,28/04/16,934218,(329.80),LAETUS LODGE,SP0000600
WANDSWORTH COUNCIL,ASC,SOCIAL SERVICES,CUSTOMER & CLIENT RECPTS - EXT,Revenue,CL CONT EXTERNAL RESIDENTIAL,130280720,28/04/16,934219,(329.80),LAETUS LODGE,SP0000600
WANDSWORTH COUNCIL,ASC,SOCIAL SERVICES,CUSTOMER & CLIENT RECPTS - EXT,Revenue,CL CONT EXTERNAL RESIDENTIAL,130280720,29/04/16,934323,(356.28),LEONARD CHESHIRE,SP0000976
WANDSWORTH COUNCIL,ASC,SOCIAL SERVICES,CUSTOMER & CLIENT RECPTS - EXT,Revenue,CL CONT EXTERNAL RESIDENTIAL,130280720,28/04/16,935115,(321.80),LOTUS CARE HOME LTD,SP0001006
WANDSWORTH COUNCIL,ASC,SOCIAL SERVICES,CUSTOMER & CLIENT RECPTS - EXT,Revenue,CL CONT EXTERNAL RESIDENTIAL,130280720,28/04/16,935116,(333.80),LOTUS CARE HOME LTD,SP0001006
WANDSWORTH COUNCIL,ASC,SOCIAL SERVICES,CUSTOMER & CLIENT RECPTS - EXT,Revenue,CL CONT EXTERNAL RESIDENTIAL,130280720,12/04/16,917632,(321.80),LOVING CARE LTD,SP0000670
WANDSWORTH COUNCIL,ASC,SOCIAL SERVICES,CUSTOMER & CLIENT RECPTS - EXT,Revenue,CL CONT EXTERNAL RESIDENTIAL,130280720,12/04/16,917633,(321.80),LOVING CARE LTD,SP0000670
WANDSWORTH COUNCIL,ASC,SOCIAL SERVICES,CUSTOMER & CLIENT RECPTS - EXT,Revenue,CL CONT EXTERNAL RESIDENTIAL,130280720,12/04/16,917634,(400.60),LOVING CARE LTD,SP0000670
WANDSWORTH COUNCIL,ASC,SOCIAL SERVICES,CUSTOMER & CLIENT RECPTS - EXT,Revenue,CL CONT EXTERNAL RESIDENTIAL,130280720,12/04/16,917635,(400.60),LOVING CARE LTD,SP0000670
WANDSWORTH COUNCIL,ASC,SOCIAL SERVICES,CUSTOMER & CLIENT RECPTS - EXT,Revenue,CL CONT EXTERNAL RESIDENTIAL,130280720,12/04/16,917636,(321.80),LOVING CARE LTD,SP0000670
WANDSWORTH COUNCIL,ASC,SOCIAL SERVICES,CUSTOMER & CLIENT RECPTS - EXT,Revenue,CL CONT EXTERNAL RESIDENTIAL,130280720,12/04/16,917637,(321.80),LOVING CARE LTD,SP0000670
WANDSWORTH COUNCIL,ASC,SOCIAL SERVICES,CUSTOMER & CLIENT RECPTS - EXT,Revenue,CL CONT EXTERNAL RESIDENTIAL,130280720,28/04/16,934304,(321.80),MACINTYRE CARE,SP0000473
WANDSWORTH COUNCIL,ASC,SOCIAL SERVICES,CUSTOMER & CLIENT RECPTS - EXT,Revenue,CL CONT EXTERNAL RESIDENTIAL,130280720,28/04/16,934305,(505.20),MACINTYRE CARE,SP0000473
WANDSWORTH COUNCIL,ASC,SOCIAL SERVICES,CUSTOMER & CLIENT RECPTS - EXT,Revenue,CL CONT EXTERNAL RESIDENTIAL,130280720,28/04/16,934307,(329.23),MACINTYRE CARE,SP0000473
WANDSWORTH COUNCIL,ASC,SOCIAL SERVICES,CUSTOMER & CLIENT RECPTS - EXT,Revenue,CL CONT EXTERNAL RESIDENTIAL,130280720,28/04/16,934308,(321.80),MACINTYRE CARE,SP0000473
WANDSWORTH COUNCIL,ASC,SOCIAL SERVICES,CUSTOMER & CLIENT RECPTS - EXT,Revenue,CL CONT EXTERNAL RESIDENTIAL,130280720,28/04/16,934309,(366.40),MACINTYRE CARE,SP0000473
WANDSWORTH COUNCIL,ASC,SOCIAL SERVICES,CUSTOMER & CLIENT RECPTS - EXT,Revenue,CL CONT EXTERNAL RESIDENTIAL,130280720,28/04/16,934310,(321.80),MACINTYRE CARE,SP0000473
WANDSWORTH COUNCIL,ASC,SOCIAL SERVICES,CUSTOMER & CLIENT RECPTS - EXT,Revenue,CL CONT EXTERNAL RESIDENTIAL,130280720,28/04/16,934311,(321.80),MACINTYRE CARE,SP0000473
WANDSWORTH COUNCIL,ASC,SOCIAL SERVICES,CUSTOMER & CLIENT RECPTS - EXT,Revenue,CL CONT EXTERNAL RESIDENTIAL,130280720,28/04/16,934312,(400.60),MACINTYRE CARE,SP0000473
WANDSWORTH COUNCIL,ASC,SOCIAL SERVICES,CUSTOMER & CLIENT RECPTS - EXT,Revenue,CL CONT EXTERNAL RESIDENTIAL,130280720,28/04/16,934313,(329.23),MACINTYRE CARE,SP0000473
WANDSWORTH COUNCIL,ASC,SOCIAL SERVICES,CUSTOMER & CLIENT RECPTS - EXT,Revenue,CL CONT EXTERNAL RESIDENTIAL,130280720,28/04/16,934314,(513.37),MACINTYRE CARE,SP0000473
WANDSWORTH COUNCIL,ASC,SOCIAL SERVICES,CUSTOMER & CLIENT RECPTS - EXT,Revenue,CL CONT EXTERNAL RESIDENTIAL,130280720,28/04/16,934315,(329.23),MACINTYRE CARE,SP0000473
WANDSWORTH COUNCIL,ASC,SOCIAL SERVICES,CUSTOMER & CLIENT RECPTS - EXT,Revenue,CL CONT EXTERNAL RESIDENTIAL,130280720,28/04/16,934316,(513.37),MACINTYRE CARE,SP0000473
WANDSWORTH COUNCIL,ASC,SOCIAL SERVICES,CUSTOMER & CLIENT RECPTS - EXT,Revenue,CL CONT EXTERNAL RESIDENTIAL,130280720,28/04/16,934317,(513.37),MACINTYRE CARE,SP0000473
WANDSWORTH COUNCIL,ASC,SOCIAL SERVICES,CUSTOMER & CLIENT RECPTS - EXT,Revenue,CL CONT EXTERNAL RESIDENTIAL,130280720,28/04/16,934319,(521.20),MACINTYRE CARE,SP0000473
WANDSWORTH COUNCIL,ASC,SOCIAL SERVICES,CUSTOMER & CLIENT RECPTS - EXT,Revenue,CL CONT EXTERNAL RESIDENTIAL,130280720,28/04/16,934320,(329.23),MACINTYRE CARE,SP0000473
WANDSWORTH COUNCIL,ASC,SOCIAL SERVICES,CUSTOMER & CLIENT RECPTS - EXT,Revenue,CL CONT EXTERNAL RESIDENTIAL,130280720,28/04/16,934321,(508.92),MACINTYRE CARE,SP0000473
WANDSWORTH COUNCIL,ASC,SOCIAL SERVICES,CUSTOMER & CLIENT RECPTS - EXT,Revenue,CL CONT EXTERNAL RESIDENTIAL,130280720,28/04/16,934322,(329.23),MACINTYRE CARE,SP0000473
WANDSWORTH COUNCIL,ASC,SOCIAL SERVICES,CUSTOMER & CLIENT RECPTS - EXT,Revenue,CL CONT EXTERNAL RESIDENTIAL,130280720,28/04/16,935113,(505.20),MACINTYRE CARE,SP0000473
WANDSWORTH COUNCIL,ASC,SOCIAL SERVICES,CUSTOMER & CLIENT RECPTS - EXT,Revenue,CL CONT EXTERNAL RESIDENTIAL,130280720,26/04/16,932172,(321.80),METROPOLITAN HOUSING TRUST,SP0000626
WANDSWORTH COUNCIL,ASC,SOCIAL SERVICES,CUSTOMER & CLIENT RECPTS - EXT,Revenue,CL CONT EXTERNAL RESIDENTIAL,130280720,26/04/16,932173,(505.20),METROPOLITAN HOUSING TRUST,SP0000626
WANDSWORTH COUNCIL,ASC,SOCIAL SERVICES,CUSTOMER & CLIENT RECPTS - EXT,Revenue,CL CONT EXTERNAL RESIDENTIAL,130280720,26/04/16,932174,(321.80),METROPOLITAN HOUSING TRUST,SP0000626
WANDSWORTH COUNCIL,ASC,SOCIAL SERVICES,CUSTOMER & CLIENT RECPTS - EXT,Revenue,CL CONT EXTERNAL RESIDENTIAL,130280720,26/04/16,932175,(400.60),METROPOLITAN HOUSING TRUST,SP0000626
WANDSWORTH COUNCIL,ASC,SOCIAL SERVICES,CUSTOMER & CLIENT RECPTS - EXT,Revenue,CL CONT EXTERNAL RESIDENTIAL,130280720,26/04/16,932176,(400.60),METROPOLITAN HOUSING TRUST,SP0000626
WANDSWORTH COUNCIL,ASC,SOCIAL SERVICES,CUSTOMER & CLIENT RECPTS - EXT,Revenue,CL CONT EXTERNAL RESIDENTIAL,130280720,26/04/16,932179,(400.60),METROPOLITAN HOUSING TRUST,SP0000626
WANDSWORTH COUNCIL,ASC,SOCIAL SERVICES,CUSTOMER & CLIENT RECPTS - EXT,Revenue,CL CONT EXTERNAL RESIDENTIAL,130280720,26/04/16,932180,(321.80),METROPOLITAN HOUSING TRUST,SP0000626
WANDSWORTH COUNCIL,ASC,SOCIAL SERVICES,CUSTOMER & CLIENT RECPTS - EXT,Revenue,CL CONT EXTERNAL RESIDENTIAL,130280720,26/04/16,932181,(505.20),METROPOLITAN HOUSING TRUST,SP0000626
WANDSWORTH COUNCIL,ASC,SOCIAL SERVICES,CUSTOMER & CLIENT RECPTS - EXT,Revenue,CL CONT EXTERNAL RESIDENTIAL,130280720,26/04/16,932182,(321.80),METROPOLITAN HOUSING TRUST,SP0000626
WANDSWORTH COUNCIL,ASC,SOCIAL SERVICES,CUSTOMER & CLIENT RECPTS - EXT,Revenue,CL CONT EXTERNAL RESIDENTIAL,130280720,26/04/16,932184,(321.80),METROPOLITAN HOUSING TRUST,SP0000626
WANDSWORTH COUNCIL,ASC,SOCIAL SERVICES,CUSTOMER & CLIENT RECPTS - EXT,Revenue,CL CONT EXTERNAL RESIDENTIAL,130280720,28/04/16,934192,(321.80),METROPOLITAN HOUSING TRUST,SP0000626
WANDSWORTH COUNCIL,ASC,SOCIAL SERVICES,CUSTOMER & CLIENT RECPTS - EXT,Revenue,CL CONT EXTERNAL RESIDENTIAL,130280720,28/04/16,934193,(505.20),METROPOLITAN HOUSING TRUST,SP0000626
WANDSWORTH COUNCIL,ASC,SOCIAL SERVICES,CUSTOMER & CLIENT RECPTS - EXT,Revenue,CL CONT EXTERNAL RESIDENTIAL,130280720,28/04/16,934194,(321.80),METROPOLITAN HOUSING TRUST,SP0000626
WANDSWORTH COUNCIL,ASC,SOCIAL SERVICES,CUSTOMER & CLIENT RECPTS - EXT,Revenue,CL CONT EXTERNAL RESIDENTIAL,130280720,28/04/16,934195,(400.60),METROPOLITAN HOUSING TRUST,SP0000626
WANDSWORTH COUNCIL,ASC,SOCIAL SERVICES,CUSTOMER & CLIENT RECPTS - EXT,Revenue,CL CONT EXTERNAL RESIDENTIAL,130280720,28/04/16,934197,(400.60),METROPOLITAN HOUSING TRUST,SP0000626
WANDSWORTH COUNCIL,ASC,SOCIAL SERVICES,CUSTOMER & CLIENT RECPTS - EXT,Revenue,CL CONT EXTERNAL RESIDENTIAL,130280720,28/04/16,934199,(505.20),METROPOLITAN HOUSING TRUST,SP0000626
WANDSWORTH COUNCIL,ASC,SOCIAL SERVICES,CUSTOMER & CLIENT RECPTS - EXT,Revenue,CL CONT EXTERNAL RESIDENTIAL,130280720,28/04/16,934200,(200.30),METROPOLITAN HOUSING TRUST,SP0000626
WANDSWORTH COUNCIL,ASC,SOCIAL SERVICES,CUSTOMER & CLIENT RECPTS - EXT,Revenue,CL CONT EXTERNAL RESIDENTIAL,130280720,28/04/16,934201,(321.80),METROPOLITAN HOUSING TRUST,SP0000626
WANDSWORTH COUNCIL,ASC,SOCIAL SERVICES,CUSTOMER & CLIENT RECPTS - EXT,Revenue,CL CONT EXTERNAL RESIDENTIAL,130280720,28/04/16,934202,(321.80),METROPOLITAN HOUSING TRUST,SP0000626
WANDSWORTH COUNCIL,ASC,SOCIAL SERVICES,CUSTOMER & CLIENT RECPTS - EXT,Revenue,CL CONT EXTERNAL RESIDENTIAL,130280720,28/04/16,934204,(321.80),METROPOLITAN HOUSING TRUST,SP0000626
WANDSWORTH COUNCIL,ASC,SOCIAL SERVICES,CUSTOMER & CLIENT RECPTS - EXT,Revenue,CL CONT EXTERNAL RESIDENTIAL,130280720,28/04/16,934206,(368.89),METROPOLITAN HOUSING TRUST,SP0000626
WANDSWORTH COUNCIL,ASC,SOCIAL SERVICES,CUSTOMER & CLIENT RECPTS - EXT,Revenue,CL CONT EXTERNAL RESIDENTIAL,130280720,29/04/16,935600,(321.80),METROPOLITAN HOUSING TRUST,SP0000626
WANDSWORTH COUNCIL,ASC,SOCIAL SERVICES,CUSTOMER & CLIENT RECPTS - EXT,Revenue,CL CONT EXTERNAL RESIDENTIAL,130280720,12/04/16,917638,(400.60),MIGHOUSE RESIDENTIAL CARE HOME LTD,SP0001402
WANDSWORTH COUNCIL,ASC,SOCIAL SERVICES,CUSTOMER & CLIENT RECPTS - EXT,Revenue,CL CONT EXTERNAL RESIDENTIAL,130280720,12/04/16,917639,(414.91),MIGHOUSE RESIDENTIAL CARE HOME LTD,SP0001402
WANDSWORTH COUNCIL,ASC,SOCIAL SERVICES,CUSTOMER & CLIENT RECPTS - EXT,Revenue,CL CONT EXTERNAL RESIDENTIAL,130280720,13/04/16,919119,(321.80),MISSION CARE,SP0000958
WANDSWORTH COUNCIL,ASC,SOCIAL SERVICES,CUSTOMER & CLIENT RECPTS - EXT,Revenue,CL CONT EXTERNAL RESIDENTIAL,130280720,28/04/16,934224,(321.80),MISSION CARE,SP0000958
WANDSWORTH COUNCIL,ASC,SOCIAL SERVICES,CUSTOMER & CLIENT RECPTS - EXT,Revenue,CL CONT EXTERNAL RESIDENTIAL,130280720,21/04/16,927633,(321.80),NAS SERVICES LIMITED,SP0000217
WANDSWORTH COUNCIL,ASC,SOCIAL SERVICES,CUSTOMER & CLIENT RECPTS - EXT,Revenue,CL CONT EXTERNAL RESIDENTIAL,130280720,28/04/16,934245,(321.80),NAS SERVICES LIMITED,SP0000217
WANDSWORTH COUNCIL,ASC,SOCIAL SERVICES,CUSTOMER & CLIENT RECPTS - EXT,Revenue,CL CONT EXTERNAL RESIDENTIAL,130280720,28/04/16,934247,(321.80),NAS SERVICES LIMITED,SP0000217
WANDSWORTH COUNCIL,ASC,SOCIAL SERVICES,CUSTOMER & CLIENT RECPTS - EXT,Revenue,CL CONT EXTERNAL RESIDENTIAL,130280720,13/04/16,919045,(321.80),NORCREST (2000) HOME LTD,SP0008343
WANDSWORTH COUNCIL,ASC,SOCIAL SERVICES,CUSTOMER & CLIENT RECPTS - EXT,Revenue,CL CONT EXTERNAL RESIDENTIAL,130280720,13/04/16,919046,(321.80),NORCREST (2000) HOME LTD,SP0008343
WANDSWORTH COUNCIL,ASC,SOCIAL SERVICES,CUSTOMER & CLIENT RECPTS - EXT,Revenue,CL CONT EXTERNAL RESIDENTIAL,130280720,13/04/16,919047,(321.80),NORCREST (2000) HOME LTD,SP0008343
WANDSWORTH COUNCIL,ASC,SOCIAL SERVICES,CUSTOMER & CLIENT RECPTS - EXT,Revenue,CL CONT EXTERNAL RESIDENTIAL,130280720,13/04/16,919038,(321.80),ORCHARD VALE TRUST,SP0000214
WANDSWORTH COUNCIL,ASC,SOCIAL SERVICES,CUSTOMER & CLIENT RECPTS - EXT,Revenue,CL CONT EXTERNAL RESIDENTIAL,130280720,21/04/16,927626,(321.80),POTENSIAL LTD,SP0000395
WANDSWORTH COUNCIL,ASC,SOCIAL SERVICES,CUSTOMER & CLIENT RECPTS - EXT,Revenue,CL CONT EXTERNAL RESIDENTIAL,130280720,25/04/16,931100,(321.80),PROSPECTS,SP0000800
WANDSWORTH COUNCIL,ASC,SOCIAL SERVICES,CUSTOMER & CLIENT RECPTS - EXT,Revenue,CL CONT EXTERNAL RESIDENTIAL,130280720,06/04/16,914574,(321.80),RESIDENTIAL CARE SERVICES T/A FRANKLYN L,SP0000147
WANDSWORTH COUNCIL,ASC,SOCIAL SERVICES,CUSTOMER & CLIENT RECPTS - EXT,Revenue,CL CONT EXTERNAL RESIDENTIAL,130280720,13/04/16,919059,(344.79),RESIDENTIAL COMMUNITY CARE,SP0000315
WANDSWORTH COUNCIL,ASC,SOCIAL SERVICES,CUSTOMER & CLIENT RECPTS - EXT,Revenue,CL CONT EXTERNAL RESIDENTIAL,130280720,08/04/16,915608,(321.80),RIDGEWOOD CARE SERVICES LTD,SP0000969
WANDSWORTH COUNCIL,ASC,SOCIAL SERVICES,CUSTOMER & CLIENT RECPTS - EXT,Revenue,CL CONT EXTERNAL RESIDENTIAL,130280720,08/04/16,915609,(321.80),RIDGEWOOD CARE SERVICES LTD,SP0000969
WANDSWORTH COUNCIL,ASC,SOCIAL SERVICES,CUSTOMER & CLIENT RECPTS - EXT,Revenue,CL CONT EXTERNAL RESIDENTIAL,130280720,08/04/16,915610,(400.60),RIDGEWOOD CARE SERVICES LTD,SP0000969
WANDSWORTH COUNCIL,ASC,SOCIAL SERVICES,CUSTOMER & CLIENT RECPTS - EXT,Revenue,CL CONT EXTERNAL RESIDENTIAL,130280720,18/04/16,924570,(321.80),RIDGEWOOD CARE SERVICES LTD,SP0000969
WANDSWORTH COUNCIL,ASC,SOCIAL SERVICES,CUSTOMER & CLIENT RECPTS - EXT,Revenue,CL CONT EXTERNAL RESIDENTIAL,130280720,18/04/16,924571,(321.80),RIDGEWOOD CARE SERVICES LTD,SP0000969
WANDSWORTH COUNCIL,ASC,SOCIAL SERVICES,CUSTOMER & CLIENT RECPTS - EXT,Revenue,CL CONT EXTERNAL RESIDENTIAL,130280720,18/04/16,924572,(321.80),RIDGEWOOD CARE SERVICES LTD,SP0000969
WANDSWORTH COUNCIL,ASC,SOCIAL SERVICES,CUSTOMER & CLIENT RECPTS - EXT,Revenue,CL CONT EXTERNAL RESIDENTIAL,130280720,18/04/16,924573,(400.60),RIDGEWOOD CARE SERVICES LTD,SP0000969
WANDSWORTH COUNCIL,ASC,SOCIAL SERVICES,CUSTOMER & CLIENT RECPTS - EXT,Revenue,CL CONT EXTERNAL RESIDENTIAL,130280720,18/04/16,924575,(400.60),RIDGEWOOD CARE SERVICES LTD,SP0000969
WANDSWORTH COUNCIL,ASC,SOCIAL SERVICES,CUSTOMER & CLIENT RECPTS - EXT,Revenue,CL CONT EXTERNAL RESIDENTIAL,130280720,07/04/16,914888,(321.80),ROYAL MENCAP SOCIETY,SP0000842
WANDSWORTH COUNCIL,ASC,SOCIAL SERVICES,CUSTOMER & CLIENT RECPTS - EXT,Revenue,CL CONT EXTERNAL RESIDENTIAL,130280720,07/04/16,914889,(321.80),ROYAL MENCAP SOCIETY,SP0000842
WANDSWORTH COUNCIL,ASC,SOCIAL SERVICES,CUSTOMER & CLIENT RECPTS - EXT,Revenue,CL CONT EXTERNAL RESIDENTIAL,130280720,22/04/16,929188,(333.80),SANCTUARY CARE LTD,SP0000121
WANDSWORTH COUNCIL,ASC,SOCIAL SERVICES,CUSTOMER & CLIENT RECPTS - EXT,Revenue,CL CONT EXTERNAL RESIDENTIAL,130280720,13/04/16,919048,(321.80),SPRING LAKE,SP0000223
WANDSWORTH COUNCIL,ASC,SOCIAL SERVICES,CUSTOMER & CLIENT RECPTS - EXT,Revenue,CL CONT EXTERNAL RESIDENTIAL,130280720,13/04/16,919049,(366.40),SPRING LAKE,SP0000223
WANDSWORTH COUNCIL,ASC,SOCIAL SERVICES,CUSTOMER & CLIENT RECPTS - EXT,Revenue,CL CONT EXTERNAL RESIDENTIAL,130280720,13/04/16,919050,(321.80),SPRING LAKE,SP0000223
WANDSWORTH COUNCIL,ASC,SOCIAL SERVICES,CUSTOMER & CLIENT RECPTS - EXT,Revenue,CL CONT EXTERNAL RESIDENTIAL,130280720,13/04/16,919051,(366.40),SPRING LAKE,SP0000223
WANDSWORTH COUNCIL,ASC,SOCIAL SERVICES,CUSTOMER & CLIENT RECPTS - EXT,Revenue,CL CONT EXTERNAL RESIDENTIAL,130280720,13/04/16,919052,(321.80),SPRING LAKE,SP0000223
WANDSWORTH COUNCIL,ASC,SOCIAL SERVICES,CUSTOMER & CLIENT RECPTS - EXT,Revenue,CL CONT EXTERNAL RESIDENTIAL,130280720,13/04/16,919053,(366.40),SPRING LAKE,SP0000223
WANDSWORTH COUNCIL,ASC,SOCIAL SERVICES,CUSTOMER & CLIENT RECPTS - EXT,Revenue,CL CONT EXTERNAL RESIDENTIAL,130280720,28/04/16,934325,(429.21),STALLCOMBE HOUSE,SP0000843
WANDSWORTH COUNCIL,ASC,SOCIAL SERVICES,CUSTOMER & CLIENT RECPTS - EXT,Revenue,CL CONT EXTERNAL RESIDENTIAL,130280720,18/04/16,924566,(91.95),SURREY & BORDERS PARTNERSHIP NHS TRUST,SP0000501
WANDSWORTH COUNCIL,ASC,SOCIAL SERVICES,CUSTOMER & CLIENT RECPTS - EXT,Revenue,CL CONT EXTERNAL RESIDENTIAL,130280720,28/04/16,934243,(321.80),THE BRANDON TRUST,SP0005337
WANDSWORTH COUNCIL,ASC,SOCIAL SERVICES,CUSTOMER & CLIENT RECPTS - EXT,Revenue,CL CONT EXTERNAL RESIDENTIAL,130280720,29/04/16,935560,(553.86),THE COMMUNITY CARE COMPANY UK LTD,SP0000576
WANDSWORTH COUNCIL,ASC,SOCIAL SERVICES,CUSTOMER & CLIENT RECPTS - EXT,Revenue,CL CONT EXTERNAL RESIDENTIAL,130280720,29/04/16,935561,(429.21),THE COMMUNITY CARE COMPANY UK LTD,SP0000576
WANDSWORTH COUNCIL,ASC,SOCIAL SERVICES,CUSTOMER & CLIENT RECPTS - EXT,Revenue,CL CONT EXTERNAL RESIDENTIAL,130280720,29/04/16,935562,(356.22),THE COMMUNITY CARE COMPANY UK LTD,SP0000576
WANDSWORTH COUNCIL,ASC,SOCIAL SERVICES,CUSTOMER & CLIENT RECPTS - EXT,Revenue,CL CONT EXTERNAL RESIDENTIAL,130280720,29/04/16,935563,(361.71),THE COMMUNITY CARE COMPANY UK LTD,SP0000576
WANDSWORTH COUNCIL,ASC,SOCIAL SERVICES,CUSTOMER & CLIENT RECPTS - EXT,Revenue,CL CONT EXTERNAL RESIDENTIAL,130280720,29/04/16,935564,(356.22),THE COMMUNITY CARE COMPANY UK LTD,SP0000576
WANDSWORTH COUNCIL,ASC,SOCIAL SERVICES,CUSTOMER & CLIENT RECPTS - EXT,Revenue,CL CONT EXTERNAL RESIDENTIAL,130280720,13/04/16,919113,(505.20),THE HOME FARM TRUST LTD,SP0001048
WANDSWORTH COUNCIL,ASC,SOCIAL SERVICES,CUSTOMER & CLIENT RECPTS - EXT,Revenue,CL CONT EXTERNAL RESIDENTIAL,130280720,18/04/16,924522,(321.80),THE LEO TRUST,SP0000908
WANDSWORTH COUNCIL,ASC,SOCIAL SERVICES,CUSTOMER & CLIENT RECPTS - EXT,Revenue,CL CONT EXTERNAL RESIDENTIAL,130280720,25/04/16,931097,(366.40),THE WELL HOUSE,SP0000448
WANDSWORTH COUNCIL,ASC,SOCIAL SERVICES,CUSTOMER & CLIENT RECPTS - EXT,Revenue,CL CONT EXTERNAL RESIDENTIAL,130280720,25/04/16,931098,(328.09),THE WELL HOUSE,SP0000448
WANDSWORTH COUNCIL,ASC,SOCIAL SERVICES,CUSTOMER & CLIENT RECPTS - EXT,Revenue,CL CONT EXTERNAL RESIDENTIAL,130280720,18/04/16,924519,(136.72),THE WEST OF ENGLAND SCHOOL & COLLEGE,SP0001486
WANDSWORTH COUNCIL,ASC,SOCIAL SERVICES,CUSTOMER & CLIENT RECPTS - EXT,Revenue,CL CONT EXTERNAL RESIDENTIAL,130280720,18/04/16,924520,(201.97),THE WEST OF ENGLAND SCHOOL & COLLEGE,SP0001486
WANDSWORTH COUNCIL,ASC,SOCIAL SERVICES,CUSTOMER & CLIENT RECPTS - EXT,Revenue,CL CONT EXTERNAL RESIDENTIAL,130280720,25/04/16,931114,(366.40),TOTTERDOWN,SP0001113
WANDSWORTH COUNCIL,ASC,SOCIAL SERVICES,CUSTOMER & CLIENT RECPTS - EXT,Revenue,CL CONT EXTERNAL RESIDENTIAL,130280720,28/04/16,934227,(348.60),TOTTERDOWN,SP0001113
WANDSWORTH COUNCIL,ASC,SOCIAL SERVICES,CUSTOMER & CLIENT RECPTS - EXT,Revenue,CL CONT EXTERNAL RESIDENTIAL,130280720,26/04/16,932160,(392.57),TRACS,SP0000914
WANDSWORTH COUNCIL,ASC,SOCIAL SERVICES,CUSTOMER & CLIENT RECPTS - EXT,Revenue,CL CONT EXTERNAL RESIDENTIAL,130280720,21/04/16,927630,(396.00),TRELOAR SCHOOL,SP0000200
WANDSWORTH COUNCIL,ASC,SOCIAL SERVICES,CUSTOMER & CLIENT RECPTS - EXT,Revenue,CL CONT EXTERNAL RESIDENTIAL,130280720,18/04/16,924557,(400.60),UNITED RESPONSE,SP0000797
WANDSWORTH COUNCIL,ASC,SOCIAL SERVICES,CUSTOMER & CLIENT RECPTS - EXT,Revenue,CL CONT EXTERNAL RESIDENTIAL,130280720,21/04/16,927619,(400.60),UNITED RESPONSE,SP0000797
WANDSWORTH COUNCIL,ASC,SOCIAL SERVICES,CUSTOMER & CLIENT RECPTS - EXT,Revenue,CL CONT EXTERNAL RESIDENTIAL,130280720,21/04/16,927620,(400.60),UNITED RESPONSE,SP0000797
WANDSWORTH COUNCIL,ASC,SOCIAL SERVICES,CUSTOMER & CLIENT RECPTS - EXT,Revenue,CL CONT EXTERNAL RESIDENTIAL,130280720,21/04/16,927621,(400.60),UNITED RESPONSE,SP0000797
WANDSWORTH COUNCIL,ASC,SOCIAL SERVICES,CUSTOMER & CLIENT RECPTS - EXT,Revenue,CL CONT EXTERNAL RESIDENTIAL,130280720,13/04/16,919063,(570.76),VOYAGE CARE LTD,SP0000366
WANDSWORTH COUNCIL,ASC,SOCIAL SERVICES,CUSTOMER & CLIENT RECPTS - EXT,Revenue,CL CONT EXTERNAL RESIDENTIAL,130280720,13/04/16,919066,(400.60),VOYAGE CARE LTD,SP0000366
WANDSWORTH COUNCIL,ASC,SOCIAL SERVICES,CUSTOMER & CLIENT RECPTS - EXT,Revenue,CL CONT EXTERNAL RESIDENTIAL,130280720,13/04/16,919068,(356.28),VOYAGE CARE LTD,SP0000366
WANDSWORTH COUNCIL,ASC,SOCIAL SERVICES,CUSTOMER & CLIENT RECPTS - EXT,Revenue,CL CONT EXTERNAL RESIDENTIAL,130280720,13/04/16,919071,(343.80),VOYAGE CARE LTD,SP0000366
WANDSWORTH COUNCIL,ASC,SOCIAL SERVICES,CUSTOMER & CLIENT RECPTS - EXT,Revenue,CL CONT EXTERNAL RESIDENTIAL,130280720,13/04/16,919072,(348.60),VOYAGE CARE LTD,SP0000366
WANDSWORTH COUNCIL,ASC,SOCIAL SERVICES,CUSTOMER & CLIENT RECPTS - EXT,Revenue,CL CONT EXTERNAL RESIDENTIAL,130280720,18/04/16,924556,(344.79),WESSEX AUTISTIC SOCIETY,SP0000805
WANDSWORTH COUNCIL,ASC,SOCIAL SERVICES,CUSTOMER & CLIENT RECPTS - EXT,Revenue,CLIENT CONTS - DIRECT PAYMENTS,130280790,25/04/16,930423,(151.08),EPAYROLLUK LTD,SP0009092
WANDSWORTH COUNCIL,ASC,SOCIAL SERVICES,CUSTOMER & CLIENT RECPTS - EXT,Revenue,CLIENT CONTS - DIRECT PAYMENTS,130280790,25/04/16,930465,(38.80),HESTIA HOUSING & SUPPORT,SP0000258
WANDSWORTH COUNCIL,ASC,SOCIAL SERVICES,CUSTOMER & CLIENT RECPTS - EXT,Revenue,CLIENT CONTS EXTERNAL NURSING,130280820,22/04/16,929338,"(1,194.64)",BUPA CARE SERVICES BACS RECEIPTS,SP0000644
WANDSWORTH COUNCIL,ASC,SOCIAL SERVICES,CUSTOMER & CLIENT RECPTS - EXT,Revenue,CLIENT CONTS EXTERNAL NURSING,130280820,22/04/16,929362,(518.40),BUPA CARE SERVICES BACS RECEIPTS,SP0000644
WANDSWORTH COUNCIL,ASC,SOCIAL SERVICES,CUSTOMER & CLIENT RECPTS - EXT,Revenue,CLIENT CONTS EXTERNAL NURSING,130280820,12/04/16,917644,(343.81),HIGH HURLANDS HOMES,SP0000668
WANDSWORTH COUNCIL,ASC,SOCIAL SERVICES,CUSTOMER & CLIENT RECPTS - EXT,Revenue,CLIENT CONTS EXTERNAL NURSING,130280820,29/04/16,935574,(605.23),ROSEDENE NURSING HOME,SP0000316
WANDSWORTH COUNCIL,ASC,SOCIAL SERVICES,CUSTOMER & CLIENT RECPTS - EXT,Revenue,CLIENT CONTS EXTERNAL NURSING,130280820,13/04/16,919061,(364.60),VOYAGE CARE LTD,SP0000366
WANDSWORTH COUNCIL,ASC,SOCIAL SERVICES,CUSTOMER & CLIENT RECPTS - EXT,Revenue,CLIENT CONTS EXTERNAL NURSING,130280820,13/04/16,919067,(400.60),VOYAGE CARE LTD,SP0000366
WANDSWORTH COUNCIL,ASC,SOCIAL SERVICES,CUSTOMER & CLIENT RECPTS - EXT,Revenue,CLIENT CONTS EXTERNAL NURSING,130280820,19/04/16,926294,(213.23),YEW TREE NURSING HOME,SP0000454
WANDSWORTH COUNCIL,ASC,SOCIAL SERVICES,CUSTOMER & CLIENT RECPTS - EXT,Revenue,RNCC,130284120,22/04/16,929338,(448.00),BUPA CARE SERVICES BACS RECEIPTS,SP0000644
WANDSWORTH COUNCIL,ASC,SOCIAL SERVICES,CUSTOMER & CLIENT RECPTS - EXT,Revenue,RNCC,130284120,22/04/16,929362,(448.00),BUPA CARE SERVICES BACS RECEIPTS,SP0000644
WANDSWORTH COUNCIL,ASC,SOCIAL SERVICES,CUSTOMER & CLIENT RECPTS - EXT,Revenue,RNCC,130284120,12/04/16,917644,(616.56),HIGH HURLANDS HOMES,SP0000668
WANDSWORTH COUNCIL,ASC,SOCIAL SERVICES,CUSTOMER & CLIENT RECPTS - EXT,Revenue,RNCC,130284120,29/04/16,935574,(480.00),ROSEDENE NURSING HOME,SP0000316
WANDSWORTH COUNCIL,ASC,SOCIAL SERVICES,CUSTOMER & CLIENT RECPTS - EXT,Revenue,RNCC,130284120,13/04/16,919061,(448.00),VOYAGE CARE LTD,SP0000366
WANDSWORTH COUNCIL,ASC,SOCIAL SERVICES,CUSTOMER & CLIENT RECPTS - EXT,Revenue,RNCC,130284120,13/04/16,919067,(448.00),VOYAGE CARE LTD,SP0000366
WANDSWORTH COUNCIL,ASC,SOCIAL SERVICES,CUSTOMER & CLIENT RECPTS - EXT,Revenue,RNCC,130284120,19/04/16,926294,(256.00),YEW TREE NURSING HOME,SP0000454
WANDSWORTH COUNCIL,ASC,SOCIAL SERVICES,OTHER AGENCIES,Revenue,EXTERNAL OUTREACH,140543330,18/04/16,925071,919.44,ACTION ON HEARING LOSS,SP0001359
WANDSWORTH COUNCIL,ASC,SOCIAL SERVICES,OTHER AGENCIES,Revenue,EXTERNAL OUTREACH,140543330,21/04/16,927830,684.45,ACTION ON HEARING LOSS,SP0001359
WANDSWORTH COUNCIL,ASC,SOCIAL SERVICES,PRIVATE,Revenue,EXTERNAL RESIDENTIAL CARE,140545330,13/04/16,919112,"3,984.80",ACTION ON HEARING LOSS,SP0001359
WANDSWORTH COUNCIL,ASC,SOCIAL SERVICES,PRIVATE,Revenue,EXTERNAL RESIDENTIAL CARE,140545330,13/04/16,919122,"3,398.72",ACTION ON HEARING LOSS,SP0001359
WANDSWORTH COUNCIL,ASC,SOCIAL SERVICES,PRIVATE,Revenue,EXTERNAL RESIDENTIAL CARE,140545330,18/04/16,924581,"3,984.80",ACTION ON HEARING LOSS,SP0001359
WANDSWORTH COUNCIL,ASC,SOCIAL SERVICES,PRIVATE,Revenue,EXTERNAL RESIDENTIAL CARE,140545330,18/04/16,924583,"3,480.00",ACTION ON HEARING LOSS,SP0001359
WANDSWORTH COUNCIL,ASC,SOCIAL SERVICES,PRIVATE,Revenue,EXTERNAL RESIDENTIAL CARE,140545330,18/04/16,924590,"3,398.72",ACTION ON HEARING LOSS,SP0001359
WANDSWORTH COUNCIL,ASC,SOCIAL SERVICES,PRIVATE,Revenue,EXTERNAL RESIDENTIAL CARE,140545330,18/04/16,924592,"3,679.96",ACTION ON HEARING LOSS,SP0001359
WANDSWORTH COUNCIL,ASC,SOCIAL SERVICES,PRIVATE,Revenue,EXTERNAL RESIDENTIAL CARE,140545330,18/04/16,924593,"2,748.00",ACTION ON HEARING LOSS,SP0001359
WANDSWORTH COUNCIL,ASC,SOCIAL SERVICES,PRIVATE,Revenue,EXTERNAL RESIDENTIAL CARE,140545330,18/04/16,924594,"2,748.00",ACTION ON HEARING LOSS,SP0001359
WANDSWORTH COUNCIL,ASC,SOCIAL SERVICES,PRIVATE,Revenue,EXTERNAL RESIDENTIAL CARE,140545330,18/04/16,924595,"2,748.00",ACTION ON HEARING LOSS,SP0001359
WANDSWORTH COUNCIL,ASC,SOCIAL SERVICES,PRIVATE,Revenue,EXTERNAL RESIDENTIAL CARE,140545330,18/04/16,924596,"2,748.00",ACTION ON HEARING LOSS,SP0001359
WANDSWORTH COUNCIL,ASC,SOCIAL SERVICES,PRIVATE,Revenue,EXTERNAL RESIDENTIAL CARE,140545330,18/04/16,924597,"2,748.00",ACTION ON HEARING LOSS,SP0001359
WANDSWORTH COUNCIL,ASC,SOCIAL SERVICES,PRIVATE,Revenue,EXTERNAL RESIDENTIAL CARE,140545330,18/04/16,924598,"2,748.00",ACTION ON HEARING LOSS,SP0001359
WANDSWORTH COUNCIL,ASC,SOCIAL SERVICES,PRIVATE,Revenue,EXTERNAL RESIDENTIAL CARE,140545330,18/04/16,924599,"2,748.00",ACTION ON HEARING LOSS,SP0001359
WANDSWORTH COUNCIL,ASC,SOCIAL SERVICES,PRIVATE,Revenue,EXTERNAL RESIDENTIAL CARE,140545330,18/04/16,924600,"2,748.00",ACTION ON HEARING LOSS,SP0001359
WANDSWORTH COUNCIL,ASC,SOCIAL SERVICES,PRIVATE,Revenue,EXTERNAL RESIDENTIAL CARE,140545330,18/04/16,924601,"2,748.00",ACTION ON HEARING LOSS,SP0001359
WANDSWORTH COUNCIL,ASC,SOCIAL SERVICES,PRIVATE,Revenue,EXTERNAL RESIDENTIAL CARE,140545330,18/04/16,924602,"2,748.00",ACTION ON HEARING LOSS,SP0001359
WANDSWORTH COUNCIL,ASC,SOCIAL SERVICES,PRIVATE,Revenue,EXTERNAL RESIDENTIAL CARE,140545330,18/04/16,924603,"2,748.00",ACTION ON HEARING LOSS,SP0001359
WANDSWORTH COUNCIL,ASC,SOCIAL SERVICES,PRIVATE,Revenue,EXTERNAL RESIDENTIAL CARE,140545330,18/04/16,924604,"2,748.00",ACTION ON HEARING LOSS,SP0001359
WANDSWORTH COUNCIL,ASC,SOCIAL SERVICES,PRIVATE,Revenue,EXTERNAL RESIDENTIAL CARE,140545330,18/04/16,924605,"2,748.00",ACTION ON HEARING LOSS,SP0001359
WANDSWORTH COUNCIL,ASC,SOCIAL SERVICES,PRIVATE,Revenue,EXTERNAL RESIDENTIAL CARE,140545330,18/04/16,924606,"2,748.00",ACTION ON HEARING LOSS,SP0001359
WANDSWORTH COUNCIL,ASC,SOCIAL SERVICES,PRIVATE,Revenue,EXTERNAL RESIDENTIAL CARE,140545330,21/04/16,927631,"2,748.00",ACTION ON HEARING LOSS,SP0001359
WANDSWORTH COUNCIL,ASC,SOCIAL SERVICES,PRIVATE,Revenue,EXTERNAL RESIDENTIAL CARE,140545330,26/04/16,932156,"10,511.04",BUTTERFLYS CARE HOMES LTD,SP0008006
WANDSWORTH COUNCIL,ASC,SOCIAL SERVICES,PRIVATE,Revenue,EXTERNAL RESIDENTIAL CARE,140545330,18/04/16,924554,"6,814.76",SIGNHEALTH,SP0000496
WANDSWORTH COUNCIL,ASC,SOCIAL SERVICES,PRIVATE,Revenue,EXTERNAL RESIDENTIAL CARE,140545330,18/04/16,924555,"5,758.80",SIGNHEALTH,SP0000496
WANDSWORTH COUNCIL,ASC,SOCIAL SERVICES,PRIVATE,Revenue,EXTERNAL RESIDENTIAL CARE,140545330,25/04/16,931067,"5,843.57",SIGNHEALTH,SP0000496
WANDSWORTH COUNCIL,ASC,SOCIAL SERVICES,CUSTOMER & CLIENT RECPTS - EXT,Revenue,CL CONT EXTERNAL RESIDENTIAL,140580720,13/04/16,919112,(321.80),ACTION ON HEARING LOSS,SP0001359
WANDSWORTH COUNCIL,ASC,SOCIAL SERVICES,CUSTOMER & CLIENT RECPTS - EXT,Revenue,CL CONT EXTERNAL RESIDENTIAL,140580720,18/04/16,924581,(321.80),ACTION ON HEARING LOSS,SP0001359
WANDSWORTH COUNCIL,ASC,SOCIAL SERVICES,CUSTOMER & CLIENT RECPTS - EXT,Revenue,CL CONT EXTERNAL RESIDENTIAL,140580720,18/04/16,924583,(441.20),ACTION ON HEARING LOSS,SP0001359
WANDSWORTH COUNCIL,ASC,SOCIAL SERVICES,"EQUIPMENT, FURNITURE & MATS",Revenue,PURCHASE OF HOUSEHOLD EQUIP,142030360,19/04/16,926312,690.00,B PORTER,SP0009638
WANDSWORTH COUNCIL,ASC,SOCIAL SERVICES,OTHER AGENCIES,Revenue,EXTERNAL OUTREACH,142043330,18/04/16,925070,940.56,ACTION ON HEARING LOSS,SP0001359
WANDSWORTH COUNCIL,ASC,SOCIAL SERVICES,OTHER AGENCIES,Revenue,EXTERNAL OUTREACH,142043330,18/04/16,925071,0.16,ACTION ON HEARING LOSS,SP0001359
WANDSWORTH COUNCIL,ASC,SOCIAL SERVICES,OTHER AGENCIES,Revenue,EXTERNAL OUTREACH,142043330,14/04/16,921861,639.16,ROYAL ASSOCIATION FOR DEAF PEOPLE,SP0001251
WANDSWORTH COUNCIL,ASC,SOCIAL SERVICES,OTHER AGENCIES,Revenue,EXTERNAL OUTREACH,142043330,18/04/16,925029,617.12,ROYAL ASSOCIATION FOR DEAF PEOPLE,SP0001251
WANDSWORTH COUNCIL,ASC,SOCIAL SERVICES,PRIVATE,Revenue,EXTERNAL DAYCARE,142045290,28/04/16,934353,630.00,FAMILY ACTION,SP0002022
WANDSWORTH COUNCIL,ASC,SOCIAL SERVICES,PRIVATE,Revenue,EXTERNAL DAYCARE,142045290,28/04/16,934354,990.00,FAMILY ACTION,SP0002022
WANDSWORTH COUNCIL,ASC,SOCIAL SERVICES,PRIVATE,Revenue,EXTERNAL DAYCARE,142045290,21/04/16,927813,"1,200.00",MOSAIC CLUBHOUSE,SP0008847
WANDSWORTH COUNCIL,ASC,SOCIAL SERVICES,PRIVATE,Revenue,EXTERNAL DAYCARE,142045290,21/04/16,927798,512.28,NAS SERVICES LIMITED,SP0000217
WANDSWORTH COUNCIL,ASC,SOCIAL SERVICES,PRIVATE,Revenue,EXTERNAL DAYCARE,142045290,25/04/16,931412,713.16,SHARE COMMUNITY,SP0000329
WANDSWORTH COUNCIL,ASC,SOCIAL SERVICES,PRIVATE,Revenue,EXTERNAL DAYCARE,142045290,26/04/16,932285,684.00,WANDSWORTH BENGALI WELFARE ASSOCIATION,SP0000479
WANDSWORTH COUNCIL,ASC,SOCIAL SERVICES,PRIVATE,Revenue,EXTERNAL DAYCARE,142045290,18/04/16,924803,770.00,WESTMINSTER MIND,SP0005471
WANDSWORTH COUNCIL,ASC,SOCIAL SERVICES,PRIVATE,Revenue,EXTERNAL HOMECARE,142045300,21/04/16,927831,420.00,AOCS PROPERTY MAINTENANCE LTD,SP0008169
WANDSWORTH COUNCIL,ASC,SOCIAL SERVICES,PRIVATE,Revenue,EXTERNAL HOMECARE,142045300,26/04/16,932262,768.75,CARE UK HOMECARE LTD,SP0000081
WANDSWORTH COUNCIL,ASC,SOCIAL SERVICES,PRIVATE,Revenue,EXTERNAL HOMECARE,142045300,18/04/16,924615,987.25,HOLISTIC COMMUNITY CARE LTD,SP0000032
WANDSWORTH COUNCIL,ASC,SOCIAL SERVICES,PRIVATE,Revenue,EXTERNAL HOMECARE,142045300,18/04/16,924646,615.40,HOLISTIC COMMUNITY CARE LTD,SP0000032
WANDSWORTH COUNCIL,ASC,SOCIAL SERVICES,PRIVATE,Revenue,EXTERNAL HOMECARE,142045300,21/04/16,927786,501.20,HOME INSTEAD SENIOR CARE LTD,SP0005355
WANDSWORTH COUNCIL,ASC,SOCIAL SERVICES,PRIVATE,Revenue,EXTERNAL HOMECARE,142045300,21/04/16,927787,644.40,HOME INSTEAD SENIOR CARE LTD,SP0005355
WANDSWORTH COUNCIL,ASC,SOCIAL SERVICES,PRIVATE,Revenue,EXTERNAL HOMECARE,142045300,25/04/16,931361,567.00,HOME INSTEAD SENIOR CARE LTD,SP0005355
WANDSWORTH COUNCIL,ASC,SOCIAL SERVICES,PRIVATE,Revenue,EXTERNAL HOMECARE,142045300,21/04/16,927793,518.68,MCCALLUM CARE LTD CAREMARK (WANDSWORTH),SP0006036
WANDSWORTH COUNCIL,ASC,SOCIAL SERVICES,PRIVATE,Revenue,EXTERNAL HOMECARE,142045300,25/04/16,931183,693.47,MUSHKIL AASAAN LTD,SP0000978
WANDSWORTH COUNCIL,ASC,SOCIAL SERVICES,PRIVATE,Revenue,EXTERNAL HOMECARE,142045300,29/04/16,935602,"1,075.42",PARKGATE NURSING AGENCY,SP0000607
WANDSWORTH COUNCIL,ASC,SOCIAL SERVICES,PRIVATE,Revenue,EXTERNAL HOMECARE,142045300,29/04/16,935604,"1,031.09",PARKGATE NURSING AGENCY,SP0000607
WANDSWORTH COUNCIL,ASC,SOCIAL SERVICES,PRIVATE,Revenue,EXTERNAL HOMECARE,142045300,29/04/16,935623,969.23,PARKGATE NURSING AGENCY,SP0000607
WANDSWORTH COUNCIL,ASC,SOCIAL SERVICES,PRIVATE,Revenue,EXTERNAL HOMECARE,142045300,25/04/16,931327,914.97,SOMA HEALTHCARE LTD,SP0001116
WANDSWORTH COUNCIL,ASC,SOCIAL SERVICES,PRIVATE,Revenue,EXTERNAL HOMECARE,142045300,12/04/16,917690,688.60,SUPREME CARE SERVICE LTD,SP0001600
WANDSWORTH COUNCIL,ASC,SOCIAL SERVICES,PRIVATE,Revenue,EXTERNAL HOMECARE,142045300,12/04/16,917693,618.46,SUPREME CARE SERVICE LTD,SP0001600
WANDSWORTH COUNCIL,ASC,SOCIAL SERVICES,PRIVATE,Revenue,EXTERNAL HOMECARE,142045300,21/04/16,927697,639.74,SUPREME CARE SERVICE LTD,SP0001600
WANDSWORTH COUNCIL,ASC,SOCIAL SERVICES,PRIVATE,Revenue,EXTERNAL HOMECARE,142045300,13/04/16,919194,623.40,WESTMINSTER HOMECARE LTD,SP0001548
WANDSWORTH COUNCIL,ASC,SOCIAL SERVICES,PRIVATE,Revenue,EXTERNAL HOMECARE,142045300,13/04/16,919199,"3,909.80",WESTMINSTER HOMECARE LTD,SP0001548
WANDSWORTH COUNCIL,ASC,SOCIAL SERVICES,PRIVATE,Revenue,EXTERNAL HOMECARE,142045300,29/04/16,935642,584.10,WESTMINSTER HOMECARE LTD,SP0001548
WANDSWORTH COUNCIL,ASC,SOCIAL SERVICES,PRIVATE,Revenue,EXTERNAL NURSING CARE,142045310,22/04/16,929261,"2,716.60",GEORGE POTTER CARE HOME LTD,SP0000276
WANDSWORTH COUNCIL,ASC,SOCIAL SERVICES,PRIVATE,Revenue,EXTERNAL NURSING CARE,142045310,18/04/16,924530,"3,476.88",HAVELOCK COURT NURSING HOME,SP0000024
WANDSWORTH COUNCIL,ASC,SOCIAL SERVICES,PRIVATE,Revenue,EXTERNAL NURSING CARE,142045310,18/04/16,924534,"3,476.88",HAVELOCK COURT NURSING HOME,SP0000024
WANDSWORTH COUNCIL,ASC,SOCIAL SERVICES,PRIVATE,Revenue,EXTERNAL NURSING CARE,142045310,25/04/16,931091,"3,476.88",HAVELOCK COURT NURSING HOME,SP0000024
WANDSWORTH COUNCIL,ASC,SOCIAL SERVICES,PRIVATE,Revenue,EXTERNAL NURSING CARE,142045310,28/04/16,934240,"3,062.61",LYNTON HALL NURSING HOME,SP0000023
WANDSWORTH COUNCIL,ASC,SOCIAL SERVICES,PRIVATE,Revenue,EXTERNAL NURSING CARE,142045310,22/04/16,929384,"3,041.51",NIGHTINGALE HOUSE,SP0000582
WANDSWORTH COUNCIL,ASC,SOCIAL SERVICES,PRIVATE,Revenue,EXTERNAL NURSING CARE,142045310,26/04/16,932165,868.13,ROSEDENE NURSING HOME,SP0000316
WANDSWORTH COUNCIL,ASC,SOCIAL SERVICES,PRIVATE,Revenue,EXTERNAL NURSING CARE,142045310,26/04/16,932166,"3,728.57",ROSEDENE NURSING HOME,SP0000316
WANDSWORTH COUNCIL,ASC,SOCIAL SERVICES,PRIVATE,Revenue,EXTERNAL NURSING CARE,142045310,26/04/16,932167,"3,985.71",ROSEDENE NURSING HOME,SP0000316
WANDSWORTH COUNCIL,ASC,SOCIAL SERVICES,PRIVATE,Revenue,EXTERNAL NURSING CARE,142045310,29/04/16,935551,"3,557.14",ROSEDENE NURSING HOME,SP0000316
WANDSWORTH COUNCIL,ASC,SOCIAL SERVICES,PRIVATE,Revenue,EXTERNAL NURSING CARE,142045310,29/04/16,935553,"3,814.29",ROSEDENE NURSING HOME,SP0000316
WANDSWORTH COUNCIL,ASC,SOCIAL SERVICES,PRIVATE,Revenue,EXTERNAL NURSING CARE,142045310,29/04/16,935565,"3,557.14",ROSEDENE NURSING HOME,SP0000316
WANDSWORTH COUNCIL,ASC,SOCIAL SERVICES,PRIVATE,Revenue,EXTERNAL NURSING CARE,142045310,29/04/16,935570,"3,557.14",ROSEDENE NURSING HOME,SP0000316
WANDSWORTH COUNCIL,ASC,SOCIAL SERVICES,PRIVATE,Revenue,EXTERNAL NURSING CARE,142045310,29/04/16,935571,"3,550.86",ROSEDENE NURSING HOME,SP0000316
WANDSWORTH COUNCIL,ASC,SOCIAL SERVICES,PRIVATE,Revenue,EXTERNAL NURSING CARE,142045310,29/04/16,935575,"3,557.14",ROSEDENE NURSING HOME,SP0000316
WANDSWORTH COUNCIL,ASC,SOCIAL SERVICES,PRIVATE,Revenue,EXTERNAL NURSING CARE,142045310,29/04/16,935578,"3,679.29",ROSEDENE NURSING HOME,SP0000316
WANDSWORTH COUNCIL,ASC,SOCIAL SERVICES,PRIVATE,Revenue,EXTERNAL NURSING CARE,142045310,29/04/16,935581,"3,642.86",ROSEDENE NURSING HOME,SP0000316
WANDSWORTH COUNCIL,ASC,SOCIAL SERVICES,PRIVATE,Revenue,EXTERNAL NURSING CARE,142045310,22/04/16,929288,"4,217.98",TRINITY COURT NURSING HOME,SP0001001
WANDSWORTH COUNCIL,ASC,SOCIAL SERVICES,PRIVATE,Revenue,EXTERNAL NURSING CARE,142045310,22/04/16,929298,"3,400.76",TRINITY COURT NURSING HOME,SP0001001
WANDSWORTH COUNCIL,ASC,SOCIAL SERVICES,PRIVATE,Revenue,EXTERNAL NURSING CARE,142045310,22/04/16,929299,"2,914.37",TRINITY COURT NURSING HOME,SP0001001
WANDSWORTH COUNCIL,ASC,SOCIAL SERVICES,PRIVATE,Revenue,EXTERNAL NURSING CARE,142045310,22/04/16,929301,"3,233.89",TRINITY COURT NURSING HOME,SP0001001
WANDSWORTH COUNCIL,ASC,SOCIAL SERVICES,PRIVATE,Revenue,EXTERNAL NURSING CARE,142045310,22/04/16,929302,"2,964.28",TRINITY COURT NURSING HOME,SP0001001
WANDSWORTH COUNCIL,ASC,SOCIAL SERVICES,PRIVATE,Revenue,EXTERNAL NURSING CARE,142045310,22/04/16,929303,"2,967.95",TRINITY COURT NURSING HOME,SP0001001
WANDSWORTH COUNCIL,ASC,SOCIAL SERVICES,PRIVATE,Revenue,EXTERNAL NURSING CARE,142045310,22/04/16,929305,"2,948.84",TRINITY COURT NURSING HOME,SP0001001
WANDSWORTH COUNCIL,ASC,SOCIAL SERVICES,PRIVATE,Revenue,EXTERNAL NURSING CARE,142045310,22/04/16,929306,"2,872.72",TRINITY COURT NURSING HOME,SP0001001
WANDSWORTH COUNCIL,ASC,SOCIAL SERVICES,PRIVATE,Revenue,EXTERNAL RESIDENTIAL CARE,142045330,26/04/16,932118,560.48,A.K PROPERTIES,SP0010791
WANDSWORTH COUNCIL,ASC,SOCIAL SERVICES,PRIVATE,Revenue,EXTERNAL RESIDENTIAL CARE,142045330,26/04/16,932119,560.48,A.K PROPERTIES,SP0010791
WANDSWORTH COUNCIL,ASC,SOCIAL SERVICES,PRIVATE,Revenue,EXTERNAL RESIDENTIAL CARE,142045330,26/04/16,932120,524.32,A.K PROPERTIES,SP0010791
WANDSWORTH COUNCIL,ASC,SOCIAL SERVICES,PRIVATE,Revenue,EXTERNAL RESIDENTIAL CARE,142045330,26/04/16,932121,560.48,A.K PROPERTIES,SP0010791
WANDSWORTH COUNCIL,ASC,SOCIAL SERVICES,PRIVATE,Revenue,EXTERNAL RESIDENTIAL CARE,142045330,28/04/16,934283,"3,000.00",ABBEY HOUSE,SP0001434
WANDSWORTH COUNCIL,ASC,SOCIAL SERVICES,PRIVATE,Revenue,EXTERNAL RESIDENTIAL CARE,142045330,28/04/16,934285,"2,440.00",ABBEY HOUSE,SP0001434
WANDSWORTH COUNCIL,ASC,SOCIAL SERVICES,PRIVATE,Revenue,EXTERNAL RESIDENTIAL CARE,142045330,28/04/16,934286,"3,200.00",ABBEY HOUSE,SP0001434
WANDSWORTH COUNCIL,ASC,SOCIAL SERVICES,PRIVATE,Revenue,EXTERNAL RESIDENTIAL CARE,142045330,13/04/16,919111,"3,984.80",ACTION ON HEARING LOSS,SP0001359
WANDSWORTH COUNCIL,ASC,SOCIAL SERVICES,PRIVATE,Revenue,EXTERNAL RESIDENTIAL CARE,142045330,18/04/16,924580,"3,984.80",ACTION ON HEARING LOSS,SP0001359
WANDSWORTH COUNCIL,ASC,SOCIAL SERVICES,PRIVATE,Revenue,EXTERNAL RESIDENTIAL CARE,142045330,18/04/16,924584,"3,480.00",ACTION ON HEARING LOSS,SP0001359
WANDSWORTH COUNCIL,ASC,SOCIAL SERVICES,PRIVATE,Revenue,EXTERNAL RESIDENTIAL CARE,142045330,18/04/16,924585,"3,480.00",ACTION ON HEARING LOSS,SP0001359
WANDSWORTH COUNCIL,ASC,SOCIAL SERVICES,PRIVATE,Revenue,EXTERNAL RESIDENTIAL CARE,142045330,18/04/16,924586,"3,480.00",ACTION ON HEARING LOSS,SP0001359
WANDSWORTH COUNCIL,ASC,SOCIAL SERVICES,PRIVATE,Revenue,EXTERNAL RESIDENTIAL CARE,142045330,18/04/16,924587,"3,480.00",ACTION ON HEARING LOSS,SP0001359
WANDSWORTH COUNCIL,ASC,SOCIAL SERVICES,PRIVATE,Revenue,EXTERNAL RESIDENTIAL CARE,142045330,18/04/16,924588,"3,480.00",ACTION ON HEARING LOSS,SP0001359
WANDSWORTH COUNCIL,ASC,SOCIAL SERVICES,PRIVATE,Revenue,EXTERNAL RESIDENTIAL CARE,142045330,18/04/16,924589,"3,480.00",ACTION ON HEARING LOSS,SP0001359
WANDSWORTH COUNCIL,ASC,SOCIAL SERVICES,PRIVATE,Revenue,EXTERNAL RESIDENTIAL CARE,142045330,18/04/16,924591,"3,480.00",ACTION ON HEARING LOSS,SP0001359
WANDSWORTH COUNCIL,ASC,SOCIAL SERVICES,PRIVATE,Revenue,EXTERNAL RESIDENTIAL CARE,142045330,21/04/16,927649,"3,267.67",ACTION ON HEARING LOSS,SP0001359
WANDSWORTH COUNCIL,ASC,SOCIAL SERVICES,PRIVATE,Revenue,EXTERNAL RESIDENTIAL CARE,142045330,26/04/16,932153,"3,342.60",ASSURANCE CARE SERVICES LTD,SP0006652
WANDSWORTH COUNCIL,ASC,SOCIAL SERVICES,PRIVATE,Revenue,EXTERNAL RESIDENTIAL CARE,142045330,26/04/16,932154,"3,557.10",ASSURANCE CARE SERVICES LTD,SP0006652
WANDSWORTH COUNCIL,ASC,SOCIAL SERVICES,PRIVATE,Revenue,EXTERNAL RESIDENTIAL CARE,142045330,26/04/16,932155,"2,931.30",ASSURANCE CARE SERVICES LTD,SP0006652
WANDSWORTH COUNCIL,ASC,SOCIAL SERVICES,PRIVATE,Revenue,EXTERNAL RESIDENTIAL CARE,142045330,28/04/16,934254,"2,705.36",ASTRA HOMES LTD,SP0000374
WANDSWORTH COUNCIL,ASC,SOCIAL SERVICES,PRIVATE,Revenue,EXTERNAL RESIDENTIAL CARE,142045330,28/04/16,934255,"1,327.08",ASTRA HOMES LTD,SP0000374
WANDSWORTH COUNCIL,ASC,SOCIAL SERVICES,PRIVATE,Revenue,EXTERNAL RESIDENTIAL CARE,142045330,26/04/16,932157,"10,511.04",BUTTERFLYS CARE HOMES LTD,SP0008006
WANDSWORTH COUNCIL,ASC,SOCIAL SERVICES,PRIVATE,Revenue,EXTERNAL RESIDENTIAL CARE,142045330,13/04/16,919056,"3,040.00",C & K HEALTHCARE LTD T/A COLLEGE HILL RH,SP0010610
WANDSWORTH COUNCIL,ASC,SOCIAL SERVICES,PRIVATE,Revenue,EXTERNAL RESIDENTIAL CARE,142045330,13/04/16,919090,"7,840.44",CMG HOMES LTD,SP0000075
WANDSWORTH COUNCIL,ASC,SOCIAL SERVICES,PRIVATE,Revenue,EXTERNAL RESIDENTIAL CARE,142045330,21/04/16,927645,"1,720.00",COMMUNITY HOUSING & THERAPY,SP0001366
WANDSWORTH COUNCIL,ASC,SOCIAL SERVICES,PRIVATE,Revenue,EXTERNAL RESIDENTIAL CARE,142045330,21/04/16,927646,"3,440.00",COMMUNITY HOUSING & THERAPY,SP0001366
WANDSWORTH COUNCIL,ASC,SOCIAL SERVICES,PRIVATE,Revenue,EXTERNAL RESIDENTIAL CARE,142045330,21/04/16,927647,"2,600.00",COMMUNITY HOUSING & THERAPY,SP0001366
WANDSWORTH COUNCIL,ASC,SOCIAL SERVICES,PRIVATE,Revenue,EXTERNAL RESIDENTIAL CARE,142045330,22/04/16,929397,"2,596.76",COUNTRY COURT CARE,SP0009215
WANDSWORTH COUNCIL,ASC,SOCIAL SERVICES,PRIVATE,Revenue,EXTERNAL RESIDENTIAL CARE,142045330,14/04/16,921773,"6,758.57",CROWNWISE LTD,SP0001202
WANDSWORTH COUNCIL,ASC,SOCIAL SERVICES,PRIVATE,Revenue,EXTERNAL RESIDENTIAL CARE,142045330,14/04/16,921774,"2,361.43",CROWNWISE LTD,SP0001202
WANDSWORTH COUNCIL,ASC,SOCIAL SERVICES,PRIVATE,Revenue,EXTERNAL RESIDENTIAL CARE,142045330,14/04/16,921775,"2,524.29",CROWNWISE LTD,SP0001202
WANDSWORTH COUNCIL,ASC,SOCIAL SERVICES,PRIVATE,Revenue,EXTERNAL RESIDENTIAL CARE,142045330,28/04/16,934256,"2,442.86",CROWNWISE LTD,SP0001202
WANDSWORTH COUNCIL,ASC,SOCIAL SERVICES,PRIVATE,Revenue,EXTERNAL RESIDENTIAL CARE,142045330,18/04/16,924563,"4,413.73",FIRST CARE LODGE,SP0009965
WANDSWORTH COUNCIL,ASC,SOCIAL SERVICES,PRIVATE,Revenue,EXTERNAL RESIDENTIAL CARE,142045330,21/04/16,927632,"2,210.74",JEWISH CARE,SP0001229
WANDSWORTH COUNCIL,ASC,SOCIAL SERVICES,PRIVATE,Revenue,EXTERNAL RESIDENTIAL CARE,142045330,22/04/16,929438,"2,514.90",JOYCARE HOME SERVICES LTD,SP0000339
WANDSWORTH COUNCIL,ASC,SOCIAL SERVICES,PRIVATE,Revenue,EXTERNAL RESIDENTIAL CARE,142045330,18/04/16,924525,"9,443.50",KIMBERLEY RD,SP0005694
WANDSWORTH COUNCIL,ASC,SOCIAL SERVICES,PRIVATE,Revenue,EXTERNAL RESIDENTIAL CARE,142045330,18/04/16,924576,"7,714.20",LANCASTER LODGE,SP0009668
WANDSWORTH COUNCIL,ASC,SOCIAL SERVICES,PRIVATE,Revenue,EXTERNAL RESIDENTIAL CARE,142045330,18/04/16,924577,"3,428.70",LANGLEY COURT REST HOME,SP0000580
WANDSWORTH COUNCIL,ASC,SOCIAL SERVICES,PRIVATE,Revenue,EXTERNAL RESIDENTIAL CARE,142045330,18/04/16,924558,"5,200.00",LONA LODGE,SP0001570
WANDSWORTH COUNCIL,ASC,SOCIAL SERVICES,PRIVATE,Revenue,EXTERNAL RESIDENTIAL CARE,142045330,18/04/16,924559,"5,200.00",LONA LODGE,SP0001570
WANDSWORTH COUNCIL,ASC,SOCIAL SERVICES,PRIVATE,Revenue,EXTERNAL RESIDENTIAL CARE,142045330,21/04/16,927614,"5,400.00",LONA LODGE,SP0001570
WANDSWORTH COUNCIL,ASC,SOCIAL SERVICES,PRIVATE,Revenue,EXTERNAL RESIDENTIAL CARE,142045330,21/04/16,927615,"2,357.14",MINSA CARE LTD,SP0008012
WANDSWORTH COUNCIL,ASC,SOCIAL SERVICES,PRIVATE,Revenue,EXTERNAL RESIDENTIAL CARE,142045330,18/04/16,924568,"2,485.72",ORCHID HOMES T/A LA ROSA 2,SP0010542
WANDSWORTH COUNCIL,ASC,SOCIAL SERVICES,PRIVATE,Revenue,EXTERNAL RESIDENTIAL CARE,142045330,18/04/16,924569,"2,657.14",ORCHID HOMES T/A LA ROSA 2,SP0010542
WANDSWORTH COUNCIL,ASC,SOCIAL SERVICES,PRIVATE,Revenue,EXTERNAL RESIDENTIAL CARE,142045330,26/04/16,932163,"3,438.57",ORCHID HOMES T/A LA ROSA 2,SP0010542
WANDSWORTH COUNCIL,ASC,SOCIAL SERVICES,PRIVATE,Revenue,EXTERNAL RESIDENTIAL CARE,142045330,26/04/16,932164,"2,900.00",ORCHID HOMES T/A LA ROSA 2,SP0010542
WANDSWORTH COUNCIL,ASC,SOCIAL SERVICES,PRIVATE,Revenue,EXTERNAL RESIDENTIAL CARE,142045330,28/04/16,934258,"3,675.71",ORCHID HOMES T/A LA ROSA 2,SP0010542
WANDSWORTH COUNCIL,ASC,SOCIAL SERVICES,PRIVATE,Revenue,EXTERNAL RESIDENTIAL CARE,142045330,28/04/16,934259,"3,557.14",ORCHID HOMES T/A LA ROSA 2,SP0010542
WANDSWORTH COUNCIL,ASC,SOCIAL SERVICES,PRIVATE,Revenue,EXTERNAL RESIDENTIAL CARE,142045330,28/04/16,934260,"3,100.00",ORCHID HOMES T/A LA ROSA 2,SP0010542
WANDSWORTH COUNCIL,ASC,SOCIAL SERVICES,PRIVATE,Revenue,EXTERNAL RESIDENTIAL CARE,142045330,28/04/16,934261,"3,000.00",ORCHID HOMES T/A LA ROSA 2,SP0010542
WANDSWORTH COUNCIL,ASC,SOCIAL SERVICES,PRIVATE,Revenue,EXTERNAL RESIDENTIAL CARE,142045330,28/04/16,934262,"2,091.07",ORCHID HOMES T/A LA ROSA 2,SP0010542
WANDSWORTH COUNCIL,ASC,SOCIAL SERVICES,PRIVATE,Revenue,EXTERNAL RESIDENTIAL CARE,142045330,28/04/16,934263,"2,245.97",ORCHID HOMES T/A LA ROSA 2,SP0010542
WANDSWORTH COUNCIL,ASC,SOCIAL SERVICES,PRIVATE,Revenue,EXTERNAL RESIDENTIAL CARE,142045330,28/04/16,934264,"2,400.86",ORCHID HOMES T/A LA ROSA 2,SP0010542
WANDSWORTH COUNCIL,ASC,SOCIAL SERVICES,PRIVATE,Revenue,EXTERNAL RESIDENTIAL CARE,142045330,28/04/16,934265,"2,323.41",ORCHID HOMES T/A LA ROSA 2,SP0010542
WANDSWORTH COUNCIL,ASC,SOCIAL SERVICES,PRIVATE,Revenue,EXTERNAL RESIDENTIAL CARE,142045330,28/04/16,934266,"2,813.57",ORCHID HOMES T/A LA ROSA 2,SP0010542
WANDSWORTH COUNCIL,ASC,SOCIAL SERVICES,PRIVATE,Revenue,EXTERNAL RESIDENTIAL CARE,142045330,28/04/16,934267,"2,571.43",ORCHID HOMES T/A LA ROSA 2,SP0010542
WANDSWORTH COUNCIL,ASC,SOCIAL SERVICES,PRIVATE,Revenue,EXTERNAL RESIDENTIAL CARE,142045330,18/04/16,924560,"2,955.51",PRIMROSE HOUSE RESIDENTIAL HOME,SP0008026
WANDSWORTH COUNCIL,ASC,SOCIAL SERVICES,PRIVATE,Revenue,EXTERNAL RESIDENTIAL CARE,142045330,25/04/16,931099,"2,504.80",QUANTUM CARE LTD,SP0001151
WANDSWORTH COUNCIL,ASC,SOCIAL SERVICES,PRIVATE,Revenue,EXTERNAL RESIDENTIAL CARE,142045330,26/04/16,932161,"1,968.78",REDACTED PERSONAL DATA,SP0001200
WANDSWORTH COUNCIL,ASC,SOCIAL SERVICES,PRIVATE,Revenue,EXTERNAL RESIDENTIAL CARE,142045330,26/04/16,932162,"2,035.80",REDACTED PERSONAL DATA,SP0001200
WANDSWORTH COUNCIL,ASC,SOCIAL SERVICES,PRIVATE,Revenue,EXTERNAL RESIDENTIAL CARE,142045330,29/04/16,935595,"3,030.00",REDACTED PERSONAL DATA,SP0000408
WANDSWORTH COUNCIL,ASC,SOCIAL SERVICES,PRIVATE,Revenue,EXTERNAL RESIDENTIAL CARE,142045330,29/04/16,935596,"1,968.78",REDACTED PERSONAL DATA,SP0001200
WANDSWORTH COUNCIL,ASC,SOCIAL SERVICES,PRIVATE,Revenue,EXTERNAL RESIDENTIAL CARE,142045330,22/04/16,929269,"2,434.36",RICHARD CUSDEN HOMES LTD,SP0000268
WANDSWORTH COUNCIL,ASC,SOCIAL SERVICES,PRIVATE,Revenue,EXTERNAL RESIDENTIAL CARE,142045330,28/04/16,934270,"3,363.21",ROSEMANOR HOPTON,SP0006162
WANDSWORTH COUNCIL,ASC,SOCIAL SERVICES,PRIVATE,Revenue,EXTERNAL RESIDENTIAL CARE,142045330,28/04/16,934271,"3,213.21",ROSEMANOR HOPTON,SP0006162
WANDSWORTH COUNCIL,ASC,SOCIAL SERVICES,PRIVATE,Revenue,EXTERNAL RESIDENTIAL CARE,142045330,28/04/16,934273,"5,785.71",ROSEMANOR HOPTON,SP0006162
WANDSWORTH COUNCIL,ASC,SOCIAL SERVICES,PRIVATE,Revenue,EXTERNAL RESIDENTIAL CARE,142045330,28/04/16,934269,"2,892.86",ROSENMANOR LTD,SP0001457
WANDSWORTH COUNCIL,ASC,SOCIAL SERVICES,PRIVATE,Revenue,EXTERNAL RESIDENTIAL CARE,142045330,21/04/16,927648,"5,712.86",SUMMIT LODGE,SP0010790
WANDSWORTH COUNCIL,ASC,SOCIAL SERVICES,PRIVATE,Revenue,EXTERNAL RESIDENTIAL CARE,142045330,18/04/16,924578,"2,340.00",THORNTON LODGE,SP0001197
WANDSWORTH COUNCIL,ASC,SOCIAL SERVICES,VOL ASS,Revenue,SUPPORTED HOUSING PROGRAMME,142048030,28/04/16,934252,"1,029.86",ASTRA HOMES LTD,SP0000374
WANDSWORTH COUNCIL,ASC,SOCIAL SERVICES,VOL ASS,Revenue,SUPPORTED HOUSING PROGRAMME,142048030,28/04/16,934394,543.14,ASTRA HOMES LTD,SP0000374
WANDSWORTH COUNCIL,ASC,SOCIAL SERVICES,VOL ASS,Revenue,SUPPORTED HOUSING PROGRAMME,142048030,14/04/16,921778,983.76,C M CARE LTD,SP0000455
WANDSWORTH COUNCIL,ASC,SOCIAL SERVICES,VOL ASS,Revenue,SUPPORTED HOUSING PROGRAMME,142048030,14/04/16,921779,473.20,C M CARE LTD,SP0000455
WANDSWORTH COUNCIL,ASC,SOCIAL SERVICES,VOL ASS,Revenue,SUPPORTED HOUSING PROGRAMME,142048030,14/04/16,921780,"1,516.56",C M CARE LTD,SP0000455
WANDSWORTH COUNCIL,ASC,SOCIAL SERVICES,VOL ASS,Revenue,SUPPORTED HOUSING PROGRAMME,142048030,14/04/16,921783,"1,516.56",C M CARE LTD,SP0000455
WANDSWORTH COUNCIL,ASC,SOCIAL SERVICES,VOL ASS,Revenue,SUPPORTED HOUSING PROGRAMME,142048030,14/04/16,921787,432.00,C M CARE LTD,SP0000455
WANDSWORTH COUNCIL,ASC,SOCIAL SERVICES,VOL ASS,Revenue,SUPPORTED HOUSING PROGRAMME,142048030,14/04/16,921788,"1,896.36",C M CARE LTD,SP0000455
WANDSWORTH COUNCIL,ASC,SOCIAL SERVICES,VOL ASS,Revenue,SUPPORTED HOUSING PROGRAMME,142048030,14/04/16,921790,"1,803.00",C M CARE LTD,SP0000455
WANDSWORTH COUNCIL,ASC,SOCIAL SERVICES,VOL ASS,Revenue,SUPPORTED HOUSING PROGRAMME,142048030,14/04/16,921792,"1,803.00",C M CARE LTD,SP0000455
WANDSWORTH COUNCIL,ASC,SOCIAL SERVICES,VOL ASS,Revenue,SUPPORTED HOUSING PROGRAMME,142048030,14/04/16,921793,"1,692.00",C M CARE LTD,SP0000455
WANDSWORTH COUNCIL,ASC,SOCIAL SERVICES,VOL ASS,Revenue,SUPPORTED HOUSING PROGRAMME,142048030,14/04/16,921794,"1,692.00",C M CARE LTD,SP0000455
WANDSWORTH COUNCIL,ASC,SOCIAL SERVICES,VOL ASS,Revenue,SUPPORTED HOUSING PROGRAMME,142048030,14/04/16,921796,"1,803.00",C M CARE LTD,SP0000455
WANDSWORTH COUNCIL,ASC,SOCIAL SERVICES,VOL ASS,Revenue,SUPPORTED HOUSING PROGRAMME,142048030,14/04/16,921797,"1,803.00",C M CARE LTD,SP0000455
WANDSWORTH COUNCIL,ASC,SOCIAL SERVICES,VOL ASS,Revenue,SUPPORTED HOUSING PROGRAMME,142048030,14/04/16,921798,"2,465.48",C M CARE LTD,SP0000455
WANDSWORTH COUNCIL,ASC,SOCIAL SERVICES,VOL ASS,Revenue,SUPPORTED HOUSING PROGRAMME,142048030,21/04/16,927834,"3,472.00",COMMUNITY HOUSING & THERAPY,SP0001366
WANDSWORTH COUNCIL,ASC,SOCIAL SERVICES,VOL ASS,Revenue,SUPPORTED HOUSING PROGRAMME,142048030,21/04/16,927835,"3,000.00",COMMUNITY HOUSING & THERAPY,SP0001366
WANDSWORTH COUNCIL,ASC,SOCIAL SERVICES,VOL ASS,Revenue,SUPPORTED HOUSING PROGRAMME,142048030,14/04/16,921771,"2,335.71",CROWNWISE LTD,SP0001202
WANDSWORTH COUNCIL,ASC,SOCIAL SERVICES,VOL ASS,Revenue,SUPPORTED HOUSING PROGRAMME,142048030,26/04/16,932141,"1,450.00",CROWNWISE LTD,SP0001202
WANDSWORTH COUNCIL,ASC,SOCIAL SERVICES,VOL ASS,Revenue,SUPPORTED HOUSING PROGRAMME,142048030,26/04/16,932142,"3,375.00",CROWNWISE LTD,SP0001202
WANDSWORTH COUNCIL,ASC,SOCIAL SERVICES,VOL ASS,Revenue,SUPPORTED HOUSING PROGRAMME,142048030,26/04/16,932143,"1,450.00",CROWNWISE LTD,SP0001202
WANDSWORTH COUNCIL,ASC,SOCIAL SERVICES,VOL ASS,Revenue,SUPPORTED HOUSING PROGRAMME,142048030,26/04/16,932145,"1,863.00",CROWNWISE LTD,SP0001202
WANDSWORTH COUNCIL,ASC,SOCIAL SERVICES,VOL ASS,Revenue,SUPPORTED HOUSING PROGRAMME,142048030,26/04/16,932146,"2,750.00",CROWNWISE LTD,SP0001202
WANDSWORTH COUNCIL,ASC,SOCIAL SERVICES,VOL ASS,Revenue,SUPPORTED HOUSING PROGRAMME,142048030,26/04/16,932148,"1,750.00",CROWNWISE LTD,SP0001202
WANDSWORTH COUNCIL,ASC,SOCIAL SERVICES,VOL ASS,Revenue,SUPPORTED HOUSING PROGRAMME,142048030,26/04/16,932149,"2,000.00",CROWNWISE LTD,SP0001202
WANDSWORTH COUNCIL,ASC,SOCIAL SERVICES,VOL ASS,Revenue,SUPPORTED HOUSING PROGRAMME,142048030,26/04/16,932125,720.17,SERVOL COMMUNITY TRUST,SP0000539
WANDSWORTH COUNCIL,ASC,SOCIAL SERVICES,VOL ASS,Revenue,SUPPORTED HOUSING PROGRAMME,142048030,26/04/16,932128,637.09,SERVOL COMMUNITY TRUST,SP0000539
WANDSWORTH COUNCIL,ASC,SOCIAL SERVICES,VOL ASS,Revenue,SUPPORTED HOUSING PROGRAMME,142048030,26/04/16,932129,634.11,SERVOL COMMUNITY TRUST,SP0000539
WANDSWORTH COUNCIL,ASC,SOCIAL SERVICES,VOL ASS,Revenue,SUPPORTED HOUSING PROGRAMME,142048030,26/04/16,932130,659.41,SERVOL COMMUNITY TRUST,SP0000539
WANDSWORTH COUNCIL,ASC,SOCIAL SERVICES,VOL ASS,Revenue,SUPPORTED HOUSING PROGRAMME,142048030,26/04/16,932131,845.14,SERVOL COMMUNITY TRUST,SP0000539
WANDSWORTH COUNCIL,ASC,SOCIAL SERVICES,VOL ASS,Revenue,SUPPORTED HOUSING PROGRAMME,142048030,26/04/16,932132,900.77,SERVOL COMMUNITY TRUST,SP0000539
WANDSWORTH COUNCIL,ASC,SOCIAL SERVICES,VOL ASS,Revenue,SUPPORTED HOUSING PROGRAMME,142048030,26/04/16,932133,900.77,SERVOL COMMUNITY TRUST,SP0000539
WANDSWORTH COUNCIL,ASC,SOCIAL SERVICES,VOL ASS,Revenue,SUPPORTED HOUSING PROGRAMME,142048030,26/04/16,932134,900.77,SERVOL COMMUNITY TRUST,SP0000539
WANDSWORTH COUNCIL,ASC,SOCIAL SERVICES,VOL ASS,Revenue,SUPPORTED HOUSING PROGRAMME,142048030,26/04/16,932135,900.77,SERVOL COMMUNITY TRUST,SP0000539
WANDSWORTH COUNCIL,ASC,SOCIAL SERVICES,VOL ASS,Revenue,SUPPORTED HOUSING PROGRAMME,142048030,26/04/16,932136,849.09,SERVOL COMMUNITY TRUST,SP0000539
WANDSWORTH COUNCIL,ASC,SOCIAL SERVICES,VOL ASS,Revenue,SUPPORTED HOUSING PROGRAMME,142048030,26/04/16,932137,900.77,SERVOL COMMUNITY TRUST,SP0000539
WANDSWORTH COUNCIL,ASC,SOCIAL SERVICES,VOL ASS,Revenue,SUPPORTED HOUSING PROGRAMME,142048030,26/04/16,932138,900.77,SERVOL COMMUNITY TRUST,SP0000539
WANDSWORTH COUNCIL,ASC,SOCIAL SERVICES,VOL ASS,Revenue,SUPPORTED HOUSING PROGRAMME,142048030,26/04/16,932159,900.77,SERVOL COMMUNITY TRUST,SP0000539
WANDSWORTH COUNCIL,ASC,SOCIAL SERVICES,VOL ASS,Revenue,SUPPORTED HOUSING PROGRAMME,142048030,28/04/16,934468,"1,180.71",SERVOL COMMUNITY TRUST,SP0000539
WANDSWORTH COUNCIL,ASC,SOCIAL SERVICES,VOL ASS,Revenue,SUPPORTED HOUSING PROGRAMME,142048030,18/04/16,924543,543.96,THE RICHMOND FELLOWSHIP,SP0000621
WANDSWORTH COUNCIL,ASC,SOCIAL SERVICES,VOL ASS,Revenue,SUPPORTED HOUSING PROGRAMME,142048030,18/04/16,924545,543.96,THE RICHMOND FELLOWSHIP,SP0000621
WANDSWORTH COUNCIL,ASC,SOCIAL SERVICES,VOL ASS,Revenue,SUPPORTED HOUSING PROGRAMME,142048030,18/04/16,924546,543.88,THE RICHMOND FELLOWSHIP,SP0000621
WANDSWORTH COUNCIL,ASC,SOCIAL SERVICES,VOL ASS,Revenue,SUPPORTED HOUSING PROGRAMME,142048030,18/04/16,924547,543.88,THE RICHMOND FELLOWSHIP,SP0000621
WANDSWORTH COUNCIL,ASC,SOCIAL SERVICES,VOL ASS,Revenue,SUPPORTED HOUSING PROGRAMME,142048030,18/04/16,924548,543.96,THE RICHMOND FELLOWSHIP,SP0000621
WANDSWORTH COUNCIL,ASC,SOCIAL SERVICES,DIRECT,Revenue,DIRECT PAYMENTS,142050380,25/04/16,930727,"2,280.48",VIBRANCE,SP0005489
WANDSWORTH COUNCIL,ASC,SOCIAL SERVICES,DIRECT,Revenue,DIRECT PAYMENTS,142050380,25/04/16,930800,760.16,VIBRANCE,SP0005489
WANDSWORTH COUNCIL,ASC,SOCIAL SERVICES,DIRECT,Revenue,DIRECT PAYMENTS,142050380,25/04/16,930809,535.44,VIBRANCE,SP0005489
WANDSWORTH COUNCIL,ASC,SOCIAL SERVICES,CUSTOMER & CLIENT RECPTS - EXT,Revenue,CL CONT EXTERNAL RESIDENTIAL,142080720,13/04/16,919111,(321.80),ACTION ON HEARING LOSS,SP0001359
WANDSWORTH COUNCIL,ASC,SOCIAL SERVICES,CUSTOMER & CLIENT RECPTS - EXT,Revenue,CL CONT EXTERNAL RESIDENTIAL,142080720,18/04/16,924580,(321.80),ACTION ON HEARING LOSS,SP0001359
WANDSWORTH COUNCIL,ASC,SOCIAL SERVICES,CUSTOMER & CLIENT RECPTS - EXT,Revenue,CL CONT EXTERNAL RESIDENTIAL,142080720,18/04/16,924584,(418.32),ACTION ON HEARING LOSS,SP0001359
WANDSWORTH COUNCIL,ASC,SOCIAL SERVICES,CUSTOMER & CLIENT RECPTS - EXT,Revenue,CL CONT EXTERNAL RESIDENTIAL,142080720,18/04/16,924585,(418.32),ACTION ON HEARING LOSS,SP0001359
WANDSWORTH COUNCIL,ASC,SOCIAL SERVICES,CUSTOMER & CLIENT RECPTS - EXT,Revenue,CL CONT EXTERNAL RESIDENTIAL,142080720,18/04/16,924586,(418.32),ACTION ON HEARING LOSS,SP0001359
WANDSWORTH COUNCIL,ASC,SOCIAL SERVICES,CUSTOMER & CLIENT RECPTS - EXT,Revenue,CL CONT EXTERNAL RESIDENTIAL,142080720,18/04/16,924587,(418.32),ACTION ON HEARING LOSS,SP0001359
WANDSWORTH COUNCIL,ASC,SOCIAL SERVICES,CUSTOMER & CLIENT RECPTS - EXT,Revenue,CL CONT EXTERNAL RESIDENTIAL,142080720,18/04/16,924588,(418.32),ACTION ON HEARING LOSS,SP0001359
WANDSWORTH COUNCIL,ASC,SOCIAL SERVICES,CUSTOMER & CLIENT RECPTS - EXT,Revenue,CL CONT EXTERNAL RESIDENTIAL,142080720,18/04/16,924589,(418.32),ACTION ON HEARING LOSS,SP0001359
WANDSWORTH COUNCIL,ASC,SOCIAL SERVICES,CUSTOMER & CLIENT RECPTS - EXT,Revenue,CL CONT EXTERNAL RESIDENTIAL,142080720,18/04/16,924591,(418.32),ACTION ON HEARING LOSS,SP0001359
WANDSWORTH COUNCIL,ASC,SOCIAL SERVICES,CUSTOMER & CLIENT RECPTS - EXT,Revenue,CL CONT EXTERNAL RESIDENTIAL,142080720,21/04/16,927649,(241.35),ACTION ON HEARING LOSS,SP0001359
WANDSWORTH COUNCIL,ASC,SOCIAL SERVICES,CUSTOMER & CLIENT RECPTS - EXT,Revenue,CL CONT EXTERNAL RESIDENTIAL,142080720,28/04/16,934254,(541.29),ASTRA HOMES LTD,SP0000374
WANDSWORTH COUNCIL,ASC,SOCIAL SERVICES,CUSTOMER & CLIENT RECPTS - EXT,Revenue,CL CONT EXTERNAL RESIDENTIAL,142080720,28/04/16,934255,(163.43),ASTRA HOMES LTD,SP0000374
WANDSWORTH COUNCIL,ASC,SOCIAL SERVICES,CUSTOMER & CLIENT RECPTS - EXT,Revenue,CL CONT EXTERNAL RESIDENTIAL,142080720,13/04/16,919056,(435.40),C & K HEALTHCARE LTD T/A COLLEGE HILL RH,SP0010610
WANDSWORTH COUNCIL,ASC,SOCIAL SERVICES,CUSTOMER & CLIENT RECPTS - EXT,Revenue,CL CONT EXTERNAL RESIDENTIAL,142080720,21/04/16,927645,(200.30),COMMUNITY HOUSING & THERAPY,SP0001366
WANDSWORTH COUNCIL,ASC,SOCIAL SERVICES,CUSTOMER & CLIENT RECPTS - EXT,Revenue,CL CONT EXTERNAL RESIDENTIAL,142080720,22/04/16,929397,(537.44),COUNTRY COURT CARE,SP0009215
WANDSWORTH COUNCIL,ASC,SOCIAL SERVICES,CUSTOMER & CLIENT RECPTS - EXT,Revenue,CL CONT EXTERNAL RESIDENTIAL,142080720,14/04/16,921773,"(1,497.56)",CROWNWISE LTD,SP0001202
WANDSWORTH COUNCIL,ASC,SOCIAL SERVICES,CUSTOMER & CLIENT RECPTS - EXT,Revenue,CL CONT EXTERNAL RESIDENTIAL,142080720,14/04/16,921774,(523.24),CROWNWISE LTD,SP0001202
WANDSWORTH COUNCIL,ASC,SOCIAL SERVICES,CUSTOMER & CLIENT RECPTS - EXT,Revenue,CL CONT EXTERNAL RESIDENTIAL,142080720,14/04/16,921775,(559.33),CROWNWISE LTD,SP0001202
WANDSWORTH COUNCIL,ASC,SOCIAL SERVICES,CUSTOMER & CLIENT RECPTS - EXT,Revenue,CL CONT EXTERNAL RESIDENTIAL,142080720,28/04/16,934256,(541.29),CROWNWISE LTD,SP0001202
WANDSWORTH COUNCIL,ASC,SOCIAL SERVICES,CUSTOMER & CLIENT RECPTS - EXT,Revenue,CL CONT EXTERNAL RESIDENTIAL,142080720,18/04/16,924568,(199.69),ORCHID HOMES T/A LA ROSA 2,SP0010542
WANDSWORTH COUNCIL,ASC,SOCIAL SERVICES,CUSTOMER & CLIENT RECPTS - EXT,Revenue,CL CONT EXTERNAL RESIDENTIAL,142080720,18/04/16,924569,(213.45),ORCHID HOMES T/A LA ROSA 2,SP0010542
WANDSWORTH COUNCIL,ASC,SOCIAL SERVICES,CUSTOMER & CLIENT RECPTS - EXT,Revenue,CL CONT EXTERNAL RESIDENTIAL,142080720,26/04/16,932163,(414.91),ORCHID HOMES T/A LA ROSA 2,SP0010542
WANDSWORTH COUNCIL,ASC,SOCIAL SERVICES,CUSTOMER & CLIENT RECPTS - EXT,Revenue,CL CONT EXTERNAL RESIDENTIAL,142080720,28/04/16,934258,(443.52),ORCHID HOMES T/A LA ROSA 2,SP0010542
WANDSWORTH COUNCIL,ASC,SOCIAL SERVICES,CUSTOMER & CLIENT RECPTS - EXT,Revenue,CL CONT EXTERNAL RESIDENTIAL,142080720,28/04/16,934259,(429.21),ORCHID HOMES T/A LA ROSA 2,SP0010542
WANDSWORTH COUNCIL,ASC,SOCIAL SERVICES,CUSTOMER & CLIENT RECPTS - EXT,Revenue,CL CONT EXTERNAL RESIDENTIAL,142080720,28/04/16,934262,(425.44),ORCHID HOMES T/A LA ROSA 2,SP0010542
WANDSWORTH COUNCIL,ASC,SOCIAL SERVICES,CUSTOMER & CLIENT RECPTS - EXT,Revenue,CL CONT EXTERNAL RESIDENTIAL,142080720,28/04/16,934263,(456.96),ORCHID HOMES T/A LA ROSA 2,SP0010542
WANDSWORTH COUNCIL,ASC,SOCIAL SERVICES,CUSTOMER & CLIENT RECPTS - EXT,Revenue,CL CONT EXTERNAL RESIDENTIAL,142080720,28/04/16,934264,(488.47),ORCHID HOMES T/A LA ROSA 2,SP0010542
WANDSWORTH COUNCIL,ASC,SOCIAL SERVICES,CUSTOMER & CLIENT RECPTS - EXT,Revenue,CL CONT EXTERNAL RESIDENTIAL,142080720,28/04/16,934265,(472.71),ORCHID HOMES T/A LA ROSA 2,SP0010542
WANDSWORTH COUNCIL,ASC,SOCIAL SERVICES,CUSTOMER & CLIENT RECPTS - EXT,Revenue,CL CONT EXTERNAL RESIDENTIAL,142080720,28/04/16,934267,(206.57),ORCHID HOMES T/A LA ROSA 2,SP0010542
WANDSWORTH COUNCIL,ASC,SOCIAL SERVICES,CUSTOMER & CLIENT RECPTS - EXT,Revenue,CL CONT EXTERNAL RESIDENTIAL,142080720,18/04/16,924560,(548.01),PRIMROSE HOUSE RESIDENTIAL HOME,SP0008026
WANDSWORTH COUNCIL,ASC,SOCIAL SERVICES,CUSTOMER & CLIENT RECPTS - EXT,Revenue,CL CONT EXTERNAL RESIDENTIAL,142080720,25/04/16,931099,(559.33),QUANTUM CARE LTD,SP0001151
WANDSWORTH COUNCIL,ASC,SOCIAL SERVICES,CUSTOMER & CLIENT RECPTS - EXT,Revenue,CL CONT EXTERNAL RESIDENTIAL,142080720,26/04/16,932161,(406.62),REDACTED PERSONAL DATA,SP0001200
WANDSWORTH COUNCIL,ASC,SOCIAL SERVICES,CUSTOMER & CLIENT RECPTS - EXT,Revenue,CL CONT EXTERNAL RESIDENTIAL,142080720,29/04/16,935595,(553.86),REDACTED PERSONAL DATA,SP0000408
WANDSWORTH COUNCIL,ASC,SOCIAL SERVICES,CUSTOMER & CLIENT RECPTS - EXT,Revenue,CL CONT EXTERNAL RESIDENTIAL,142080720,29/04/16,935596,(387.70),REDACTED PERSONAL DATA,SP0001200
WANDSWORTH COUNCIL,ASC,SOCIAL SERVICES,CUSTOMER & CLIENT RECPTS - EXT,Revenue,CLIENT CONTS EXTERNAL NURSING,142080820,22/04/16,929384,(645.52),NIGHTINGALE HOUSE,SP0000582
WANDSWORTH COUNCIL,ASC,SOCIAL SERVICES,CUSTOMER & CLIENT RECPTS - EXT,Revenue,CLIENT CONTS EXTERNAL NURSING,142080820,26/04/16,932166,(522.21),ROSEDENE NURSING HOME,SP0000316
